Department Family,Entity,Date of Payment,Expense Type,Expense Area,Supplier,Voluntary & Community Sector,SME Class,Sole Trader,D-U-N-S Number,Transaction number,PSPES Level 2,Narrative,Postal Code,Amount in Sterling,Grant?
Communities & Local Government,DCLG,03/08/2015,Agency Staff,Finance & Corporate Services,BROOK STREET UK LTD,,Large,,364940028,5106214528,Contingent Labour,Support worker for staff interim measure,PE1 1SY,279.68,
Communities & Local Government,DCLG,03/08/2015,Agency Staff,Neighbourhoods,BROOK STREET UK LTD,,Large,,364940028,5106214530,Contingent Labour,Interim Admin support,PE1 1SY,837.96,
Communities & Local Government,DCLG,03/08/2015,Conferences and Meeting Facilities,Troubled Families,COIN STREET COMMUNITY BUILDERS LTD,,Medium,,294729389,5106214548,Business Travel Accommodation,National TFC event 21st July,SE1 9NH,"9,085.20",
Communities & Local Government,DCLG,03/08/2015,Current (non AEF) Grants to Local Authorities,Localism,BARKING & DAGENHAM LB (HSG),,,,217142293,5000301623,,Independent Living Fund Grant,RM10 7BY,"192,754.00",Yes
Communities & Local Government,DCLG,03/08/2015,Current (non AEF) Grants to Local Authorities,Localism,BARNSLEY MBC,,,,211178595,5000301648,,Independent Living Fund Grant,S70 2AQ,"722,911.00",Yes
Communities & Local Government,DCLG,03/08/2015,Current (non AEF) Grants to Local Authorities,Localism,BATH & NE SOMERSET DC (HSG),,,,214502499,5000301624,,Independent Living Fund Grant,BA1 5AW,"184,910.00",Yes
Communities & Local Government,DCLG,03/08/2015,Current (non AEF) Grants to Local Authorities,Localism,BEDFORD UNITARY AUTHORITY,,,,225682160,5000301826,,Independent Living Fund Grant,MK40 1SJ,"146,474.00",Yes
Communities & Local Government,DCLG,03/08/2015,Current (non AEF) Grants to Local Authorities,Localism,BEXLEY LB (HSG),,,,,5000301625,,Independent Living Fund Grant,DA8 1TL,"270,266.00",Yes
Communities & Local Government,DCLG,03/08/2015,Current (non AEF) Grants to Local Authorities,Localism,BIRMINGHAM CITY CNCL,,,,213780559,5000301649,,Independent Living Fund Grant,B2 2AJ,"1,776,009.00",Yes
Communities & Local Government,DCLG,03/08/2015,Current (non AEF) Grants to Local Authorities,Localism,BLACKBURN WITH DARWEN BC,,,,,5000301650,,Independent Living Fund Grant,BB1 7DY,"167,820.00",Yes
Communities & Local Government,DCLG,03/08/2015,Current (non AEF) Grants to Local Authorities,Localism,BLACKPOOL BC,,,,,5000301651,,Independent Living Fund Grant,FY1 1NA,"73,279.00",Yes
Communities & Local Government,DCLG,03/08/2015,Current (non AEF) Grants to Local Authorities,Localism,BOLTON MBC,,,,,5000301652,,Independent Living Fund Grant,BL1 1RU,"373,534.00",Yes
Communities & Local Government,DCLG,03/08/2015,Current (non AEF) Grants to Local Authorities,Localism,BOURNEMOUTH DC,,,,,5000301653,,Independent Living Fund Grant,BH2 6EB,"108,638.00",Yes
Communities & Local Government,DCLG,03/08/2015,Current (non AEF) Grants to Local Authorities,Localism,BRACKNELL FOREST DC,,,,236184867,5000301654,,Independent Living Fund Grant,RG12 1AQ,"107,786.00",Yes
Communities & Local Government,DCLG,03/08/2015,Current (non AEF) Grants to Local Authorities,Localism,BRADFORD MBC,,,,,5000301655,,Independent Living Fund Grant,BD1 1HX,"816,337.00",Yes
Communities & Local Government,DCLG,03/08/2015,Current (non AEF) Grants to Local Authorities,Localism,BRENT LB (HSG),,,,,5000301626,,Independent Living Fund Grant,HA9 9HD,"379,642.00",Yes
Communities & Local Government,DCLG,03/08/2015,Current (non AEF) Grants to Local Authorities,Localism,BRIGHTON & HOVE CITY COUNCIL,,Large,,228455218,5000301656,,Independent Living Fund Grant,BN3 2LS,"245,540.00",Yes
Communities & Local Government,DCLG,03/08/2015,Current (non AEF) Grants to Local Authorities,Localism,BRISTOL CITY CNCL (HSG),,,,211103882,5000301627,,Independent Living Fund Grant,BS99 7BL,"703,700.00",Yes
Communities & Local Government,DCLG,03/08/2015,Current (non AEF) Grants to Local Authorities,Localism,BROMLEY LB,,,,211331954,5000301657,,Independent Living Fund Grant,BR1 3UH,"263,024.00",Yes
Communities & Local Government,DCLG,03/08/2015,Current (non AEF) Grants to Local Authorities,Localism,BUCKINGHAMSHIRE CC,,,,293750923,5000301658,,Independent Living Fund Grant,HP20 1UD,"445,504.00",Yes
Communities & Local Government,DCLG,03/08/2015,Current (non AEF) Grants to Local Authorities,Localism,BURY MBC,,,,,5000301659,,Independent Living Fund Grant,BL9 0SW,"125,300.00",Yes
Communities & Local Government,DCLG,03/08/2015,Current (non AEF) Grants to Local Authorities,Localism,CALDERDALE MBC,,,,,5000301660,,Independent Living Fund Grant,HX1 1YP,"345,600.00",Yes
Communities & Local Government,DCLG,03/08/2015,Current (non AEF) Grants to Local Authorities,Localism,CAMBRIDGESHIRE COUNTY CNCL,,,,219047347,5000301661,,Independent Living Fund Grant,CB3 0AP,"518,719.00",Yes
Communities & Local Government,DCLG,03/08/2015,Current (non AEF) Grants to Local Authorities,Localism,CAMDEN LB,,,,211651836,5000301662,,Independent Living Fund Grant,WC1H 8NG,"341,718.00",Yes
Communities & Local Government,DCLG,03/08/2015,Current (non AEF) Grants to Local Authorities,Localism,CENTRAL BEDFORDSHIRE COUNCIL,,,,232624882,5000301823,,Independent Living Fund Grant,SG17 5TQ,"180,900.00",Yes
Communities & Local Government,DCLG,03/08/2015,Current (non AEF) Grants to Local Authorities,Localism,CHESHIRE EAST COUNCIL,,Large,,,5000301824,,Independent Living Fund Grant,CW11 1HZ,"374,327.00",Yes
Communities & Local Government,DCLG,03/08/2015,Current (non AEF) Grants to Local Authorities,Localism,CHESHIRE WEST & CHESTER UA,,Large,,215584383,5000301825,,Independent Living Fund Grant,CH1 2NP,"651,858.00",Yes
Communities & Local Government,DCLG,03/08/2015,Current (non AEF) Grants to Local Authorities,Localism,CITY OF LONDON (HSG),,,,217471460,5000301628,,Independent Living Fund Grant,EC2P 2EJ,"3,138.00",Yes
Communities & Local Government,DCLG,03/08/2015,Current (non AEF) Grants to Local Authorities,Localism,CITY OF SUNDERLAND (HSG),,,,215599312,5000301629,,Independent Living Fund Grant,SR2 7DN,"354,214.00",Yes
Communities & Local Government,DCLG,03/08/2015,Current (non AEF) Grants to Local Authorities,Localism,CITY OF WAKEFIELD MDC,,,,,5000301750,,Independent Living Fund Grant,WF1 2QW,"366,032.00",Yes
Communities & Local Government,DCLG,03/08/2015,Current (non AEF) Grants to Local Authorities,Localism,CORNWALL UNITARY AUTHORITY,,,,211334404,5000301828,,Independent Living Fund Grant,TR1 3AY,"1,127,249.00",Yes
Communities & Local Government,DCLG,03/08/2015,Current (non AEF) Grants to Local Authorities,Localism,COVENTRY CITY CNCL,,,,210384802,5000301663,,Independent Living Fund Grant,CV1 2QL,"1,010,318.00",Yes
Communities & Local Government,DCLG,03/08/2015,Current (non AEF) Grants to Local Authorities,Localism,CROYDON LB,,,,212419973,5000301664,,Independent Living Fund Grant,CR9 3JS,"417,630.00",Yes
Communities & Local Government,DCLG,03/08/2015,Current (non AEF) Grants to Local Authorities,Localism,CUMBRIA COUNTY CNCL,,,,211316542,5000301665,,Independent Living Fund Grant,CA3 8NA,"1,409,482.00",Yes
Communities & Local Government,DCLG,03/08/2015,Current (non AEF) Grants to Local Authorities,Localism,DARLINGTON BC,,,,,5000301666,,Independent Living Fund Grant,TS19 1JA,"325,581.00",Yes
Communities & Local Government,DCLG,03/08/2015,Current (non AEF) Grants to Local Authorities,Localism,DERBY CITY CNCL,,,,229641378,5000301667,,Independent Living Fund Grant,DE1 2FS,"463,970.00",Yes
Communities & Local Government,DCLG,03/08/2015,Current (non AEF) Grants to Local Authorities,Localism,DERBYSHIRE COUNTYCOUNCIL,,,,232152967,5000301668,,Independent Living Fund Grant,DE4 3AG,"1,102,092.00",Yes
Communities & Local Government,DCLG,03/08/2015,Current (non AEF) Grants to Local Authorities,Localism,DEVON COUNTY CNCL,,,,213754018,5000301669,,Independent Living Fund Grant,EX2 4QJ,"1,140,406.00",Yes
Communities & Local Government,DCLG,03/08/2015,Current (non AEF) Grants to Local Authorities,Localism,DONCASTER MBC,,,,,5000301670,,Independent Living Fund Grant,DN1 3QA,"296,596.00",Yes
Communities & Local Government,DCLG,03/08/2015,Current (non AEF) Grants to Local Authorities,Localism,DORSET COUNTY CNCL,,,,225431279,5000301671,,Independent Living Fund Grant,DT1 1XJ,"302,139.00",Yes
Communities & Local Government,DCLG,03/08/2015,Current (non AEF) Grants to Local Authorities,Localism,DUDLEY MBC,,,,,5000301672,,Independent Living Fund Grant,DY1 1HF,"440,028.00",Yes
Communities & Local Government,DCLG,03/08/2015,Current (non AEF) Grants to Local Authorities,Localism,DURHAM COUNTY COUNCIL,,,,224004882,5000301829,,Independent Living Fund Grant,DH1 5UE,"671,089.00",Yes
Communities & Local Government,DCLG,03/08/2015,Current (non AEF) Grants to Local Authorities,Localism,EALING LB,,,,,5000301673,,Independent Living Fund Grant,W5 2HL,"235,162.00",Yes
Communities & Local Government,DCLG,03/08/2015,Current (non AEF) Grants to Local Authorities,Localism,EAST RIDING OF YORKS (HSG),,,,423159987,5000301630,,Independent Living Fund Grant,HU17 9BA,"383,776.00",Yes
Communities & Local Government,DCLG,03/08/2015,Current (non AEF) Grants to Local Authorities,Localism,EAST SUSSEX COUNTY CNCL,,,,,5000301674,,Independent Living Fund Grant,BN7 1SF,"415,772.00",Yes
Communities & Local Government,DCLG,03/08/2015,Current (non AEF) Grants to Local Authorities,Localism,ENFIELD LB,,,,,5000301675,,Independent Living Fund Grant,EN1 3XF,"315,571.00",Yes
Communities & Local Government,DCLG,03/08/2015,Current (non AEF) Grants to Local Authorities,Localism,ESSEX COUNTY CNCL,,,,233572986,5000301676,,Independent Living Fund Grant,CM1 1JZ,"2,213,228.00",Yes
Communities & Local Government,DCLG,03/08/2015,Current (non AEF) Grants to Local Authorities,Localism,GATESHEAD COUNCIL,,,,216116041,5000301677,,Independent Living Fund Grant,NE8 1HH,"168,670.00",Yes
Communities & Local Government,DCLG,03/08/2015,Current (non AEF) Grants to Local Authorities,Localism,GLOUCESTERSHIRE COUNTY CNCL,,,,211272067,5000301678,,Independent Living Fund Grant,GL1 2TG,"385,828.00",Yes
Communities & Local Government,DCLG,03/08/2015,Current (non AEF) Grants to Local Authorities,Localism,GREENWICH LB,,,,,5000301679,,Independent Living Fund Grant,SE18 6HQ,"470,654.00",Yes
Communities & Local Government,DCLG,03/08/2015,Current (non AEF) Grants to Local Authorities,Localism,HALTON BC (HSG),,,,,5000301631,,Independent Living Fund Grant,WA8 7QF,"285,370.00",Yes
Communities & Local Government,DCLG,03/08/2015,Current (non AEF) Grants to Local Authorities,Localism,HAMMERSMITH & FULHAM LB,,,,216929489,5000301681,,Independent Living Fund Grant,W6 9JU,"335,646.00",Yes
Communities & Local Government,DCLG,03/08/2015,Current (non AEF) Grants to Local Authorities,Localism,HAMPSHIRE COUNTY COUNCIL,,,,211325832,5000301682,,Independent Living Fund Grant,SO23 8UB,"1,775,073.00",Yes
Communities & Local Government,DCLG,03/08/2015,Current (non AEF) Grants to Local Authorities,Localism,HARINGEY LB,,,,217471767,5000301683,,Independent Living Fund Grant,N22 4TR,"295,964.00",Yes
Communities & Local Government,DCLG,03/08/2015,Current (non AEF) Grants to Local Authorities,Localism,HARROW LB,,,,,5000301684,,Independent Living Fund Grant,HA1 2UZ,"128,377.00",Yes
Communities & Local Government,DCLG,03/08/2015,Current (non AEF) Grants to Local Authorities,Localism,HARTLEPOOL BOROUGH COUNCIL,,,,424291797,5000301685,,Independent Living Fund Grant,TS24 8AY,"253,312.00",Yes
Communities & Local Government,DCLG,03/08/2015,Current (non AEF) Grants to Local Authorities,Localism,HAVERING LB,,,,211209770,5000301686,,Independent Living Fund Grant,RM1 3BB,"254,622.00",Yes
Communities & Local Government,DCLG,03/08/2015,Current (non AEF) Grants to Local Authorities,Localism,HEREFORDSHIRE COUNCIL,,,,,5000301632,,Independent Living Fund Grant,HR4 0XH,"512,113.00",Yes
Communities & Local Government,DCLG,03/08/2015,Current (non AEF) Grants to Local Authorities,Localism,HERTFORDSHIRE COUNTY CNCL,,,,210659897,5000301687,,Independent Living Fund Grant,SG13 8DQ,"845,334.00",Yes
Communities & Local Government,DCLG,03/08/2015,Current (non AEF) Grants to Local Authorities,Localism,HILLINGDON LB,,,,211198585,5000301688,,Independent Living Fund Grant,UB8 1UW,"214,354.00",Yes
Communities & Local Government,DCLG,03/08/2015,Current (non AEF) Grants to Local Authorities,Localism,HOUNSLOW LB,,Public Bodies,,210388999,5000301689,,Independent Living Fund Grant,TW3 4DN,"213,768.00",Yes
Communities & Local Government,DCLG,03/08/2015,Current (non AEF) Grants to Local Authorities,Localism,HULL CITY COUNCIL,,,,217460984,5000301694,,Independent Living Fund Grant,HU1 2AA,"121,568.00",Yes
Communities & Local Government,DCLG,03/08/2015,Current (non AEF) Grants to Local Authorities,Localism,ISLE OF WIGHT CNCL,,,,236431730,5000301690,,Independent Living Fund Grant,PO30 1UD,"64,796.00",Yes
Communities & Local Government,DCLG,03/08/2015,Current (non AEF) Grants to Local Authorities,Localism,ISLINGTON LB,,,,225716729,5000301691,,Independent Living Fund Grant,N1 1XR,"514,082.00",Yes
Communities & Local Government,DCLG,03/08/2015,Current (non AEF) Grants to Local Authorities,Localism,KENT COUNTY CNCL,,,,211334420,5000301693,,Independent Living Fund Grant,ME14 1RF,"834,863.00",Yes
Communities & Local Government,DCLG,03/08/2015,Current (non AEF) Grants to Local Authorities,Localism,KINGSTON UPON THAMES  (HSG),,,,211379941,5000301633,,Independent Living Fund Grant,KT1 1EU,"70,204.00",Yes
Communities & Local Government,DCLG,03/08/2015,Current (non AEF) Grants to Local Authorities,Localism,KIRKLEES COUNCIL (HSG),,,,,5000301634,,Independent Living Fund Grant,HD1 2YU,"351,835.00",Yes
Communities & Local Government,DCLG,03/08/2015,Current (non AEF) Grants to Local Authorities,Localism,KNOWSLEY MBC,,,,,5000301695,,Independent Living Fund Grant,L36 9YZ,"410,951.00",Yes
Communities & Local Government,DCLG,03/08/2015,Current (non AEF) Grants to Local Authorities,Localism,LANCASHIRE COUNTY CNCL,,,,233136584,5000301697,,Independent Living Fund Grant,PR1 8RD,"2,398,893.00",Yes
Communities & Local Government,DCLG,03/08/2015,Current (non AEF) Grants to Local Authorities,Localism,LEEDS CITY CNCL,,Micro,,,5000301698,,Independent Living Fund Grant,LS1 1JF,"258,956.00",Yes
Communities & Local Government,DCLG,03/08/2015,Current (non AEF) Grants to Local Authorities,Localism,LEICESTER CITY CNCL,,,,228219960,5000301635,,Independent Living Fund Grant,LE1 1FZ,"363,776.00",Yes
Communities & Local Government,DCLG,03/08/2015,Current (non AEF) Grants to Local Authorities,Localism,LEICESTERSHIRE COUNTY CNCL,,,,423679836,5000301699,,Independent Living Fund Grant,LE3 8RB,"505,320.00",Yes
Communities & Local Government,DCLG,03/08/2015,Current (non AEF) Grants to Local Authorities,Localism,LEWISHAM LB (HSG),,Large,,235653300,5000301636,,Independent Living Fund Grant,SE6 4RU,"251,082.00",Yes
Communities & Local Government,DCLG,03/08/2015,Current (non AEF) Grants to Local Authorities,Localism,LINCOLNSHIRE COUNTY COUNCIL,,,,,5000301700,,Independent Living Fund Grant,LN1 1YT,"693,212.00",Yes
Communities & Local Government,DCLG,03/08/2015,Current (non AEF) Grants to Local Authorities,Localism,LIVERPOOL CITY COUNCIL,,,,,5000301701,,Independent Living Fund Grant,L2 2DH,"1,875,014.00",Yes
Communities & Local Government,DCLG,03/08/2015,Current (non AEF) Grants to Local Authorities,Localism,LONDON BOROUGH OF BARNET,,,,211049507,5000301647,,Independent Living Fund Grant,NN1 1NP,"582,890.00",Yes
Communities & Local Government,DCLG,03/08/2015,Current (non AEF) Grants to Local Authorities,Localism,LONDON BOROUGH OF HACKNEY,,,,225221597,5000301680,,Independent Living Fund Grant,E8 4RU,"308,359.00",Yes
Communities & Local Government,DCLG,03/08/2015,Current (non AEF) Grants to Local Authorities,Localism,LONDON BOROUGH OF LAMBETH,,,,228216479,5000301696,,Independent Living Fund Grant,SW2 1RL,"268,462.00",Yes
Communities & Local Government,DCLG,03/08/2015,Current (non AEF) Grants to Local Authorities,Localism,LONDON BOROUGH OF NEWHAM,,,,211381004,5000301707,,Independent Living Fund Grant,E16 2QU,"254,461.00",Yes
Communities & Local Government,DCLG,03/08/2015,Current (non AEF) Grants to Local Authorities,Localism,LONDON BOROUGH OF REDBRIDGE,,,,211341417,5000301721,,Independent Living Fund Grant,IG1 1NN,"322,587.00",Yes
Communities & Local Government,DCLG,03/08/2015,Current (non AEF) Grants to Local Authorities,Localism,LUTON BC,,,,365112155,5000301702,,Independent Living Fund Grant,LU1 2BQ,"178,568.00",Yes
Communities & Local Government,DCLG,03/08/2015,Current (non AEF) Grants to Local Authorities,Localism,MANCHESTER CITY CNCL (HSG),,,,211241393,5000301637,,Independent Living Fund Grant,M60 2JR,"862,698.00",Yes
Communities & Local Government,DCLG,03/08/2015,Current (non AEF) Grants to Local Authorities,Localism,MEDWAY TOWNS D C (HSG),,,,,5000301638,,Independent Living Fund Grant,ME4 4TR,"313,318.00",Yes
Communities & Local Government,DCLG,03/08/2015,Current (non AEF) Grants to Local Authorities,Localism,MERTON LB,,,,,5000301703,,Independent Living Fund Grant,SM4 5DX,"130,727.00",Yes
Communities & Local Government,DCLG,03/08/2015,Current (non AEF) Grants to Local Authorities,Localism,MIDDLESBROUGH BC,,,,,5000301704,,Independent Living Fund Grant,TS1 2QQ,"794,753.00",Yes
Communities & Local Government,DCLG,03/08/2015,Current (non AEF) Grants to Local Authorities,Localism,MILTON KEYNES BC,,,,,5000301705,,Independent Living Fund Grant,MK9 3WJ,"287,760.00",Yes
Communities & Local Government,DCLG,03/08/2015,Current (non AEF) Grants to Local Authorities,Localism,NEWCASTLE UPON TYNE DC,,,,239154040,5000301706,,Independent Living Fund Grant,NE99 2BN,"486,972.00",Yes
Communities & Local Government,DCLG,03/08/2015,Current (non AEF) Grants to Local Authorities,Localism,NORFOLK COUNTY COUNCIL,,,,232602789,5000301708,,Independent Living Fund Grant,NR1 2DW,"599,570.00",Yes
Communities & Local Government,DCLG,03/08/2015,Current (non AEF) Grants to Local Authorities,Localism,NORTH EAST LINCOLN DC (HSG),,,,211242737,5000301639,,Independent Living Fund Grant,DN35 8LN,"74,775.00",Yes
Communities & Local Government,DCLG,03/08/2015,Current (non AEF) Grants to Local Authorities,Localism,NORTH LINCOLNSHIRE DC (HSG),,Public Bodies,,424005502,5000301640,,Independent Living Fund Grant,DN16 1AB,"236,360.00",Yes
Communities & Local Government,DCLG,03/08/2015,Current (non AEF) Grants to Local Authorities,Localism,NORTH SOMERSET COUNCIL,,Large,,,5000301709,,Independent Living Fund Grant,BS23 1UJ,"149,730.00",Yes
Communities & Local Government,DCLG,03/08/2015,Current (non AEF) Grants to Local Authorities,Localism,NORTH TYNESIDE MBC,,,,,5000301710,,Independent Living Fund Grant,NE27 0BY,"266,160.00",Yes
Communities & Local Government,DCLG,03/08/2015,Current (non AEF) Grants to Local Authorities,Localism,NORTH YORKSHIRE CC (DL7 8AL),,,,,5000301711,,Independent Living Fund Grant,DL7 8AL,"594,595.00",Yes
Communities & Local Government,DCLG,03/08/2015,Current (non AEF) Grants to Local Authorities,Localism,NORTHAMPTONSHIRE COUNTY COUNCIL,,,,,5000301712,,Independent Living Fund Grant,CB3 0AP,"338,508.00",Yes
Communities & Local Government,DCLG,03/08/2015,Current (non AEF) Grants to Local Authorities,Localism,NORTHUMBERLAND COUNTY COUNCIL,,,,210308905,5000301822,,Independent Living Fund Grant,NE61 2EF,"365,554.00",Yes
Communities & Local Government,DCLG,03/08/2015,Current (non AEF) Grants to Local Authorities,Localism,NOTTINGHAM CITY COUNCIL,,,,214495447,5000301713,,Independent Living Fund Grant,NG2 3NG,"305,328.00",Yes
Communities & Local Government,DCLG,03/08/2015,Current (non AEF) Grants to Local Authorities,Localism,NOTTINGHAMSHIRE COUNTY CNCL,,,,,5000301714,,Independent Living Fund Grant,NG1 4BU,"1,152,398.00",Yes
Communities & Local Government,DCLG,03/08/2015,Current (non AEF) Grants to Local Authorities,Localism,OLDHAM MBC,,,,213015574,5000301715,,Independent Living Fund Grant,OL1 1UH,"1,122,046.00",Yes
Communities & Local Government,DCLG,03/08/2015,Current (non AEF) Grants to Local Authorities,Localism,OXFORDSHIRE CC,,,,228216438,5000301716,,Independent Living Fund Grant,OX1 1TH,"1,501,858.00",Yes
Communities & Local Government,DCLG,03/08/2015,Current (non AEF) Grants to Local Authorities,Localism,PETERBOROUGH CITY CNCL,,,,,5000301717,,Independent Living Fund Grant,PE1 1HG,"50,830.00",Yes
Communities & Local Government,DCLG,03/08/2015,Current (non AEF) Grants to Local Authorities,Localism,PLYMOUTH CITY CNCL,,Public Bodies,,236416095,5000301718,,Independent Living Fund Grant,PL1 2AA,"253,157.00",Yes
Communities & Local Government,DCLG,03/08/2015,Current (non AEF) Grants to Local Authorities,Localism,POOLE BC (HSG),,,,,5000301641,,Independent Living Fund Grant,BH15 2RU,"231,965.00",Yes
Communities & Local Government,DCLG,03/08/2015,Current (non AEF) Grants to Local Authorities,Localism,PORTSMOUTH CITY COUNCIL,,Large,,211183082,5000301719,,Independent Living Fund Grant,PO1 2AR,"194,197.00",Yes
Communities & Local Government,DCLG,03/08/2015,Current (non AEF) Grants to Local Authorities,Localism,READING BC,,,,210220399,5000301720,,Independent Living Fund Grant,RG1 7TD,"102,173.00",Yes
Communities & Local Government,DCLG,03/08/2015,Current (non AEF) Grants to Local Authorities,Localism,REDCAR & CLEVELAND BOROUGH COUNCIL,,,,215175196,5000301722,,Independent Living Fund Grant,TS10 1RT,"147,968.00",Yes
Communities & Local Government,DCLG,03/08/2015,Current (non AEF) Grants to Local Authorities,Localism,RICHMOND UPON THAMES LB,,,,228868535,5000301723,,Independent Living Fund Grant,TW1 3BZ,"167,052.00",Yes
Communities & Local Government,DCLG,03/08/2015,Current (non AEF) Grants to Local Authorities,Localism,ROCHDALE MBC,,,,,5000301724,,Independent Living Fund Grant,OL16 1YG,"214,817.00",Yes
Communities & Local Government,DCLG,03/08/2015,Current (non AEF) Grants to Local Authorities,Localism,ROTHERHAM MBC,,,,211266937,5000301725,,Independent Living Fund Grant,S60 1AE,"626,928.00",Yes
Communities & Local Government,DCLG,03/08/2015,Current (non AEF) Grants to Local Authorities,Localism,ROYAL BOROUGH OF KENSINGTON & CHELS,,,,211124466,5000301692,,Independent Living Fund Grant,W8 7NX,"199,122.00",Yes
Communities & Local Government,DCLG,03/08/2015,Current (non AEF) Grants to Local Authorities,Localism,RUTLAND CC,,,,,5000301726,,Independent Living Fund Grant,LE15 6HP,"26,809.00",Yes
Communities & Local Government,DCLG,03/08/2015,Current (non AEF) Grants to Local Authorities,Localism,SALFORD CITY CNCL,,,,213180073,5000301727,,Independent Living Fund Grant,M27 5AW,"341,646.00",Yes
Communities & Local Government,DCLG,03/08/2015,Current (non AEF) Grants to Local Authorities,Localism,SANDWELL MBC,,,,,5000301728,,Independent Living Fund Grant,B69 3BS,"445,917.00",Yes
Communities & Local Government,DCLG,03/08/2015,Current (non AEF) Grants to Local Authorities,Localism,SEFTON MBC,,Public Bodies,,232936125,5000301729,,Independent Living Fund Grant,L20 3NJ,"916,092.00",Yes
Communities & Local Government,DCLG,03/08/2015,Current (non AEF) Grants to Local Authorities,Localism,SHEFFIELD CITY CNCL,,,,,5000301730,,Independent Living Fund Grant,S1 1UJ,"1,097,654.00",Yes
Communities & Local Government,DCLG,03/08/2015,Current (non AEF) Grants to Local Authorities,Localism,SHROPSHIRE UNITARY AUTHORITY,,,,217036490,5000301827,,Independent Living Fund Grant,SY2 6ND,"657,501.00",Yes
Communities & Local Government,DCLG,03/08/2015,Current (non AEF) Grants to Local Authorities,Localism,SLOUGH BOROUGH COUNCIL,,,,211027123,5000301731,,Independent Living Fund Grant,SL1 3UF,"135,602.00",Yes
Communities & Local Government,DCLG,03/08/2015,Current (non AEF) Grants to Local Authorities,Localism,SOLIHULL MBC,,,,,5000301732,,Independent Living Fund Grant,B91 3QR,"334,340.00",Yes
Communities & Local Government,DCLG,03/08/2015,Current (non AEF) Grants to Local Authorities,Localism,SOMERSET COUNTY CNCL,,,,211229406,5000301733,,Independent Living Fund Grant,TA1 4DY,"518,722.00",Yes
Communities & Local Government,DCLG,03/08/2015,Current (non AEF) Grants to Local Authorities,Localism,SOUTH GLOUCESTERSHIRE DC (HSG),,,,,5000301642,,Independent Living Fund Grant,BS15 2TR,"361,175.00",Yes
Communities & Local Government,DCLG,03/08/2015,Current (non AEF) Grants to Local Authorities,Localism,SOUTH TYNESIDE COUNCIL,,,,345736438,5000301734,,Independent Living Fund Grant,NE33 2RL,"120,924.00",Yes
Communities & Local Government,DCLG,03/08/2015,Current (non AEF) Grants to Local Authorities,Localism,SOUTHAMPTON CITY CNCL,,,,216927475,5000301735,,Independent Living Fund Grant,SO14 7LY,"174,542.00",Yes
Communities & Local Government,DCLG,03/08/2015,Current (non AEF) Grants to Local Authorities,Localism,SOUTHEND ON SEA BC,,,,217067263,5000301736,,Independent Living Fund Grant,SS2 6EP,"165,410.00",Yes
Communities & Local Government,DCLG,03/08/2015,Current (non AEF) Grants to Local Authorities,Localism,SOUTHWARK LB,,,,,5000301737,,Independent Living Fund Grant,SE1 2QH,"77,938.00",Yes
Communities & Local Government,DCLG,03/08/2015,Current (non AEF) Grants to Local Authorities,Localism,ST HELENS MBC,,,,,5000301738,,Independent Living Fund Grant,WA10 1HP,"470,452.00",Yes
Communities & Local Government,DCLG,03/08/2015,Current (non AEF) Grants to Local Authorities,Localism,STAFFORDSHIRE COUNTY CNCL,,Public Bodies,,,5000301739,,Independent Living Fund Grant,ST16 2DH,"1,009,810.00",Yes
Communities & Local Government,DCLG,03/08/2015,Current (non AEF) Grants to Local Authorities,Localism,STOCKPORT MBC,,,,228706248,5000301740,,Independent Living Fund Grant,SK1 3XE,"400,970.00",Yes
Communities & Local Government,DCLG,03/08/2015,Current (non AEF) Grants to Local Authorities,Localism,STOCKTON-ON-TEES BC (HSG),,,,,5000301643,,Independent Living Fund Grant,TS23 2YS,"217,970.00",Yes
Communities & Local Government,DCLG,03/08/2015,Current (non AEF) Grants to Local Authorities,Localism,STOKE ON TRENT CITY COUNCIL,,,,216037890,5000301741,,Independent Living Fund Grant,ST4 1HH,"259,665.00",Yes
Communities & Local Government,DCLG,03/08/2015,Current (non AEF) Grants to Local Authorities,Localism,SUFFOLK CC (SOCIAL CARE SERV) (H,,,,385614821,5000301644,,Independent Living Fund Grant,IP4 1LH,"1,010,543.00",Yes
Communities & Local Government,DCLG,03/08/2015,Current (non AEF) Grants to Local Authorities,Localism,SURREY COUNTY COUNCIL,,Public Bodies,,,5000301742,,Independent Living Fund Grant,KT1 2DN,"686,378.00",Yes
Communities & Local Government,DCLG,03/08/2015,Current (non AEF) Grants to Local Authorities,Localism,SUTTON LB,,,,,5000301743,,Independent Living Fund Grant,SM1 1EA,"48,866.00",Yes
Communities & Local Government,DCLG,03/08/2015,Current (non AEF) Grants to Local Authorities,Localism,SWINDON BC,,,,458639697,5000301744,,Independent Living Fund Grant,SN1 2JH,"166,360.00",Yes
Communities & Local Government,DCLG,03/08/2015,Current (non AEF) Grants to Local Authorities,Localism,TAMESIDE MBC,,,,212635875,5000301745,,Independent Living Fund Grant,OL6 6DL,"315,746.00",Yes
Communities & Local Government,DCLG,03/08/2015,Current (non AEF) Grants to Local Authorities,Localism,TELFORD & WREKIN DC,,,,230235801,5000301746,,Independent Living Fund Grant,TF3 4LF,"365,088.00",Yes
Communities & Local Government,DCLG,03/08/2015,Current (non AEF) Grants to Local Authorities,Localism,THURROCK  BOROUGH COUNCIL,,,,,5000301747,,Independent Living Fund Grant,RM17 6SL,"126,591.00",Yes
Communities & Local Government,DCLG,03/08/2015,Current (non AEF) Grants to Local Authorities,Localism,TORBAY BC,,,,,5000301748,,Independent Living Fund Grant,TQ1 3DR,"186,524.00",Yes
Communities & Local Government,DCLG,03/08/2015,Current (non AEF) Grants to Local Authorities,Localism,TOWER HAMLETS LB (HSG),,,,231315144,5000301645,,Independent Living Fund Grant,E14 2BG,"166,964.00",Yes
Communities & Local Government,DCLG,03/08/2015,Current (non AEF) Grants to Local Authorities,Localism,TRAFFORD MBC,,,,,5000301749,,Independent Living Fund Grant,M32 0TH,"157,131.00",Yes
Communities & Local Government,DCLG,03/08/2015,Current (non AEF) Grants to Local Authorities,Localism,WALSALL MBC,,,,212515585,5000301751,,Independent Living Fund Grant,WS1 1TW,"351,550.00",Yes
Communities & Local Government,DCLG,03/08/2015,Current (non AEF) Grants to Local Authorities,Localism,WALTHAM FOREST LB,,,,,5000301752,,Independent Living Fund Grant,E17 4JA,"477,843.00",Yes
Communities & Local Government,DCLG,03/08/2015,Current (non AEF) Grants to Local Authorities,Localism,WANDSWORTH LB,,,,,5000301753,,Independent Living Fund Grant,SW18 2PU,"110,434.00",Yes
Communities & Local Government,DCLG,03/08/2015,Current (non AEF) Grants to Local Authorities,Localism,WARRINGTON BC,,,,,5000301754,,Independent Living Fund Grant,WA1 1BN,"229,157.00",Yes
Communities & Local Government,DCLG,03/08/2015,Current (non AEF) Grants to Local Authorities,Localism,WARWICKSHIRE COUNTY CNCL,,,,210396290,5000301755,,Independent Living Fund Grant,CV34 4RH,"761,785.00",Yes
Communities & Local Government,DCLG,03/08/2015,Current (non AEF) Grants to Local Authorities,Localism,WEST BERKSHIRE COUNCIL,,,,364809181,5000301756,,Independent Living Fund Grant,RG14 2AF,"175,518.00",Yes
Communities & Local Government,DCLG,03/08/2015,Current (non AEF) Grants to Local Authorities,Localism,WEST SUSSEX CC,,Public Bodies,,232198762,5000301757,,Independent Living Fund Grant,PO19 1RG,"1,873,823.00",Yes
Communities & Local Government,DCLG,03/08/2015,Current (non AEF) Grants to Local Authorities,Localism,WESTMINSTER CITY CNCL,,,,229845706,5000301758,,Independent Living Fund Grant,SW1E 6QP,"129,034.00",Yes
Communities & Local Government,DCLG,03/08/2015,Current (non AEF) Grants to Local Authorities,Localism,WIGAN MBC,,Public Bodies,,,5000301759,,Independent Living Fund Grant,WN1 1AZ,"633,254.00",Yes
Communities & Local Government,DCLG,03/08/2015,Current (non AEF) Grants to Local Authorities,Localism,WILTSHIRE COUNCIL,,,,211341656,5000301821,,Independent Living Fund Grant,BA14 4DS,"470,140.00",Yes
Communities & Local Government,DCLG,03/08/2015,Current (non AEF) Grants to Local Authorities,Localism,WINDSOR & MAIDENHEAD (HSG),,,,227411998,5000301646,,Independent Living Fund Grant,SL6 1RF,"48,998.00",Yes
Communities & Local Government,DCLG,03/08/2015,Current (non AEF) Grants to Local Authorities,Localism,WIRRAL MBC,,,,211222602,5000301760,,Independent Living Fund Grant,CH41 6BU,"662,474.00",Yes
Communities & Local Government,DCLG,03/08/2015,Current (non AEF) Grants to Local Authorities,Localism,WOKINGHAM DC,,,,,5000301761,,Independent Living Fund Grant,RG11 1WJ,"115,228.00",Yes
Communities & Local Government,DCLG,03/08/2015,Current (non AEF) Grants to Local Authorities,Localism,WOLVERHAMPTON MBC,,,,229895453,5000301762,,Independent Living Fund Grant,WV1 1RL,"412,596.00",Yes
Communities & Local Government,DCLG,03/08/2015,Current (non AEF) Grants to Local Authorities,Localism,WORCESTERSHIRE COUNTY COUNCIL,,,,230359643,5000301763,,Independent Living Fund Grant,WR5 2NP,"1,230,129.00",Yes
Communities & Local Government,DCLG,03/08/2015,Current (non AEF) Grants to Local Authorities,Localism,YORK CITY CNCL,,,,,5000301764,,Independent Living Fund Grant,YO1 0EG,"144,907.00",Yes
Communities & Local Government,DCLG,03/08/2015,IT - Service Contracts,Finance & Corporate Services,TRIAD GROUP PLC,,Medium,,,5106214560,IT Managed / Outsourced Services,Alpha Phase work,GU7 1XE,"24,655.00",
Communities & Local Government,DCLG,03/08/2015,IT - Service Contracts,Localism,AIRWAVE SOLUTIONS LTD,,Large,,232603469,5106214440,IT Managed / Outsourced Services,Phase B Scotland 2015/16,SL1 2EJ,"24,499.74",
Communities & Local Government,DCLG,03/08/2015,IT - Service Contracts,Localism,AIRWAVE SOLUTIONS LTD,,Large,,232603469,5106214444,IT Managed / Outsourced Services,Phase C England (MDT1A) 2015/16,SL1 2EJ,"109,970.66",
Communities & Local Government,DCLG,03/08/2015,IT - Service Contracts,Localism,AIRWAVE SOLUTIONS LTD,,Large,,232603469,5106214445,IT Managed / Outsourced Services,Phase B Wales 2015/16,SL1 2EJ,"32,578.55",
Communities & Local Government,DCLG,03/08/2015,IT - Service Contracts,Localism,AIRWAVE SOLUTIONS LTD,,Large,,232603469,5106214559,IT Managed / Outsourced Services,Phase A Scotland 2015/16,SL1 2EJ,"280,091.94",
Communities & Local Government,DCLG,03/08/2015,Professional services,Neighbourhoods,LONDON PENSIONS FUND AUTHORITY,,Public Bodies,,236915880,5106214539,Financial,Pension fund managment,SE1 0LL,372.06,
Communities & Local Government,DCLG,03/08/2015,Research,Finance & Corporate Services,GLENIGAN,,Large,,218633327,5106214553,Research,Research - Planning application & Development pipeline data,BH8 8AQ,"12,500.00",
Communities & Local Government,DCLG,03/08/2015,Training,Finance & Corporate Services,HM REVENUE & CUSTOMS,,Public Bodies,,365117972,5106214549,Development and Training,DCLG contribution to Fast Stream,BN12 4XH,"35,200.00",
Communities & Local Government,DCLG,03/08/2015,Training,Finance & Corporate Services,SAP (UK) LTD,,Large,,396951675,5106214563,Development and Training,BPC430 SAP Training Course,TW14 8HD,"2,600.00",
Communities & Local Government,DCLG,03/08/2015,Work In Progress Pre-Cert 40373 Spend,Neighbourhoods,ASTON UNIVERSITY,,Large,,,7600013239,,Revenue Grant To Be Paid,B4 7ET,"29,851.47",Yes
Communities & Local Government,DCLG,03/08/2015,Work In Progress Pre-Cert 40373 Spend,Neighbourhoods,NORTHAMPTON UNIVERSITY,,Large,,,7600013234,,Revenue Grant To Be Paid,NN2 7AL,"44,011.74",Yes
Communities & Local Government,DCLG,03/08/2015,Work In Progress Pre-Cert 40373 Spend,Neighbourhoods,NOTTINGHAM CITY COUNCIL,,Large,,,7600013238,,Revenue Grant To Be Paid,NG2 3NG,"5,089.34",Yes
Communities & Local Government,DCLG,03/08/2015,Work In Progress Pre-Cert 40373 Spend,Neighbourhoods,NOTTINGHAM TRENT UNIVERSITY,,Large,,,7600013240,,Revenue Grant To Be Paid,NG1 4FZ,"29,279.79",Yes
Communities & Local Government,DCLG,03/08/2015,Work In Progress Pre-Cert 40373 Spend,Neighbourhoods,RENEWAL TRUST,,Small,,,7600013237,,Revenue Grant To Be Paid,NG3 2DG,"4,462.05",Yes
Communities & Local Government,DCLG,03/08/2015,Work In Progress Pre-Cert 40373 Spend,Neighbourhoods,SOLIHULL METROPOLITAN BC,,Large,,,7600013232,,Revenue Grant Clawback Offset,B91 3QS,-833.34,Yes
Communities & Local Government,DCLG,03/08/2015,Work In Progress Pre-Cert 40373 Spend,Neighbourhoods,SOLIHULL METROPOLITAN BC,,Large,,,7600013232,,Revenue Grant To Be Paid,B91 3QS,"4,389.22",Yes
Communities & Local Government,DCLG,03/08/2015,Work In Progress Pre-Cert 40467 Spend,Neighbourhoods,ARKWRIGHT SOCIETY LTD,,Small,,,7600013241,,Capital Grant To Be Paid,DE4 3RQ,"28,377.08",Yes
Communities & Local Government,DCLG,03/08/2015,Work In Progress Pre-Cert 40467 Spend,Neighbourhoods,ASTON UNIVERSITY,,Large,,,7600013239,,Capital Grant Clawback Offset,B4 7ET,"-46,002.83",Yes
Communities & Local Government,DCLG,03/08/2015,Work In Progress Pre-Cert 40467 Spend,Neighbourhoods,ASTON UNIVERSITY,,Large,,,7600013239,,Capital Grant To Be Paid,B4 7ET,"19,061.39",Yes
Communities & Local Government,DCLG,03/08/2015,Work In Progress Pre-Cert 40467 Spend,Neighbourhoods,KROWJI LTD,,,,,7600013236,,Capital Grant To Be Paid,TR15 3AJ,"182,833.23",Yes
Communities & Local Government,DCLG,03/08/2015,Work In Progress Pre-Cert 40467 Spend,Neighbourhoods,LEICESTER CITY COUNCIL,,Large,,,7600013233,,Capital Grant To Be Paid,LE1 6ZG,"232,544.50",Yes
Communities & Local Government,DCLG,03/08/2015,Work In Progress Pre-Cert 40467 Spend,Neighbourhoods,NOTTINGHAM CITY COUNCIL,,Large,,,7600013235,,Capital Grant To Be Paid,NG2 3NG,"548,692.77",Yes
Communities & Local Government,DCLG,03/08/2015,Work In Progress Pre-Cert 40467 Spend,Neighbourhoods,SOLIHULL METROPOLITAN BC,,Large,,,7600013232,,Capital Grant To Be Paid,B91 3QS,"193,021.72",Yes
Communities & Local Government,DCLG,04/08/2015,Current Grants to Non Profit Bodies,Neighbourhoods,CEL GROUP,,Medium,,394794614,5106214574,Technical Services,Home Improvement Agency,WA2 0YL,"76,564.63",Yes
Communities & Local Government,DCLG,04/08/2015,IT - Service Contracts,Finance & Corporate Services,FUJITSU SERVICES LTD,,Large,,423375062,5106214597,IT Managed / Outsourced Services,"FY15/16 DRP Charges ""DRP1Table Charges",WA3 6GD,"13,743.54",
Communities & Local Government,DCLG,04/08/2015,IT - Service Contracts,Localism,AIRWAVE SOLUTIONS LTD,,Large,,232603469,5106214375,IT Managed / Outsourced Services,Phase A England 2015/16,SL1 2EJ,"204,899.64",
Communities & Local Government,DCLG,04/08/2015,IT - Service Contracts,Localism,AIRWAVE SOLUTIONS LTD,,Large,,232603469,5106214375,IT Managed / Outsourced Services,Phase A Wales 2015/16,SL1 2EJ,"23,392.94",
Communities & Local Government,DCLG,04/08/2015,IT - Service Contracts,Localism,AIRWAVE SOLUTIONS LTD,,Large,,232603469,5106214375,IT Managed / Outsourced Services,Phase A Scotland 2015/16,SL1 2EJ,"53,550.12",
Communities & Local Government,DCLG,04/08/2015,IT - Service Contracts,Localism,AIRWAVE SOLUTIONS LTD,,Large,,232603469,5106214545,IT Managed / Outsourced Services,Phase A England 2015/16,SL1 2EJ,"1,037,210.09",
Communities & Local Government,DCLG,04/08/2015,IT - Service Contracts,Neighbourhoods,DEXTROUS WEB LTD,,Micro,,211267270,5106214511,IT Managed / Outsourced Services,Hosting support and RAMP,N1 7NG,868.80,
Communities & Local Government,DCLG,04/08/2015,Physical Storage,"Strategy, Communications and Private Office",WILLIAMS LEA LIMITED,,Large,,393456413,5106214596,Warehousing and Storage,Document Storage,NR3 1PD,437.63,
Communities & Local Government,DCLG,04/08/2015,Printing,"Strategy, Communications and Private Office",STATIONERY OFFICE LTD,,Large,,779375633,5106214598,Printing Services,Statutory Instruments Print: Non-Vatable,NR3 1PD,165.00,
Communities & Local Government,DCLG,04/08/2015,Printing,"Strategy, Communications and Private Office",STATIONERY OFFICE LTD,,Large,,779375633,5106214598,Printing Services,Statutory Instruments Print: Vatable,NR3 1PD,130.00,
Communities & Local Government,DCLG,04/08/2015,Printing,"Strategy, Communications and Private Office",STATIONERY OFFICE LTD,,Large,,779375633,5106214599,Printing Services,Statutory Instruments Print: Non-Vatable,NR3 1PD,165.00,
Communities & Local Government,DCLG,04/08/2015,Printing,"Strategy, Communications and Private Office",STATIONERY OFFICE LTD,,Large,,779375633,5106214599,Printing Services,Statutory Instruments Print: Vatable,NR3 1PD,130.00,
Communities & Local Government,DCLG,04/08/2015,Printing,"Strategy, Communications and Private Office",WILLIAMS LEA LIMITED,,Large,,393456413,5106214596,Printing Services,Year 3 Print services,NR3 1PD,937.90,
Communities & Local Government,DCLG,04/08/2015,Steady State Service Provision,Finance & Corporate Services,CGI IT UK LIMITED,,Large,,239881618,5106214587,Business Process Outsourcing Services,Payroll Services & Licences  14/15,CF31 9AP,"7,739.11",
Communities & Local Government,DCLG,04/08/2015,Steady State Service Provision,Localism,LOCALITY,,Medium,,347998312,5106214585,Business Process Outsourcing Services,Neighbourhood Planning & CRTB,N1 6DR,"44,035.87",
Communities & Local Government,DCLG,04/08/2015,Training,Finance & Corporate Services,CAPITA BUS. SERV. LTD (CSL),,Large,,215580993,5106214568,Development and Training,Managing People -Recruitment & Selection,DL1 9HB,347.00,
Communities & Local Government,DCLG,04/08/2015,Training,Finance & Corporate Services,CAPITA BUS. SERV. LTD (CSL),,Large,,215580993,5106214569,Development and Training,Presentation Skills,DL1 9HB,281.00,
Communities & Local Government,DCLG,04/08/2015,Training,Finance & Corporate Services,CAPITA BUS. SERV. LTD (CSL),,Large,,215580993,5106214570,Development and Training,Individually Facilitated Learning Sessio,DL1 9HB,"1,000.00",
Communities & Local Government,DCLG,04/08/2015,Training,Finance & Corporate Services,CAPITA BUS. SERV. LTD (CSL),,Large,,215580993,5106214577,Development and Training,Leadership Course,DL1 9HB,842.00,
Communities & Local Government,DCLG,04/08/2015,Training,Finance & Corporate Services,CAPITA BUS. SERV. LTD (CSL),,Large,,215580993,5106214583,Development and Training,Change Leaders for Senior Managers (Grad,DL1 9HB,228.00,
Communities & Local Government,DCLG,04/08/2015,Training,Finance & Corporate Services,CAPITA BUS. SERV. LTD (CSL),,Large,,215580993,5106214605,Development and Training,Taking Leadership to the next level,DL1 9HB,595.00,
Communities & Local Government,DCLG,04/08/2015,Training,Finance & Corporate Services,LOCAL GOVERNMENT ASSOCIATION,,Public Bodies,,763817103,5106214600,Development and Training,LGA Annual Conference & Exhibition 2015,SW1P 3HZ,"1,255.00",
Communities & Local Government,DCLG,04/08/2015,Work In Progress Pre-Cert 40373 Spend,Neighbourhoods,BIOCITY NOTTINGHAM LIMITED,,Small,,,7600013244,,Revenue Grant To Be Paid,NG1 1GF,"56,529.41",Yes
Communities & Local Government,DCLG,04/08/2015,Work In Progress Pre-Cert 40373 Spend,Neighbourhoods,SERCO REGIONAL SERVICES LTD,,,,,7600013243,,Revenue Grant To Be Paid,PL6 8LU,"125,843.69",Yes
Communities & Local Government,DCLG,04/08/2015,Work In Progress Pre-Cert 40373 Spend,Neighbourhoods,WSX ENTERPRISE LIMITED,,,,,7600013242,,Revenue Grant To Be Paid,PO16 7BJ,"12,294.26",Yes
Communities & Local Government,DCLG,05/08/2015,BLKD DC EU Cur Grnt to Priv Sect-Persons & NPISH,Neighbourhoods,BEIGHTON VILLAGES DEVELOPMENT TRUST,,Small,,,7500029340,,Revenue Grant repayment,S20 1FZ,"-7,075.15",Yes
Communities & Local Government,DCLG,05/08/2015,Current (non AEF) Grants to Local Authorities,Finance & Corporate Services, CO DURHAM & DARLINGTON FIRE RESCUE,,Public Bodies,,211684266,2100256764,,Regional Control Centre Grant,DH1 1TW,"91,924.75",Yes
Communities & Local Government,DCLG,05/08/2015,Current (non AEF) Grants to Local Authorities,Finance & Corporate Services,GREATER LONDON AUTHORITY,,Large,,225353416,2100256763,,Regional Control Centre Grant,SE10 1AP,"160,743.58",Yes
Communities & Local Government,DCLG,05/08/2015,Current (non AEF) Grants to Local Authorities,Finance & Corporate Services,GREATER MANCHESTER FIRE & RESCUE,,Public Bodies,,424873172,2100256762,,Regional Control Centre Grant,M27 8US,"87,383.00",Yes
Communities & Local Government,DCLG,05/08/2015,Current (non AEF) Grants to Local Authorities,Localism,AVON FIRE AUTHORITY,,Large,,424872570,5000301894,,Firefighters Pensions,BS1 6EU,"1,750,022.00",Yes
Communities & Local Government,DCLG,05/08/2015,Current (non AEF) Grants to Local Authorities,Localism,BLACKPOOL BC,,Public Bodies,,228593497,2100256579,,Mental Health and Employment proposals,FY1 1NA,"1,000,000.00",Yes
Communities & Local Government,DCLG,05/08/2015,Current (non AEF) Grants to Local Authorities,Localism,BUCKS & MILTON KEYNES FIRE AUTH,,Public Bodies,,423679463,5000301874,,Firefighters Pensions,HP20 1BD,"407,557.00",Yes
Communities & Local Government,DCLG,05/08/2015,Current (non AEF) Grants to Local Authorities,Localism,CAMBS & PETERBOROUGH FIRE AUTHORITY,,,,235999737,5000301881,,Firefighters Pensions,PE29 2NA,"1,227,241.00",Yes
Communities & Local Government,DCLG,05/08/2015,Current (non AEF) Grants to Local Authorities,Localism,CHESHIRE FIRE AUTHORITY,,,,424872737,5000301880,,Firefighters Pensions,CW7 2FQ,"2,125,176.00",Yes
Communities & Local Government,DCLG,05/08/2015,Current (non AEF) Grants to Local Authorities,Localism,CLEVELAND FIRE AUTHORITY,,Medium,,424872778,5000301877,,Firefighters Pensions,TS25 5TB,"2,516,378.00",Yes
Communities & Local Government,DCLG,05/08/2015,Current (non AEF) Grants to Local Authorities,Localism,CUMBRIA COUNTY COUNCIL,,,,211316542,5000301898,,Firefighters Pensions,CA3 8NA,"1,207,641.00",Yes
Communities & Local Government,DCLG,05/08/2015,Current (non AEF) Grants to Local Authorities,Localism,DERBYSHIRE FIRE AND RESCUE SERVICE,,,,424872935,5000301888,,Firefighters Pensions,DE23 6EH,"2,147,290.00",Yes
Communities & Local Government,DCLG,05/08/2015,Current (non AEF) Grants to Local Authorities,Localism,DORSET FIRE AUTHORITY,,Large,,,5000301889,,Firefighters Pensions,DT1 1FB,"1,267,393.00",Yes
Communities & Local Government,DCLG,05/08/2015,Current (non AEF) Grants to Local Authorities,Localism,EAST SUSSEX FIRE AUTHORITY,,Large,,,5000301892,,Firefighters Pensions,BN21 1EU,"2,116,151.00",Yes
Communities & Local Government,DCLG,05/08/2015,Current (non AEF) Grants to Local Authorities,Localism,ESSEX FIRE AUTHORITY,,Large,,424873099,5000301875,,Firefighters Pensions,CM8 3HB,"1,009,919.00",Yes
Communities & Local Government,DCLG,05/08/2015,Current (non AEF) Grants to Local Authorities,Localism,GREATER MANCHESTER FIRE (RSG),,,,,5000301869,,Firefighters Pensions,M2 8US,"6,668,152.00",Yes
Communities & Local Government,DCLG,05/08/2015,Current (non AEF) Grants to Local Authorities,Localism,HAMPSHIRE FIRE & RESCUE AUTHORITY,,Large,,,5000301890,,Firefighters Pensions,SO23 8UB,"1,245,871.00",Yes
Communities & Local Government,DCLG,05/08/2015,Current (non AEF) Grants to Local Authorities,Localism,HEREFORD WORCESTER FIRE & RESCUE,,Large,,236425484,5000301885,,Firefighters Pensions,WR5 1JR,"241,596.00",Yes
Communities & Local Government,DCLG,05/08/2015,Current (non AEF) Grants to Local Authorities,Localism,HERTFORDSHIRE CC,,,,211218291,5000301899,,Firefighters Pensions,SG13 8TN,"3,479,188.00",Yes
Communities & Local Government,DCLG,05/08/2015,Current (non AEF) Grants to Local Authorities,Localism,HUMBERSIDE FIRE & RESCUE SERVICE,,,,229832563,5000301878,,Firefighters Pensions,HU4 7BB,"474,582.00",Yes
Communities & Local Government,DCLG,05/08/2015,Current (non AEF) Grants to Local Authorities,Localism,ISLE OF WIGHT COUNCIL,,,,236431730,5000301900,,Firefighters Pensions,PO30 1UD,"506,120.00",Yes
Communities & Local Government,DCLG,05/08/2015,Current (non AEF) Grants to Local Authorities,Localism,KENT & MEDWAY TOWNS FIRE AUTHORITY,,Large,,423679414,5000301879,,Firefighters Pensions,ME15 6XB,"2,671,732.00",Yes
Communities & Local Government,DCLG,05/08/2015,Current (non AEF) Grants to Local Authorities,Localism,LANCASHIRE COMBINED FIRE AUTHORITY,,Large,,230398732,5000301887,,Firefighters Pensions,PR2 3LH,"4,752,030.00",Yes
Communities & Local Government,DCLG,05/08/2015,Current (non AEF) Grants to Local Authorities,Localism,LEICS LEICESTERSHIRE RUTLAND CFA,,,,,5000301891,,Firefighters Pensions,LE3 8HD,"2,066,551.00",Yes
Communities & Local Government,DCLG,05/08/2015,Current (non AEF) Grants to Local Authorities,Localism,LINCOLNSHIRE CC- FIRE AND RESCUE,,,,213279305,5000301901,,Firefighters Pensions,LN1 1YQ,"1,052,812.00",Yes
Communities & Local Government,DCLG,05/08/2015,Current (non AEF) Grants to Local Authorities,Localism,LONDON BOROUGH OF EALING,,,,211049515,2100256581,,Mental Health and Employment proposals,W5 2HL,"1,100,000.00",Yes
Communities & Local Government,DCLG,05/08/2015,Current (non AEF) Grants to Local Authorities,Localism,MERSEYSIDE FIRE & RESCUE SERVICE,,,,210372331,5000301870,,Firefighters Pensions,L30 4YD,"4,534,122.00",Yes
Communities & Local Government,DCLG,05/08/2015,Current (non AEF) Grants to Local Authorities,Localism,NORFOLK COUNTY COUNCIL,,,,232602789,5000301902,,Firefighters Pensions,NR1 2DH,"150,860.00",Yes
Communities & Local Government,DCLG,05/08/2015,Current (non AEF) Grants to Local Authorities,Localism,NORTH YORKSHIRE FIRE & RESCUE AUTH,,Large,,423679778,5000301893,,Firefighters Pensions,DL6 2ND,"326,406.00",Yes
Communities & Local Government,DCLG,05/08/2015,Current (non AEF) Grants to Local Authorities,Localism,NORTHAMPTONSHIRE CC,,,,,5000301904,,Firefighters Pensions,CB3 0AP,"1,659,584.00",Yes
Communities & Local Government,DCLG,05/08/2015,Current (non AEF) Grants to Local Authorities,Localism,NORTHUMBERLAND CC,,Large,,228141644,2100256582,,Mental Health and Employment proposals,NE61 2EF,"1,000,000.00",Yes
Communities & Local Government,DCLG,05/08/2015,Current (non AEF) Grants to Local Authorities,Localism,NORTHUMBERLAND FIRE & RESCUE SERV,,,,423679653,5000301896,,Firefighters Pensions,NE23 3JP,"1,130,042.00",Yes
Communities & Local Government,DCLG,05/08/2015,Current (non AEF) Grants to Local Authorities,Localism,NOTTS & CITY NOTTINGHAM FIRE AUTH,,Large,,296814999,5000301883,,Firefighters Pensions,NG5 8PD,"879,820.00",Yes
Communities & Local Government,DCLG,05/08/2015,Current (non AEF) Grants to Local Authorities,Localism,OXFORDSHIRE CC,,,,,5000301905,,Firefighters Pensions,OX1 1SD,"780,225.00",Yes
Communities & Local Government,DCLG,05/08/2015,Current (non AEF) Grants to Local Authorities,Localism,ROYAL BERKSHIRE FIRE AUTHORITY,,,,424872653,5000301876,,Firefighters Pensions,RG30 4FS,"1,115,355.00",Yes
Communities & Local Government,DCLG,05/08/2015,Current (non AEF) Grants to Local Authorities,Localism,SOUTH YORKSHIRE FIRE & RESCUE AUTH,,,,424872620,5000301871,,Firefighters Pensions,S70 2HG,"3,316,114.00",Yes
Communities & Local Government,DCLG,05/08/2015,Current (non AEF) Grants to Local Authorities,Localism,SURREY COUNTY COUNCIL,,,,211036447,5000301906,,Firefighters Pensions,KT1 1AB,"928,992.00",Yes
Communities & Local Government,DCLG,05/08/2015,Current (non AEF) Grants to Local Authorities,Localism,TRAFFORD METROPOLITAN BC,,,,,2100256580,,Mental Health and Employment proposals,M32 0TH,"2,100,000.00",Yes
Communities & Local Government,DCLG,05/08/2015,Current (non AEF) Grants to Local Authorities,Localism,TYNE & WEAR FIRE AUTHORITY (RSG),,,,215599312,5000301872,,Firefighters Pensions,SR2 7DN,"3,103,743.00",Yes
Communities & Local Government,DCLG,05/08/2015,Current (non AEF) Grants to Local Authorities,Localism,WARWICKSHIRE CC,,,,,5000301907,,Firefighters Pensions,CV35 7DP,"898,947.00",Yes
Communities & Local Government,DCLG,05/08/2015,Current (non AEF) Grants to Local Authorities,Localism,WEST MIDLANDS FIRE & CIVIL DEFENCE,,,,232913731,5000301873,,Firefighters Pensions,B4 7DE,"3,828,205.00",Yes
Communities & Local Government,DCLG,05/08/2015,Current (non AEF) Grants to Local Authorities,Localism,WEST SUSSEX FIRE AND RESCUE SERVICE,,Public Bodies,,232198762,5000301895,,Firefighters Pensions,PO19 1RG,"622,059.00",Yes
Communities & Local Government,DCLG,05/08/2015,Current (non AEF) Grants to Local Authorities,Localism,WILTSHIRE & SWINDON FIRE AUTHORITY,,Large,,232691089,5000301886,,Firefighters Pensions,SN10 5PP,"72,527.00",Yes
Communities & Local Government,DCLG,05/08/2015,Current Grants to Non Profit Bodies,Neighbourhoods,CENTRE FOR ENGINEERING & MANUF EXCE,,,,,2100256759,,Capital Grant to be paid,RM13 8EU,"188,666.00",Yes
Communities & Local Government,DCLG,05/08/2015,Current Grants to Non Profit Bodies,Neighbourhoods,SHELTER NAT CAMPAIGN HOMELESS PEOPL,,Large,,,5000301868,,Preventing Homelessness Grant (VOL),EC1V 9HU,"717,374.00",Yes
Communities & Local Government,DCLG,05/08/2015,IT - Service Contracts,Localism,GROUNDWORK UK,Yes,,,739193758,5106214010,IT Managed / Outsourced Services,Lot 2 Grant Administration,B1 2RR,"13,556.40",
Communities & Local Government,DCLG,05/08/2015,Medals,Localism,ROYAL MINT,,Public Bodies,,211722976,5106214612,Learning and Development Materials,FireFighter Medals for LS  Good Conduct,CF72 8YT,378.00,
Communities & Local Government,DCLG,05/08/2015,Medals,Localism,ROYAL MINT,,Public Bodies,,211722976,5106214614,Learning and Development Materials,FireFighter Medals for LS  Good Conduct,CF72 8YT,428.40,
Communities & Local Government,DCLG,05/08/2015,Medals,Localism,ROYAL MINT,,Public Bodies,,211722976,5106214618,Learning and Development Materials,FireFighter Medals for LS  Good Conduct,CF72 8YT,478.80,
Communities & Local Government,DCLG,05/08/2015,Medals,Localism,ROYAL MINT,,Public Bodies,,211722976,5106214619,Learning and Development Materials,FireFighter Medals for LS  Good Conduct,CF72 8YT,957.60,
Communities & Local Government,DCLG,05/08/2015,Medals,Localism,ROYAL MINT,,Public Bodies,,211722976,5106214620,Learning and Development Materials,FireFighter Medals for LS  Good Conduct,CF72 8YT,352.80,
Communities & Local Government,DCLG,05/08/2015,Medals,Localism,ROYAL MINT,,Public Bodies,,211722976,5106214621,Learning and Development Materials,FireFighter Medals for LS  Good Conduct,CF72 8YT,277.20,
Communities & Local Government,DCLG,05/08/2015,Medals,Localism,ROYAL MINT,,Public Bodies,,211722976,5106214623,Learning and Development Materials,FireFighter Medals for LS  Good Conduct,CF72 8YT,327.60,
Communities & Local Government,DCLG,05/08/2015,Medals,Localism,ROYAL MINT,,Public Bodies,,211722976,5106214625,Learning and Development Materials,FireFighter Medals for LS  Good Conduct,CF72 8YT,680.40,
Communities & Local Government,DCLG,05/08/2015,Publications,Finance & Corporate Services,JONES YARRELL LEADENHALL LTD,,Large,,505670265,5106214637,Learning and Development Materials,Journal and Newspaper supply 2015-16,E3 3JH,337.00,
Communities & Local Government,DCLG,05/08/2015,Publications,Finance & Corporate Services,JONES YARRELL LEADENHALL LTD,,Large,,505670265,5106214638,Learning and Development Materials,Journal and Newspaper supply 2015-16,E3 3JH,354.34,
Communities & Local Government,DCLG,05/08/2015,Steady State Service Provision,Localism,LOCALITY,,Medium,,347998312,5106214586,Business Process Outsourcing Services,Lot 3 Our Place and First Steps,N1 6DR,"28,270.78",
Communities & Local Government,DCLG,05/08/2015,Steady State Service Provision,Localism,LOCALITY,,Medium,,347998312,5106214589,Business Process Outsourcing Services,Lot 1 Advice Service and Network,N1 6DR,"13,508.32",
Communities & Local Government,DCLG,05/08/2015,Steady State Service Provision,Localism,LOCALITY,,Medium,,347998312,5106214590,Business Process Outsourcing Services,Lot 5: Community Ownership and Man,N1 6DR,"16,583.98",
Communities & Local Government,DCLG,05/08/2015,Training,Finance & Corporate Services,CAPITA BUS. SERV. LTD (CSL),,Large,,215580993,5106214610,Development and Training,Finance Professional training RB,DL1 9HB,302.48,
Communities & Local Government,DCLG,05/08/2015,Training,Finance & Corporate Services,CAPITA BUS. SERV. LTD (CSL),,Large,,215580993,5106214628,Development and Training,PS Leadership Masterclass,DL1 9HB,-252.00,
Communities & Local Government,DCLG,05/08/2015,Training,Finance & Corporate Services,REVOLUTION EVENTS LTD,,Small,,237420406,5106214616,Development and Training,Five places for IRMS 2016 conference,TN2 4AG,"2,995.00",
Communities & Local Government,DCLG,05/08/2015,Work In Progress Pre-Cert 40373 Spend,Neighbourhoods,CORBY BOROUGH COUNCIL,,Large,,,7600013246,,Revenue Grant To Be Paid,NN17 1QB,"160,941.51",Yes
Communities & Local Government,DCLG,05/08/2015,Work In Progress Pre-Cert 40373 Spend,Neighbourhoods,CORNWALL DEVELOPMENT COMPANY LTD,,,,,7600013251,,Revenue Grant To Be Paid,TR1 1EA,"182,889.90",Yes
Communities & Local Government,DCLG,05/08/2015,Work In Progress Pre-Cert 40373 Spend,Neighbourhoods,COVENTRY & WARKS CO-OP DEVEL AGENCY,,Small,,,7600013250,,Revenue Grant To Be Paid,CV1 5EA,"16,332.34",Yes
Communities & Local Government,DCLG,05/08/2015,Work In Progress Pre-Cert 40373 Spend,Neighbourhoods,DNCC LIMITED,,Medium,,,7600013253,,Revenue Grant To Be Paid,S41 7NA,"293,146.09",Yes
Communities & Local Government,DCLG,05/08/2015,Work In Progress Pre-Cert 40373 Spend,Neighbourhoods,GO GLOBAL NORTHEAST,,Small,,,7600013249,,Revenue Grant To Be Paid,SR5 3HD,"3,488.08",Yes
Communities & Local Government,DCLG,05/08/2015,Work In Progress Pre-Cert 40373 Spend,Neighbourhoods,NORTH EAST BUSINESS & INNOV CENTRE,,Small,,,7600013245,,Revenue Grant Clawback Offset,SR5 2TA,"-34,803.32",Yes
Communities & Local Government,DCLG,05/08/2015,Work In Progress Pre-Cert 40373 Spend,Neighbourhoods,NORTH EAST BUSINESS & INNOV CENTRE,,Small,,,7600013245,,Revenue Grant To Be Paid,SR5 2TA,"64,051.00",Yes
Communities & Local Government,DCLG,05/08/2015,Work In Progress Pre-Cert 40373 Spend,Neighbourhoods,NTH EAST SOCIAL ENTERPRISE PARTNERS,,,,,7600013247,,Revenue Grant To Be Paid,NE33 4EB,"76,312.24",Yes
Communities & Local Government,DCLG,05/08/2015,Work In Progress Pre-Cert 40467 Spend,Neighbourhoods,COUNCIL OF THE ISLES OF SCILLY,,,,,7600013252,,Capital Grant To Be Paid,TR21 0LW,"224,414.20",Yes
Communities & Local Government,DCLG,05/08/2015,Work In Progress Pre-Cert 40467 Spend,Neighbourhoods,NORTH EAST THEATRE TRUST,,,,,7600013248,,Capital Grant To Be Paid,NE1 3DQ,"4,685.79",Yes
Communities & Local Government,DCLG,06/08/2015,Current Grants to Non Profit Bodies,Localism,CO-OPERATIVES UK,,Small,,,2100256794,,Community Shares Unit,M60 0AS,"80,000.00",Yes
Communities & Local Government,DCLG,06/08/2015,Steady State Service Provision,Localism,MOTT MACDONALD LTD,,Large,,423676980,5106214650,Business Process Outsourcing Services,FLE Costs  (Capped at 25% of Core Contra,BN1 4FY,"1,550.00",
Communities & Local Government,DCLG,06/08/2015,Steady State Service Provision,Localism,MOTT MACDONALD LTD,,Large,,423676980,5106214651,Business Process Outsourcing Services,Core Service Period 2 (Jun 15-May 16),BN1 4FY,"55,872.92",
Communities & Local Government,DCLG,06/08/2015,Telecoms equipment (non-capitalised),Finance & Corporate Services,B T PAYMENT SERVICES LTD,,Large,,215591378,5106214158,Telecoms,Final charges 2014/15,DH98 1BT,-386.75,
Communities & Local Government,DCLG,06/08/2015,Training,Finance & Corporate Services,SOCIETY OF BUSINESS ECONOMISTS,,Micro,,,5106214653,Development and Training,Society of Business Economics conference,SP11 0JZ,230.00,
Communities & Local Government,DCLG,06/08/2015,Training,Localism,UK EVALUATION SOCIETY,,Micro,,220549724,5106214640,Development and Training,Conference attended,SG12 9EF,400.00,
Communities & Local Government,DCLG,06/08/2015,Travel and Subsistence Account,Neighbourhoods,MR GORDON SCOTT,,,,,2100256788,Business Travel,"Meeting of COPAG, travel to London and Return",,271.95,
Communities & Local Government,DCLG,06/08/2015,Travel and Subsistence Account,Neighbourhoods,MR GORDON SCOTT,,,,,2100256789,Business Travel,Travel costs,,531.55,
Communities & Local Government,DCLG,06/08/2015,Work In Progress Pre-Cert 40373 Spend,Neighbourhoods,COVENTRY UNIVERSITY ENTERPRISES LTD,,Medium,,,7600013256,,Revenue Grant Clawback Offset,CV1 2TT,-102.23,Yes
Communities & Local Government,DCLG,06/08/2015,Work In Progress Pre-Cert 40373 Spend,Neighbourhoods,COVENTRY UNIVERSITY ENTERPRISES LTD,,Medium,,,7600013256,,Revenue Grant To Be Paid,CV1 2TT,"78,669.83",Yes
Communities & Local Government,DCLG,06/08/2015,Work In Progress Pre-Cert 40373 Spend,Neighbourhoods,NORTH EAST FINANCE (HOLDCO),,,,,7600013254,,Revenue Grant Clawback Offset,NE1 4AD,"-10,680.02",Yes
Communities & Local Government,DCLG,06/08/2015,Work In Progress Pre-Cert 40373 Spend,Neighbourhoods,NORTH EAST FINANCE (HOLDCO),,,,,7600013254,,Revenue Grant To Be Paid,NE1 4AD,"498,326.50",Yes
Communities & Local Government,DCLG,06/08/2015,Work In Progress Pre-Cert 40373 Spend,Neighbourhoods,NORTHERN FILM & MEDIA,,Micro,,,7600013255,,Revenue Grant To Be Paid,NE8 3BA,"46,407.06",Yes
Communities & Local Government,DCLG,07/08/2015,Agency Staff,Finance & Corporate Services,CAPITA BUS. SERV. LTD (CON LAB),,Large,,,5106214660,Contingent Labour,Interim Manager,DL1 9HB,"3,002.64",
Communities & Local Government,DCLG,07/08/2015,Agency Staff,Finance & Corporate Services,CAPITA BUS. SERV. LTD (CON LAB),,Large,,,5106214661,Contingent Labour,Expenses,DL1 9HB,328.32,
Communities & Local Government,DCLG,07/08/2015,Agency Staff,Finance & Corporate Services,CAPITA BUS. SERV. LTD (CON LAB),,Large,,,5106214667,Contingent Labour,Interim Manager,DL1 9HB,"1,240.03",
Communities & Local Government,DCLG,07/08/2015,Agency Staff,Neighbourhoods,CAPITA BUS. SERV. LTD (CON LAB),,Large,,,5106214659,Contingent Labour,Interim Manager,DL1 9HB,"1,380.67",
Communities & Local Government,DCLG,07/08/2015,Agency Staff,Neighbourhoods,CAPITA BUS. SERV. LTD (CON LAB),,Large,,,5106214662,Contingent Labour,Interim Manager,DL1 9HB,"1,545.55",
Communities & Local Government,DCLG,07/08/2015,Agency Staff,Neighbourhoods,CAPITA BUS. SERV. LTD (CON LAB),,Large,,,5106214663,Contingent Labour,Interim Manager,DL1 9HB,"4,129.49",
Communities & Local Government,DCLG,07/08/2015,Agency Staff,Neighbourhoods,CAPITA BUS. SERV. LTD (CON LAB),,Large,,,5106214665,Contingent Labour,Expenses,DL1 9HB,280.02,
Communities & Local Government,DCLG,07/08/2015,Agency Staff,Neighbourhoods,CAPITA BUS. SERV. LTD (CON LAB),,Large,,,5106214666,Contingent Labour,Interim Manager,DL1 9HB,"1,561.54",
Communities & Local Government,DCLG,07/08/2015,Capital Grants to People Non Profit,Neighbourhoods,BIG LOTTERY FUND,,Public Bodies,,648124972,2100256760,,Coastal Communities Fund,B15 1TR,"1,729,859.00",Yes
Communities & Local Government,DCLG,07/08/2015,Current (non AEF) Grants to Local Authorities,Localism,KENT & MEDWAY TOWNS FIRE AUTHORITY,,Large,,423679414,5000301787,,Overpayment of Grant recovered by Exchequer,ME15 6XB,"-26,548.00",Yes
Communities & Local Government,DCLG,07/08/2015,Current Grants to Non Profit Bodies,Neighbourhoods,BIG LOTTERY FUND,,Public Bodies,,648124972,2100256761,,Coastal Communities Fund,B15 1TR,"397,427.00",Yes
Communities & Local Government,DCLG,07/08/2015,Grant in Aid to NDPBs (non budget),Finance & Corporate Services,COMMISSION LOCAL ADMINISTRATION,,,,215271508,2100256627,,CLAE Grant in Aid for August 2015,SW1P 4QP,"758,000.00",Yes
Communities & Local Government,DCLG,07/08/2015,Grant in Aid to NDPBs (non budget),Finance & Corporate Services,VALUATION TRIBUNAL SERVICE,,,,211218366,2100256832,,Grant in Aid for August 2015,E1 8EU,"480,012.00",Yes
Communities & Local Government,DCLG,07/08/2015,IT - Service Contracts,Finance & Corporate Services,VERIZON UK LTD,,Large,,346786171,5106214686,IT Managed / Outsourced Services,FY15-16 TESA Common Hosting 10125855,RG2 6DA,"19,629.96",
Communities & Local Government,DCLG,07/08/2015,IT - Service Contracts,Localism,GROUNDWORK UK,Yes,,,739193758,5106214617,IT Managed / Outsourced Services,Lot 2 Grant Administration,B1 2RR,"13,556.40",
Communities & Local Government,DCLG,07/08/2015,IT - Service Contracts,Localism,VERIZON UK LTD,,Large,,346786171,5106214655,IT Managed / Outsourced Services,FY15-16 IRS Dedicated Hosting 10126249,RG2 6DA,364.37,
Communities & Local Government,DCLG,07/08/2015,IT - Service Contracts,Localism,VERIZON UK LTD,,Large,,346786171,5106214680,IT Managed / Outsourced Services,FY15-16 IRS Common Hosting 10126249,RG2 6DA,"3,411.07",
Communities & Local Government,DCLG,07/08/2015,IT - Service Contracts,Localism,VERIZON UK LTD,,Large,,346786171,5106214686,IT Managed / Outsourced Services,FY15-16 IRS Common Hosting 10126249,RG2 6DA,"18,860.16",
Communities & Local Government,DCLG,07/08/2015,Mobile phone costs,Finance & Corporate Services,VODAFONE UK(FSSD USE ONLY),,Large,,397467572,2100256834,Telecoms,Quarterly Consolidated  Telephone Costs July 2015,RG14 5FF,"67,969.75",
Communities & Local Government,DCLG,07/08/2015,Mobile phone costs,Finance & Corporate Services,VODAFONE UK(FSSD USE ONLY),,Large,,397467572,2300001902,Telecoms,Quarterly consolidated telephone costs,RG14 5FF,-18.62,
Communities & Local Government,DCLG,07/08/2015,Mobile phone costs,Finance & Corporate Services,VODAFONE UK(FSSD USE ONLY),,Large,,397467572,2300001902,Telecoms,Quarterly consolidated telephone costs,RG14 5FF,-12.48,
Communities & Local Government,DCLG,07/08/2015,Mobile phone costs,Finance & Corporate Services,VODAFONE UK(FSSD USE ONLY),,Large,,397467572,2300001902,Telecoms,Quarterly consolidated telephone costs,RG14 5FF,-11.26,
Communities & Local Government,DCLG,07/08/2015,Mobile phone costs,Finance & Corporate Services,VODAFONE UK(FSSD USE ONLY),,Large,,397467572,2300001902,Telecoms,Quarterly consolidated telephone costs,RG14 5FF,-12.48,
Communities & Local Government,DCLG,07/08/2015,Mobile phone costs,Finance & Corporate Services,VODAFONE UK(FSSD USE ONLY),,Large,,397467572,2300001902,Telecoms,Quarterly consolidated telephone costs,RG14 5FF,-47.50,
Communities & Local Government,DCLG,07/08/2015,Mobile phone costs,Finance & Corporate Services,VODAFONE UK(FSSD USE ONLY),,Large,,397467572,2300001903,Telecoms,Quarterly consolidated telephone costs,RG14 5FF,-23.50,
Communities & Local Government,DCLG,07/08/2015,Mobile phone costs,Finance & Corporate Services,VODAFONE UK(FSSD USE ONLY),,Large,,397467572,2300001903,Telecoms,Quarterly consolidated telephone costs,RG14 5FF,-10.31,
Communities & Local Government,DCLG,07/08/2015,Mobile phone costs,Finance & Corporate Services,VODAFONE UK(FSSD USE ONLY),,Large,,397467572,2300001903,Telecoms,Quarterly consolidated telephone costs,RG14 5FF,-12.48,
Communities & Local Government,DCLG,07/08/2015,Mobile phone costs,Finance & Corporate Services,VODAFONE UK(FSSD USE ONLY),,Large,,397467572,2300001903,Telecoms,Quarterly consolidated telephone costs,RG14 5FF,-12.48,
Communities & Local Government,DCLG,07/08/2015,Mobile phone costs,Finance & Corporate Services,VODAFONE UK(FSSD USE ONLY),,Large,,397467572,2300001903,Telecoms,Quarterly consolidated telephone costs,RG14 5FF,-24.42,
Communities & Local Government,DCLG,07/08/2015,Mobile phone costs,Localism,VODAFONE UK(FSSD USE ONLY),,Large,,397467572,2300001902,Telecoms,Quarterly consolidated telephone costs,RG14 5FF,-30.36,
Communities & Local Government,DCLG,07/08/2015,Mobile phone costs,Localism,VODAFONE UK(FSSD USE ONLY),,Large,,397467572,2300001902,Telecoms,Quarterly consolidated telephone costs,RG14 5FF,-12.40,
Communities & Local Government,DCLG,07/08/2015,Mobile phone costs,Localism,VODAFONE UK(FSSD USE ONLY),,Large,,397467572,2300001902,Telecoms,Quarterly consolidated telephone costs,RG14 5FF,-12.17,
Communities & Local Government,DCLG,07/08/2015,Mobile phone costs,Localism,VODAFONE UK(FSSD USE ONLY),,Large,,397467572,2300001902,Telecoms,Quarterly consolidated telephone costs,RG14 5FF,-31.72,
Communities & Local Government,DCLG,07/08/2015,Mobile phone costs,Localism,VODAFONE UK(FSSD USE ONLY),,Large,,397467572,2300001902,Telecoms,Quarterly consolidated telephone costs,RG14 5FF,-4.69,
Communities & Local Government,DCLG,07/08/2015,Mobile phone costs,Localism,VODAFONE UK(FSSD USE ONLY),,Large,,397467572,2300001902,Telecoms,Quarterly consolidated telephone costs,RG14 5FF,-9.65,
Communities & Local Government,DCLG,07/08/2015,Mobile phone costs,Localism,VODAFONE UK(FSSD USE ONLY),,Large,,397467572,2300001902,Telecoms,Quarterly consolidated telephone costs,RG14 5FF,-6.64,
Communities & Local Government,DCLG,07/08/2015,Mobile phone costs,Localism,VODAFONE UK(FSSD USE ONLY),,Large,,397467572,2300001902,Telecoms,Quarterly consolidated telephone costs,RG14 5FF,-120.71,
Communities & Local Government,DCLG,07/08/2015,Mobile phone costs,Localism,VODAFONE UK(FSSD USE ONLY),,Large,,397467572,2300001902,Telecoms,Quarterly consolidated telephone costs,RG14 5FF,-18.62,
Communities & Local Government,DCLG,07/08/2015,Mobile phone costs,Localism,VODAFONE UK(FSSD USE ONLY),,Large,,397467572,2300001903,Telecoms,Quarterly consolidated telephone costs,RG14 5FF,-12.48,
Communities & Local Government,DCLG,07/08/2015,Mobile phone costs,Localism,VODAFONE UK(FSSD USE ONLY),,Large,,397467572,2300001903,Telecoms,Quarterly consolidated telephone costs,RG14 5FF,-12.48,
Communities & Local Government,DCLG,07/08/2015,Mobile phone costs,Localism,VODAFONE UK(FSSD USE ONLY),,Large,,397467572,2300001903,Telecoms,Quarterly consolidated telephone costs,RG14 5FF,-26.15,
Communities & Local Government,DCLG,07/08/2015,Mobile phone costs,Localism,VODAFONE UK(FSSD USE ONLY),,Large,,397467572,2300001903,Telecoms,Quarterly consolidated telephone costs,RG14 5FF,-24.37,
Communities & Local Government,DCLG,07/08/2015,Mobile phone costs,Localism,VODAFONE UK(FSSD USE ONLY),,Large,,397467572,2300001903,Telecoms,Quarterly consolidated telephone costs,RG14 5FF,-10.58,
Communities & Local Government,DCLG,07/08/2015,Mobile phone costs,Localism,VODAFONE UK(FSSD USE ONLY),,Large,,397467572,2300001903,Telecoms,Quarterly consolidated telephone costs,RG14 5FF,-45.25,
Communities & Local Government,DCLG,07/08/2015,Mobile phone costs,Localism,VODAFONE UK(FSSD USE ONLY),,Large,,397467572,2300001903,Telecoms,Quarterly consolidated telephone costs,RG14 5FF,-53.99,
Communities & Local Government,DCLG,07/08/2015,Mobile phone costs,Localism,VODAFONE UK(FSSD USE ONLY),,Large,,397467572,2300001903,Telecoms,Quarterly consolidated telephone costs,RG14 5FF,-15.77,
Communities & Local Government,DCLG,07/08/2015,Mobile phone costs,Localism,VODAFONE UK(FSSD USE ONLY),,Large,,397467572,2300001903,Telecoms,Quarterly consolidated telephone costs,RG14 5FF,-24.35,
Communities & Local Government,DCLG,07/08/2015,Mobile phone costs,Localism,VODAFONE UK(FSSD USE ONLY),,Large,,397467572,2300001903,Telecoms,Quarterly consolidated telephone costs,RG14 5FF,-5.16,
Communities & Local Government,DCLG,07/08/2015,Mobile phone costs,Localism,VODAFONE UK(FSSD USE ONLY),,Large,,397467572,2300001903,Telecoms,Quarterly consolidated telephone costs,RG14 5FF,-21.00,
Communities & Local Government,DCLG,07/08/2015,Mobile phone costs,Localism,VODAFONE UK(FSSD USE ONLY),,Large,,397467572,2300001903,Telecoms,Quarterly consolidated telephone costs,RG14 5FF,-0.78,
Communities & Local Government,DCLG,07/08/2015,Mobile phone costs,Localism,VODAFONE UK(FSSD USE ONLY),,Large,,397467572,2300001903,Telecoms,Quarterly consolidated telephone costs,RG14 5FF,-12.38,
Communities & Local Government,DCLG,07/08/2015,Mobile phone costs,Localism,VODAFONE UK(FSSD USE ONLY),,Large,,397467572,2300001903,Telecoms,Quarterly consolidated telephone costs,RG14 5FF,-1.34,
Communities & Local Government,DCLG,07/08/2015,Mobile phone costs,Neighbourhoods,VODAFONE UK(FSSD USE ONLY),,Large,,397467572,2300001902,Telecoms,Quarterly consolidated telephone costs,RG14 5FF,-11.51,
Communities & Local Government,DCLG,07/08/2015,Mobile phone costs,Neighbourhoods,VODAFONE UK(FSSD USE ONLY),,Large,,397467572,2300001902,Telecoms,Quarterly consolidated telephone costs,RG14 5FF,-12.48,
Communities & Local Government,DCLG,07/08/2015,Mobile phone costs,Neighbourhoods,VODAFONE UK(FSSD USE ONLY),,Large,,397467572,2300001902,Telecoms,Quarterly consolidated telephone costs,RG14 5FF,-10.99,
Communities & Local Government,DCLG,07/08/2015,Mobile phone costs,Neighbourhoods,VODAFONE UK(FSSD USE ONLY),,Large,,397467572,2300001903,Telecoms,Quarterly consolidated telephone costs,RG14 5FF,-7.31,
Communities & Local Government,DCLG,07/08/2015,Mobile phone costs,Neighbourhoods,VODAFONE UK(FSSD USE ONLY),,Large,,397467572,2300001903,Telecoms,Quarterly consolidated telephone costs,RG14 5FF,-13.04,
Communities & Local Government,DCLG,07/08/2015,Mobile phone costs,Neighbourhoods,VODAFONE UK(FSSD USE ONLY),,Large,,397467572,2300001903,Telecoms,Quarterly consolidated telephone costs,RG14 5FF,-12.48,
Communities & Local Government,DCLG,07/08/2015,Mobile phone costs,Neighbourhoods,VODAFONE UK(FSSD USE ONLY),,Large,,397467572,2300001903,Telecoms,Quarterly consolidated telephone costs,RG14 5FF,-21.00,
Communities & Local Government,DCLG,07/08/2015,Mobile phone costs,Neighbourhoods,VODAFONE UK(FSSD USE ONLY),,Large,,397467572,2300001903,Telecoms,Quarterly consolidated telephone costs,RG14 5FF,-11.12,
Communities & Local Government,DCLG,07/08/2015,Mobile phone costs,Neighbourhoods,VODAFONE UK(FSSD USE ONLY),,Large,,397467572,2300001903,Telecoms,Quarterly consolidated telephone costs,RG14 5FF,-6.50,
Communities & Local Government,DCLG,07/08/2015,Mobile phone costs,Neighbourhoods,VODAFONE UK(FSSD USE ONLY),,Large,,397467572,2300001903,Telecoms,Quarterly consolidated telephone costs,RG14 5FF,-21.62,
Communities & Local Government,DCLG,07/08/2015,Mobile phone costs,Neighbourhoods,VODAFONE UK(FSSD USE ONLY),,Large,,397467572,2300001903,Telecoms,Quarterly consolidated telephone costs,RG14 5FF,-4.19,
Communities & Local Government,DCLG,07/08/2015,Mobile phone costs,Neighbourhoods,VODAFONE UK(FSSD USE ONLY),,Large,,397467572,2300001903,Telecoms,Quarterly consolidated telephone costs,RG14 5FF,-11.49,
Communities & Local Government,DCLG,07/08/2015,Mobile phone costs,"Strategy, Communications and Private Office",VODAFONE UK(FSSD USE ONLY),,Large,,397467572,2300001902,Telecoms,Quarterly consolidated telephone costs,RG14 5FF,-68.35,
Communities & Local Government,DCLG,07/08/2015,Mobile phone costs,"Strategy, Communications and Private Office",VODAFONE UK(FSSD USE ONLY),,Large,,397467572,2300001902,Telecoms,Quarterly consolidated telephone costs,RG14 5FF,-27.65,
Communities & Local Government,DCLG,07/08/2015,Mobile phone costs,"Strategy, Communications and Private Office",VODAFONE UK(FSSD USE ONLY),,Large,,397467572,2300001902,Telecoms,Quarterly consolidated telephone costs,RG14 5FF,-58.80,
Communities & Local Government,DCLG,07/08/2015,Mobile phone costs,"Strategy, Communications and Private Office",VODAFONE UK(FSSD USE ONLY),,Large,,397467572,2300001902,Telecoms,Quarterly consolidated telephone costs,RG14 5FF,-24.92,
Communities & Local Government,DCLG,07/08/2015,Mobile phone costs,"Strategy, Communications and Private Office",VODAFONE UK(FSSD USE ONLY),,Large,,397467572,2300001902,Telecoms,Quarterly consolidated telephone costs,RG14 5FF,-7.45,
Communities & Local Government,DCLG,07/08/2015,Mobile phone costs,"Strategy, Communications and Private Office",VODAFONE UK(FSSD USE ONLY),,Large,,397467572,2300001902,Telecoms,Quarterly consolidated telephone costs,RG14 5FF,-12.48,
Communities & Local Government,DCLG,07/08/2015,Office machinery consumables,Neighbourhoods,COMPUTACENTER (UK) LTD,,Large,,226023463,5106214556,Office Supplies,Kyocera ECOSYS M2530dn - Multifunction p,AL10 9TW,420.24,
Communities & Local Government,DCLG,07/08/2015,Physical Storage,Finance & Corporate Services,TNT UK LIMITED,,Large,,,5106214671,Warehousing and Storage,Offsite Records Storage FYR 15/16,BL10 9GR,"1,609.43",
Communities & Local Government,DCLG,07/08/2015,Physical Storage,Finance & Corporate Services,TNT UK LIMITED,,Large,,,5106214683,Warehousing and Storage,Offsite Records Storage FYR 15/16,BL10 9GR,"1,568.32",
Communities & Local Government,DCLG,07/08/2015,Professional services,Finance & Corporate Services,DAWES & FRASER CONSULTING LTD,,Small,,,5106214672,Financial,Contract and Technical Support (Jun-Dec),SE20 7BS,"5,214.00",
Communities & Local Government,DCLG,07/08/2015,Professional services,Finance & Corporate Services,DAWES & FRASER CONSULTING LTD,,Small,,,5106214672,Financial,Expenses (Jun-Dec),SE20 7BS,372.01,
Communities & Local Government,DCLG,07/08/2015,Professional services,Neighbourhoods,LONDON PENSIONS FUND AUTHORITY,,Public Bodies,,236915880,5106214224,Financial,Pension fund managment,SE1 0LL,372.79,
Communities & Local Government,DCLG,07/08/2015,Professional services,Neighbourhoods,LONDON PENSIONS FUND AUTHORITY,,Public Bodies,,236915880,5106214689,Financial,Pension fund managment,SE1 0LL,372.79,
Communities & Local Government,DCLG,07/08/2015,Research,Finance & Corporate Services,UNIVERSITY OF YORK,,Large,,213292944,5106214657,Research,Research  - Feasibility Study of Directly Commissioned House building,YO10 5DG,"18,493.00",
Communities & Local Government,DCLG,07/08/2015,Research,Neighbourhoods,BUILDING RESEARCH ESTABLISHMENT,,Large,,896495033,5106214685,Research,Quarter 3,WD25 9XX,"31,130.40",
Communities & Local Government,DCLG,07/08/2015,Research,Troubled Families,MARKET & OPINION RESEARCH INT LTD,,Large,,227257185,5106214690,Research,A: Proposal of a Sampling Frame,E1W 1YW,"152,340.00",
Communities & Local Government,DCLG,07/08/2015,Safety equipment,Localism,FIRE SERVICE COLLEGE LTD,,,,,5106214675,Security,Contribution for supporting National Resilience,GL56 0RG,"3,372.60",
Communities & Local Government,DCLG,07/08/2015,Steady State Service Provision,Finance & Corporate Services,VODAFONE UK(FSSD USE ONLY),,Large,,397467572,5106214677,Business Process Outsourcing Services,PSN WAN Services FY15/16,RG14 5FF,"-2,261.34",
Communities & Local Government,DCLG,07/08/2015,Steady State Service Provision,Localism,CO-OPERATIVES UK,,Small,,,5106214670,Business Process Outsourcing Services,Lot 4 Community Economic Development,M60 0AS,"37,057.23",
Communities & Local Government,DCLG,07/08/2015,Vehicle Maintenance,Localism,BABCOCK CRITICAL SERVICES LTD,,Large,,215597451,5106214678,Fleet Management,Non scheduled work for Vehicle Maintenance 15/16,NG15 0DR,"33,705.94",
Communities & Local Government,DCLG,07/08/2015,Vehicle Maintenance,Localism,BABCOCK CRITICAL SERVICES LTD,,Large,,215597451,5106214679,Fleet Management,Non scheduled work for Vehicle Maintenance 15/16,NG15 0DR,"33,834.98",
Communities & Local Government,DCLG,07/08/2015,Work In Progress Pre-Cert 40373 Spend,Neighbourhoods,ACCORD HOUSING ASSOCIATION LTD,,Large,,,7600013260,,Revenue Grant To Be Paid,B70 6QG,"12,050.11",Yes
Communities & Local Government,DCLG,07/08/2015,Work In Progress Pre-Cert 40373 Spend,Neighbourhoods,ACCORD HOUSING ASSOCIATION LTD,,Large,,,7600013267,,Revenue Grant To Be Paid,B70 6QG,"14,363.33",Yes
Communities & Local Government,DCLG,07/08/2015,Work In Progress Pre-Cert 40373 Spend,Neighbourhoods,COVENTRY & WARKS CO-OP DEVEL AGENCY,,Small,,,7600013266,,Revenue Grant To Be Paid,CV1 5EA,"12,780.33",Yes
Communities & Local Government,DCLG,07/08/2015,Work In Progress Pre-Cert 40373 Spend,Neighbourhoods,COVENTRY & WARKS CO-OP DEVEL AGENCY,,Small,,,7600013268,,Revenue Grant To Be Paid,CV1 5EA,"16,677.36",Yes
Communities & Local Government,DCLG,07/08/2015,Work In Progress Pre-Cert 40373 Spend,Neighbourhoods,ISLE OF WIGHT COUNCIL,,Public Bodies,,,7600013265,,Revenue Grant To Be Paid,PO30 1UD,"73,759.76",Yes
Communities & Local Government,DCLG,07/08/2015,Work In Progress Pre-Cert 40373 Spend,Neighbourhoods,NGAGE SOLUTIONS LTD,,Medium,,,7600013261,,Revenue Grant To Be Paid,HP14 4BF,"65,018.56",Yes
Communities & Local Government,DCLG,07/08/2015,Work In Progress Pre-Cert 40373 Spend,Neighbourhoods,NGAGE SOLUTIONS LTD,,Medium,,,7600013264,,Revenue Grant Clawback Offset,HP14 4BF,-65.38,Yes
Communities & Local Government,DCLG,07/08/2015,Work In Progress Pre-Cert 40373 Spend,Neighbourhoods,NGAGE SOLUTIONS LTD,,Medium,,,7600013264,,Revenue Grant To Be Paid,HP14 4BF,"15,775.99",Yes
Communities & Local Government,DCLG,07/08/2015,Work In Progress Pre-Cert 40373 Spend,Neighbourhoods,SOUTHAMPTON CITY COUNCIL,,Public Bodies,,,7600013262,,Revenue Grant To Be Paid,SO14 7LR,"11,592.62",Yes
Communities & Local Government,DCLG,07/08/2015,Work In Progress Pre-Cert 40373 Spend,Neighbourhoods,SUSTRANS LIMITED,,Large,,,7600013258,,Revenue Grant To Be Paid,BS1 5DD,"16,800.62",Yes
Communities & Local Government,DCLG,07/08/2015,Work In Progress Pre-Cert 40373 Spend,Neighbourhoods,SUSTRANS LIMITED,,Large,,,7600013263,,Revenue Grant Clawback Offset,BS1 5DD,"-2,104.78",Yes
Communities & Local Government,DCLG,07/08/2015,Work In Progress Pre-Cert 40373 Spend,Neighbourhoods,SUSTRANS LIMITED,,Large,,,7600013263,,Revenue Grant To Be Paid,BS1 5DD,"21,129.03",Yes
Communities & Local Government,DCLG,07/08/2015,Work In Progress Pre-Cert 40373 Spend,Neighbourhoods,UNIVERSITY OF BIRMINGHAM,,Large,,,7600013257,,Revenue Grant To Be Paid,B15 2TT,"101,342.15",Yes
Communities & Local Government,DCLG,07/08/2015,Work In Progress Pre-Cert 40467 Spend,Neighbourhoods,ACCORD HOUSING ASSOCIATION LTD,,Large,,,7600013267,,Capital Grant To Be Paid,B70 6QG,"7,028.16",Yes
Communities & Local Government,DCLG,07/08/2015,Work In Progress Pre-Cert 40467 Spend,Neighbourhoods,NGAGE SOLUTIONS LTD,,Medium,,,7600013264,,Capital Grant To Be Paid,HP14 4BF,"89,557.28",Yes
Communities & Local Government,DCLG,07/08/2015,Work In Progress Pre-Cert 40467 Spend,Neighbourhoods,SUNDERLAND CITY COUNCIL,,,,,7600013259,,Capital Grant To Be Paid,SR2 7DN,"150,003.77",Yes
Communities & Local Government,DCLG,10/08/2015,Advertising,Neighbourhoods,REDACTIVE MEDIA SALES LTD,,Medium,,,5106214695,Advertising,Two G7 Posts Advertised,EC1M 5TP,600.00,
Communities & Local Government,DCLG,10/08/2015,Agency Staff,Finance & Corporate Services,BROOK STREET UK LTD,,Large,,364940028,5106214701,Contingent Labour,Support worker for staff interim measure,PE1 1SY,745.63,
Communities & Local Government,DCLG,10/08/2015,Agency Staff,Finance & Corporate Services,BROOK STREET UK LTD,,Large,,364940028,5106214711,Contingent Labour,Support worker for staff interim measure,PE1 1SY,279.68,
Communities & Local Government,DCLG,10/08/2015,IT - Service Contracts,Finance & Corporate Services,FUJITSU SERVICES LTD,,Large,,423375062,5106214738,IT Managed / Outsourced Services,CNFJDCLG096.001 GSI to PSN,WA3 6GD,"5,000.00",
Communities & Local Government,DCLG,10/08/2015,IT - Service Contracts,Finance & Corporate Services,VERIZON UK LTD,,Large,,346786171,5106214703,IT Managed / Outsourced Services,FY15-16 TESA DEDICATED Hosting 10125855,RG2 6DA,"6,517.38",
Communities & Local Government,DCLG,10/08/2015,IT - Service Contracts,Localism,AIRWAVE SOLUTIONS LTD,,Large,,232603469,5106214443,IT Managed / Outsourced Services,Phase A Wales 2015/16,SL1 2EJ,"142,432.14",
Communities & Local Government,DCLG,10/08/2015,IT - Software Maintenance,Finance & Corporate Services,KAIZEN ASSOCIATES LTD,,Micro,,217482430,5106214710,IT Managed / Outsourced Services,SAP Application Support,SE1 6SW,"9,909.78",
Communities & Local Government,DCLG,10/08/2015,Online Database Information Retrieval,Finance & Corporate Services,OCEAN MEDIA GROUP LTD,,Medium,,292999950,5106214692,ICT Services,Inside Housing online (20 logins),E14 5AA,"1,320.00",
Communities & Local Government,DCLG,10/08/2015,Professional services,Localism,VALUATION OFFICE AGENCY,,Public Bodies,,215253886,2100256852,Environmental Services,VOA NNDR and Council Tax,W1B 5BU,"13,308,333.00",
Communities & Local Government,DCLG,10/08/2015,Professional services,Neighbourhoods,BUILDING RESEARCH ESTABLISHMENT,,Large,,896495033,5106214714,Technical Services,Additional Ad-Hoc Work,WD25 9XX,4.80,
Communities & Local Government,DCLG,10/08/2015,Professional services,Neighbourhoods,BUILDING RESEARCH ESTABLISHMENT,,Large,,896495033,5106214714,Technical Services,Briefing for Meetings of PG,WD25 9XX,"6,829.20",
Communities & Local Government,DCLG,10/08/2015,Professional services,Neighbourhoods,BUILDING RESEARCH ESTABLISHMENT,,Large,,896495033,5106214714,Technical Services,Checking 98/34 Notification - Core Tasks,WD25 9XX,"1,550.40",
Communities & Local Government,DCLG,10/08/2015,Professional services,Neighbourhoods,BUILDING RESEARCH ESTABLISHMENT,,Large,,896495033,5106214714,Technical Services,Contract Management,WD25 9XX,747.60,
Communities & Local Government,DCLG,10/08/2015,Professional services,Neighbourhoods,BUILDING RESEARCH ESTABLISHMENT,,Large,,896495033,5106214714,Technical Services,Key Partner Engagement,WD25 9XX,"2,541.60",
Communities & Local Government,DCLG,10/08/2015,Professional services,Neighbourhoods,BUILDING RESEARCH ESTABLISHMENT,,Large,,896495033,5106214714,Technical Services,Post Meeting Support for SCC or PG,WD25 9XX,"2,185.20",
Communities & Local Government,DCLG,10/08/2015,Professional services,Neighbourhoods,BUILDING RESEARCH ESTABLISHMENT,,Large,,896495033,5106214714,Technical Services,Standardisation Issues - Core Tasks,WD25 9XX,"2,017.20",
Communities & Local Government,DCLG,10/08/2015,Professional services,Neighbourhoods,BUILDING RESEARCH ESTABLISHMENT,,Large,,896495033,5106214714,Technical Services,Support in Meetings of PG,WD25 9XX,"2,959.20",
Communities & Local Government,DCLG,10/08/2015,Professional services,Neighbourhoods,BUILDING RESEARCH ESTABLISHMENT,,Large,,896495033,5106214714,Technical Services,Travel and Subsistence,WD25 9XX,333.67,
Communities & Local Government,DCLG,10/08/2015,Software Licences,Finance & Corporate Services,BYTES SOFTWARE SERVICES LTD,,Medium,,225273754,5106214705,Software,Read & Write Gold v11.5 user licence,KT22 7TW,586.10,
Communities & Local Government,DCLG,10/08/2015,Steady State Service Provision,Finance & Corporate Services,VODAFONE LTD FORMELY CABLE  & WIREL,,Large,,239869688,5106214739,Business Process Outsourcing Services,PSN WAN Services FY15/16,MK3 5JP,"19,953.58",
Communities & Local Government,DCLG,10/08/2015,Training,Localism,UNIT4 BUSINESS SOFTWARE LIMITED,,Large,,,5106214706,Development and Training,Audit Commission closure: Training to archive dataset,BS20 0PX,800.00,
Communities & Local Government,DCLG,10/08/2015,Vehicle Maintenance,Localism,BABCOCK CRITICAL SERVICES LTD,,Large,,215597451,5106214582,Fleet Management,Consumables 15/16,NG15 0DR,"60,070.24",
Communities & Local Government,DCLG,10/08/2015,Vehicle Maintenance,Localism,BABCOCK CRITICAL SERVICES LTD,,Large,,215597451,5106214681,Fleet Management,Consumables 15/16,NG15 0DR,"49,293.04",
Communities & Local Government,DCLG,10/08/2015,Work In Progress Pre-Cert 40373 Spend,Neighbourhoods,CHESHIRE EAST BOROUGH COUNCIL,,Large,,,7600013294,,Revenue Grant To Be Paid,CW1 2BJ,"166,707.92",Yes
Communities & Local Government,DCLG,10/08/2015,Work In Progress Pre-Cert 40373 Spend,Neighbourhoods,CORNWALL COLLEGE,,,,,7600013283,,Revenue Grant To Be Paid,TR15 3RD,"115,015.19",Yes
Communities & Local Government,DCLG,10/08/2015,Work In Progress Pre-Cert 40373 Spend,Neighbourhoods,CORNWALL COUNCIL,,,,,7600013269,,Revenue Grant To Be Paid,TR1 3AY,"57,184.16",Yes
Communities & Local Government,DCLG,10/08/2015,Work In Progress Pre-Cert 40373 Spend,Neighbourhoods,CORNWALL COUNCIL,,,,,7600013276,,Revenue Grant To Be Paid,TR1 3AY,"36,253.55",Yes
Communities & Local Government,DCLG,10/08/2015,Work In Progress Pre-Cert 40373 Spend,Neighbourhoods,CORNWALL COUNCIL,,,,,7600013277,,Revenue Grant To Be Paid,TR1 3AY,"32,295.04",Yes
Communities & Local Government,DCLG,10/08/2015,Work In Progress Pre-Cert 40373 Spend,Neighbourhoods,CREATIVE ENGLAND LIMITED,,Medium,,,7600013296,,Revenue Grant To Be Paid,BS1 5SP,"11,363.16",Yes
Communities & Local Government,DCLG,10/08/2015,Work In Progress Pre-Cert 40373 Spend,Neighbourhoods,CUMBRIA CHAMBER OF COMMERCE,,Small,,,7600013288,,Revenue Grant To Be Paid,CA3 8DA,"62,554.42",Yes
Communities & Local Government,DCLG,10/08/2015,Work In Progress Pre-Cert 40373 Spend,Neighbourhoods,JACTIN HOUSE LIMITED,,Small,,,7600013282,,Revenue Grant To Be Paid,M4 6AD,"1,728.70",Yes
Communities & Local Government,DCLG,10/08/2015,Work In Progress Pre-Cert 40373 Spend,Neighbourhoods,LANCASTER UNIVERISTY,,,,,7600013270,,Revenue Grant Clawback Offset,LA1 4YW,-301.07,Yes
Communities & Local Government,DCLG,10/08/2015,Work In Progress Pre-Cert 40373 Spend,Neighbourhoods,LANCASTER UNIVERISTY,,,,,7600013270,,Revenue Grant To Be Paid,LA1 4YW,"119,606.07",Yes
Communities & Local Government,DCLG,10/08/2015,Work In Progress Pre-Cert 40373 Spend,Neighbourhoods,LANCASTER UNIVERISTY,,,,,7600013271,,Revenue Grant Clawback Offset,LA1 4YW,-897.46,Yes
Communities & Local Government,DCLG,10/08/2015,Work In Progress Pre-Cert 40373 Spend,Neighbourhoods,LANCASTER UNIVERISTY,,,,,7600013271,,Revenue Grant To Be Paid,LA1 4YW,"185,309.92",Yes
Communities & Local Government,DCLG,10/08/2015,Work In Progress Pre-Cert 40373 Spend,Neighbourhoods,LIVERPOOL SOUND CITY LIMITED,,Micro,,,7600013272,,Revenue Grant To Be Paid,L1 0BW,"46,739.87",Yes
Communities & Local Government,DCLG,10/08/2015,Work In Progress Pre-Cert 40373 Spend,Neighbourhoods,MERSEYSIDE NETWORK FOR EUROPE,,,,,7600013273,,Revenue Grant To Be Paid,L2 2AH,"5,336.15",Yes
Communities & Local Government,DCLG,10/08/2015,Work In Progress Pre-Cert 40373 Spend,Neighbourhoods,MERSEYSIDE NETWORK FOR EUROPE,,,,,7600013274,,Revenue Grant To Be Paid,L2 2AH,"4,352.46",Yes
Communities & Local Government,DCLG,10/08/2015,Work In Progress Pre-Cert 40373 Spend,Neighbourhoods,SHROPSHIRE COUNCIL,,Public Bodies,,,7600013295,,Revenue Grant To Be Paid,SY2 6ND,"5,806.04",Yes
Communities & Local Government,DCLG,10/08/2015,Work In Progress Pre-Cert 40373 Spend,Neighbourhoods,ST HELENS CHAMBER,,Medium,,,7600013290,,Revenue Grant To Be Paid,WA10 1FY,"34,073.47",Yes
Communities & Local Government,DCLG,10/08/2015,Work In Progress Pre-Cert 40373 Spend,Neighbourhoods,TATE LIVERPOOL,,,,,7600013286,,Revenue Grant To Be Paid,L3 4BB,"62,755.40",Yes
Communities & Local Government,DCLG,10/08/2015,Work In Progress Pre-Cert 40373 Spend,Neighbourhoods,UNIVERSITY OF THE WEST OF ENGLAND,,,,,7600013285,,Revenue Grant To Be Paid,BS16 1QY,"109,215.98",Yes
Communities & Local Government,DCLG,10/08/2015,Work In Progress Pre-Cert 40373 Spend,Neighbourhoods,VEDAS SERVICES LTD,,Small,,,7600013287,,Revenue Grant To Be Paid,BB11 1DR,"69,543.89",Yes
Communities & Local Government,DCLG,10/08/2015,Work In Progress Pre-Cert 40467 Spend,Neighbourhoods,ALDER HEY CHILDRENS NHS FOUND'N TRU,,Large,,,7600013275,,Capital Grant To Be Paid,L12 2AP,"975,145.56",Yes
Communities & Local Government,DCLG,10/08/2015,Work In Progress Pre-Cert 40467 Spend,Neighbourhoods,ASHTON (OLD) BATHS LTD,,,,,7600013284,,Capital Grant To Be Paid,M3 4LZ,"68,362.08",Yes
Communities & Local Government,DCLG,10/08/2015,Work In Progress Pre-Cert 40467 Spend,Neighbourhoods,ASHTON (OLD) BATHS LTD,,,,,7600013292,,Capital Grant To Be Paid,M3 4LZ,"149,664.79",Yes
Communities & Local Government,DCLG,10/08/2015,Work In Progress Pre-Cert 40467 Spend,Neighbourhoods,CREATIVE ENGLAND LIMITED,,Medium,,,7600013296,,Capital Grant To Be Paid,BS1 5SP,"971,999.00",Yes
Communities & Local Government,DCLG,10/08/2015,Work In Progress Pre-Cert 40467 Spend,Neighbourhoods,JACTIN HOUSE LIMITED,,Small,,,7600013282,,Capital Grant To Be Paid,M4 6AD,"88,705.00",Yes
Communities & Local Government,DCLG,10/08/2015,Work In Progress Pre-Cert 40467 Spend,Neighbourhoods,LANGTREE LAND AND PORPERTY PLC,,Medium,,,7600013278,,Capital Grant To Be Paid,WA12 9UY,"299,260.99",Yes
Communities & Local Government,DCLG,10/08/2015,Work In Progress Pre-Cert 40467 Spend,Neighbourhoods,LONGMEADOW ESTATES LIMITED,,Micro,,,7600013279,,Capital Grant To Be Paid,CH41 5AZ,"458,823.61",Yes
Communities & Local Government,DCLG,10/08/2015,Work In Progress Pre-Cert 40467 Spend,Neighbourhoods,MANCHESTER UNIVERSITY,,Large,,,7600013281,,Capital Grant To Be Paid,M13 9PL,"603,260.71",Yes
Communities & Local Government,DCLG,10/08/2015,Work In Progress Pre-Cert 40467 Spend,Neighbourhoods,MORLEY ESTATES,,Large,,,7600013291,,Capital Grant To Be Paid,WA14 2QS,"182,245.87",Yes
Communities & Local Government,DCLG,10/08/2015,Work In Progress Pre-Cert 40467 Spend,Neighbourhoods,NEW CAPITAL KNOWSLEY LIMITED,,Micro,,,7600013280,,Capital Grant To Be Paid,WA7 4QX,"163,984.85",Yes
Communities & Local Government,DCLG,10/08/2015,Work In Progress Pre-Cert 40467 Spend,Neighbourhoods,REDSUN DEVELOPMENTS LTD,,,,,7600013289,,Capital Grant To Be Paid,L3 9LQ,"252,356.09",Yes
Communities & Local Government,DCLG,10/08/2015,Work In Progress Pre-Cert 40467 Spend,Neighbourhoods,WIRRAL CHAMBER OF COMMERCE,,,,,7600013293,,Capital Grant To Be Paid,CH41 1FN,"96,786.41",Yes
Communities & Local Government,DCLG,11/08/2015,Accommodation - actuals,Finance & Corporate Services,REDFERN TRAVEL LIMITED,,Small,,213089972,2100256882,Business Travel Accommodation,Consolidated Monthly Travel July Hotels,BD1 3AZ,553.95,
Communities & Local Government,DCLG,11/08/2015,Accommodation - actuals,Finance & Corporate Services,REDFERN TRAVEL LIMITED,,Small,,213089972,2100256882,Business Travel Accommodation,Consolidated Monthly Travel July Hotels,BD1 3AZ,514.99,
Communities & Local Government,DCLG,11/08/2015,Accommodation - actuals,Localism,REDFERN TRAVEL LIMITED,,Small,,213089972,2100256882,Business Travel Accommodation,Consolidated Monthly Travel July Hotels,BD1 3AZ,465.27,
Communities & Local Government,DCLG,11/08/2015,Accommodation - actuals,Localism,REDFERN TRAVEL LIMITED,,Small,,213089972,2100256882,Business Travel Accommodation,Consolidated Monthly Travel July Hotels,BD1 3AZ,263.00,
Communities & Local Government,DCLG,11/08/2015,Accommodation - actuals,Localism,REDFERN TRAVEL LIMITED,,Small,,213089972,2100256882,Business Travel Accommodation,Consolidated Monthly Travel July Hotels,BD1 3AZ,287.93,
Communities & Local Government,DCLG,11/08/2015,Accommodation - actuals,Localism,REDFERN TRAVEL LIMITED,,Small,,213089972,2100256882,Business Travel Accommodation,Consolidated Monthly Travel July Hotels,BD1 3AZ,"2,589.35",
Communities & Local Government,DCLG,11/08/2015,Accommodation - actuals,Localism,REDFERN TRAVEL LIMITED,,Small,,213089972,2100256882,Business Travel Accommodation,Consolidated Monthly Travel July Hotels,BD1 3AZ,488.00,
Communities & Local Government,DCLG,11/08/2015,Accommodation - actuals,Localism,REDFERN TRAVEL LIMITED,,Small,,213089972,2100256882,Business Travel Accommodation,Consolidated Monthly Travel July Hotels,BD1 3AZ,259.00,
Communities & Local Government,DCLG,11/08/2015,Accommodation - actuals,Localism,REDFERN TRAVEL LIMITED,,Small,,213089972,2100256882,Business Travel Accommodation,Consolidated Monthly Travel July Hotels,BD1 3AZ,263.00,
Communities & Local Government,DCLG,11/08/2015,Accommodation - actuals,Localism,REDFERN TRAVEL LIMITED,,Small,,213089972,2100256882,Business Travel Accommodation,Consolidated Monthly Travel July Hotels,BD1 3AZ,372.00,
Communities & Local Government,DCLG,11/08/2015,Accommodation - actuals,Neighbourhoods,REDFERN TRAVEL LIMITED,,Small,,213089972,2100256882,Business Travel Accommodation,Consolidated Monthly Travel July Hotels,BD1 3AZ,276.40,
Communities & Local Government,DCLG,11/08/2015,Accommodation - actuals,Neighbourhoods,REDFERN TRAVEL LIMITED,,Small,,213089972,2100256882,Business Travel Accommodation,Consolidated Monthly Travel July Hotels,BD1 3AZ,286.31,
Communities & Local Government,DCLG,11/08/2015,Accommodation - actuals,Neighbourhoods,REDFERN TRAVEL LIMITED,,Small,,213089972,2100256882,Business Travel Accommodation,Consolidated Monthly Travel July Hotels,BD1 3AZ,"3,639.34",
Communities & Local Government,DCLG,11/08/2015,Accommodation - actuals,Neighbourhoods,REDFERN TRAVEL LIMITED,,Small,,213089972,2100256882,Business Travel Accommodation,Consolidated Monthly Travel July Hotels,BD1 3AZ,"1,206.29",
Communities & Local Government,DCLG,11/08/2015,Accommodation - actuals,Neighbourhoods,REDFERN TRAVEL LIMITED,,Small,,213089972,2100256882,Business Travel Accommodation,Consolidated Monthly Travel July Hotels,BD1 3AZ,259.33,
Communities & Local Government,DCLG,11/08/2015,Accommodation - actuals,Neighbourhoods,REDFERN TRAVEL LIMITED,,Small,,213089972,2100256882,Business Travel Accommodation,Consolidated Monthly Travel July Hotels,BD1 3AZ,602.12,
Communities & Local Government,DCLG,11/08/2015,Accommodation - actuals,Neighbourhoods,REDFERN TRAVEL LIMITED,,Small,,213089972,2100256882,Business Travel Accommodation,Consolidated Monthly Travel July Hotels,BD1 3AZ,389.55,
Communities & Local Government,DCLG,11/08/2015,Accommodation - actuals,Neighbourhoods,REDFERN TRAVEL LIMITED,,Small,,213089972,2100256882,Business Travel Accommodation,Consolidated Monthly Travel July Hotels,BD1 3AZ,638.32,
Communities & Local Government,DCLG,11/08/2015,Accommodation - actuals,Neighbourhoods,REDFERN TRAVEL LIMITED,,Small,,213089972,2100256882,Business Travel Accommodation,Consolidated Monthly Travel July Hotels,BD1 3AZ,644.00,
Communities & Local Government,DCLG,11/08/2015,Accommodation - actuals,Neighbourhoods,REDFERN TRAVEL LIMITED,,Small,,213089972,2100256882,Business Travel Accommodation,Consolidated Monthly Travel July Hotels,BD1 3AZ,"1,111.30",
Communities & Local Government,DCLG,11/08/2015,Accommodation - actuals,"Strategy, Communications and Private Office",REDFERN TRAVEL LIMITED,,Small,,213089972,2100256882,Business Travel Accommodation,Consolidated Monthly Travel July Hotels,BD1 3AZ,466.95,
Communities & Local Government,DCLG,11/08/2015,Accommodation - actuals,Troubled Families,REDFERN TRAVEL LIMITED,,Small,,213089972,2100256882,Business Travel Accommodation,Consolidated Monthly Travel July Hotels,BD1 3AZ,540.98,
Communities & Local Government,DCLG,11/08/2015,Agency Staff,Finance & Corporate Services,INTERQUEST GROUP UK LIMITED,,Large,,423935241,5106214749,Contingent Labour,Charge for SAP technical support,EC1N 8UA,"1,950.30",
Communities & Local Government,DCLG,11/08/2015,Agency Staff,Neighbourhoods,*BROOK STREET BUREAU,,Large,,509700118,5106214754,Contingent Labour,Interim Admin support,AL1 4JB,843.90,
Communities & Local Government,DCLG,11/08/2015,Air Travel,Neighbourhoods,REDFERN TRAVEL LIMITED,,Small,,213089972,2100256882,Air,Consolidated Monthly Travel July Air Tickets,BD1 3AZ,"1,096.44",
Communities & Local Government,DCLG,11/08/2015,Air Travel,Neighbourhoods,REDFERN TRAVEL LIMITED,,Small,,213089972,2100256882,Air,Consolidated Monthly Travel July Air Tickets,BD1 3AZ,563.75,
Communities & Local Government,DCLG,11/08/2015,Air Travel,Neighbourhoods,REDFERN TRAVEL LIMITED,,Small,,213089972,2100256882,Air,Consolidated Monthly Travel July Air Tickets,BD1 3AZ,280.11,
Communities & Local Government,DCLG,11/08/2015,Air Travel,"Strategy, Communications and Private Office",REDFERN TRAVEL LIMITED,,Small,,213089972,2100256882,Air,Consolidated Monthly Travel July Air Tickets,BD1 3AZ,307.50,
Communities & Local Government,DCLG,11/08/2015,Current (non AEF) Grants to Local Authorities,Localism,DEVON & SOMERSET FIRE & RESCUE SERV,,Large,,424872976,5000301795,,Overpayment of Grant recovered by Exchequer,EX3 0NW,"-142,893.00",Yes
Communities & Local Government,DCLG,11/08/2015,Current (non AEF) Grants to Local Authorities,Localism,STAFFORDSHIRE  FIRE & RESCUE SERV,,Large,,232600577,5000301792,,Overpayment of Grant recovered by Exchequer,ST15 0BS,"-132,673.00",Yes
Communities & Local Government,DCLG,11/08/2015,Current Grants to Non Profit Bodies,Neighbourhoods,MARKLOGIC CORPORATION,,Large,,,5106214696,IT Managed / Outsourced Services,FCF Additional Services,CA 94070,"1,950.00",Yes
Communities & Local Government,DCLG,11/08/2015,Current Grants to Non Profit Bodies,Neighbourhoods,ST BASILS CENTRE,,,,,5000301908,,Preventing Homelessness Grant (VOL),B9 4AX,"56,250.00",Yes
Communities & Local Government,DCLG,11/08/2015,IT - Service Contracts,Localism,INFORMED SOLUTIONS LTD,,Small,,346179542,5106214758,IT Managed / Outsourced Services,Incident Recording System bug fix,WA14 4PA,"1,400.00",
Communities & Local Government,DCLG,11/08/2015,IT - Service Contracts,Localism,INFORMED SOLUTIONS LTD,,Small,,346179542,5106214766,IT Managed / Outsourced Services,GPS Managed Services to July 2015,WA14 4PA,"28,712.26",
Communities & Local Government,DCLG,11/08/2015,IT - Service Contracts,Localism,INFORMED SOLUTIONS LTD,,Small,,346179542,5106214767,IT Managed / Outsourced Services,Incident Recording System Service Management,WA14 4PA,"15,505.70",
Communities & Local Government,DCLG,11/08/2015,Management Consultancy,Localism,CAPITA CONFERENCES,,Large,,215580993,5106214493,Consultancy,WPS CAPITA Contract National Resillience,DL1 9HN,"28,494.14",
Communities & Local Government,DCLG,11/08/2015,Office machinery consumables,Finance & Corporate Services,COMPUTACENTER (UK) LTD,,Large,,226023463,5106214765,Office Supplies,Dragon USB Headset,AL10 9TW,133.34,
Communities & Local Government,DCLG,11/08/2015,Office machinery consumables,Finance & Corporate Services,COMPUTACENTER (UK) LTD,,Large,,226023463,5106214765,Office Supplies,InspirationSW Inspiratn 9.2 1U Lic Dwnld,AL10 9TW,178.61,
Communities & Local Government,DCLG,11/08/2015,Physical Storage,Finance & Corporate Services,IRON MOUNTAIN (UK) LIMITED,,Large,,501338354,5106214763,Warehousing and Storage,Offsite Storage -Tapes 2015,EH54 7DF,457.97,
Communities & Local Government,DCLG,11/08/2015,"Rail, Underground and Eurostar",Finance & Corporate Services,REDFERN TRAVEL LIMITED,,Small,,213089972,2100256882,Rail,Consolidated Monthly Travel July Rail,BD1 3AZ,583.62,
Communities & Local Government,DCLG,11/08/2015,"Rail, Underground and Eurostar",Finance & Corporate Services,REDFERN TRAVEL LIMITED,,Small,,213089972,2100256882,Rail,Consolidated Monthly Travel July Rail,BD1 3AZ,259.73,
Communities & Local Government,DCLG,11/08/2015,"Rail, Underground and Eurostar",Finance & Corporate Services,REDFERN TRAVEL LIMITED,,Small,,213089972,2100256882,Rail,Consolidated Monthly Travel July Rail,BD1 3AZ,400.66,
Communities & Local Government,DCLG,11/08/2015,"Rail, Underground and Eurostar",Finance & Corporate Services,REDFERN TRAVEL LIMITED,,Small,,213089972,2100256882,Rail,Consolidated Monthly Travel July Rail,BD1 3AZ,"1,783.94",
Communities & Local Government,DCLG,11/08/2015,"Rail, Underground and Eurostar",Finance & Corporate Services,REDFERN TRAVEL LIMITED,,Small,,213089972,2100256882,Rail,Consolidated Monthly Travel July Rail,BD1 3AZ,"5,512.92",
Communities & Local Government,DCLG,11/08/2015,"Rail, Underground and Eurostar",Finance & Corporate Services,REDFERN TRAVEL LIMITED,,Small,,213089972,2100256882,Rail,Consolidated Monthly Travel July Rail,BD1 3AZ,381.88,
Communities & Local Government,DCLG,11/08/2015,"Rail, Underground and Eurostar",Finance & Corporate Services,REDFERN TRAVEL LIMITED,,Small,,213089972,2100256882,Rail,Consolidated Monthly Travel July Rail,BD1 3AZ,256.05,
Communities & Local Government,DCLG,11/08/2015,"Rail, Underground and Eurostar",Finance & Corporate Services,REDFERN TRAVEL LIMITED,,Small,,213089972,2100256882,Rail,Consolidated Monthly Travel July Rail,BD1 3AZ,760.74,
Communities & Local Government,DCLG,11/08/2015,"Rail, Underground and Eurostar",Finance & Corporate Services,REDFERN TRAVEL LIMITED,,Small,,213089972,2100256882,Rail,Consolidated Monthly Travel July Rail,BD1 3AZ,443.20,
Communities & Local Government,DCLG,11/08/2015,"Rail, Underground and Eurostar",Finance & Corporate Services,REDFERN TRAVEL LIMITED,,Small,,213089972,2100256882,Rail,Consolidated Monthly Travel July Rail,BD1 3AZ,"1,765.32",
Communities & Local Government,DCLG,11/08/2015,"Rail, Underground and Eurostar",Localism,REDFERN TRAVEL LIMITED,,Small,,213089972,2100256882,Rail,Consolidated Monthly Travel July Rail,BD1 3AZ,840.03,
Communities & Local Government,DCLG,11/08/2015,"Rail, Underground and Eurostar",Localism,REDFERN TRAVEL LIMITED,,Small,,213089972,2100256882,Rail,Consolidated Monthly Travel July Rail,BD1 3AZ,"1,048.61",
Communities & Local Government,DCLG,11/08/2015,"Rail, Underground and Eurostar",Localism,REDFERN TRAVEL LIMITED,,Small,,213089972,2100256882,Rail,Consolidated Monthly Travel July Rail,BD1 3AZ,257.52,
Communities & Local Government,DCLG,11/08/2015,"Rail, Underground and Eurostar",Localism,REDFERN TRAVEL LIMITED,,Small,,213089972,2100256882,Rail,Consolidated Monthly Travel July Rail,BD1 3AZ,438.16,
Communities & Local Government,DCLG,11/08/2015,"Rail, Underground and Eurostar",Localism,REDFERN TRAVEL LIMITED,,Small,,213089972,2100256882,Rail,Consolidated Monthly Travel July Rail,BD1 3AZ,"1,526.12",
Communities & Local Government,DCLG,11/08/2015,"Rail, Underground and Eurostar",Localism,REDFERN TRAVEL LIMITED,,Small,,213089972,2100256882,Rail,Consolidated Monthly Travel July Rail,BD1 3AZ,346.86,
Communities & Local Government,DCLG,11/08/2015,"Rail, Underground and Eurostar",Localism,REDFERN TRAVEL LIMITED,,Small,,213089972,2100256882,Rail,Consolidated Monthly Travel July Rail,BD1 3AZ,"1,364.10",
Communities & Local Government,DCLG,11/08/2015,"Rail, Underground and Eurostar",Localism,REDFERN TRAVEL LIMITED,,Small,,213089972,2100256882,Rail,Consolidated Monthly Travel July Rail,BD1 3AZ,"1,444.67",
Communities & Local Government,DCLG,11/08/2015,"Rail, Underground and Eurostar",Localism,REDFERN TRAVEL LIMITED,,Small,,213089972,2100256882,Rail,Consolidated Monthly Travel July Rail,BD1 3AZ,"1,006.65",
Communities & Local Government,DCLG,11/08/2015,"Rail, Underground and Eurostar",Localism,REDFERN TRAVEL LIMITED,,Small,,213089972,2100256882,Rail,Consolidated Monthly Travel July Rail,BD1 3AZ,"1,224.27",
Communities & Local Government,DCLG,11/08/2015,"Rail, Underground and Eurostar",Localism,REDFERN TRAVEL LIMITED,,Small,,213089972,2100256882,Rail,Consolidated Monthly Travel July Rail,BD1 3AZ,788.48,
Communities & Local Government,DCLG,11/08/2015,"Rail, Underground and Eurostar",Localism,REDFERN TRAVEL LIMITED,,Small,,213089972,2100256882,Rail,Consolidated Monthly Travel July Rail,BD1 3AZ,489.88,
Communities & Local Government,DCLG,11/08/2015,"Rail, Underground and Eurostar",Localism,REDFERN TRAVEL LIMITED,,Small,,213089972,2100256882,Rail,Consolidated Monthly Travel July Rail,BD1 3AZ,"1,023.75",
Communities & Local Government,DCLG,11/08/2015,"Rail, Underground and Eurostar",Localism,REDFERN TRAVEL LIMITED,,Small,,213089972,2100256882,Rail,Consolidated Monthly Travel July Rail,BD1 3AZ,424.52,
Communities & Local Government,DCLG,11/08/2015,"Rail, Underground and Eurostar",Localism,REDFERN TRAVEL LIMITED,,Small,,213089972,2100256882,Rail,Consolidated Monthly Travel July Rail,BD1 3AZ,"2,859.32",
Communities & Local Government,DCLG,11/08/2015,"Rail, Underground and Eurostar",Neighbourhoods,REDFERN TRAVEL LIMITED,,Small,,213089972,2100256882,Rail,Consolidated Monthly Travel July Rail,BD1 3AZ,251.69,
Communities & Local Government,DCLG,11/08/2015,"Rail, Underground and Eurostar",Neighbourhoods,REDFERN TRAVEL LIMITED,,Small,,213089972,2100256882,Rail,Consolidated Monthly Travel July Rail,BD1 3AZ,306.86,
Communities & Local Government,DCLG,11/08/2015,"Rail, Underground and Eurostar",Neighbourhoods,REDFERN TRAVEL LIMITED,,Small,,213089972,2100256882,Rail,Consolidated Monthly Travel July Rail,BD1 3AZ,"2,698.62",
Communities & Local Government,DCLG,11/08/2015,"Rail, Underground and Eurostar",Neighbourhoods,REDFERN TRAVEL LIMITED,,Small,,213089972,2100256882,Rail,Consolidated Monthly Travel July Rail,BD1 3AZ,"3,222.17",
Communities & Local Government,DCLG,11/08/2015,"Rail, Underground and Eurostar",Neighbourhoods,REDFERN TRAVEL LIMITED,,Small,,213089972,2100256882,Rail,Consolidated Monthly Travel July Rail,BD1 3AZ,437.59,
Communities & Local Government,DCLG,11/08/2015,"Rail, Underground and Eurostar",Neighbourhoods,REDFERN TRAVEL LIMITED,,Small,,213089972,2100256882,Rail,Consolidated Monthly Travel July Rail,BD1 3AZ,422.06,
Communities & Local Government,DCLG,11/08/2015,"Rail, Underground and Eurostar",Neighbourhoods,REDFERN TRAVEL LIMITED,,Small,,213089972,2100256882,Rail,Consolidated Monthly Travel July Rail,BD1 3AZ,"1,177.49",
Communities & Local Government,DCLG,11/08/2015,"Rail, Underground and Eurostar",Neighbourhoods,REDFERN TRAVEL LIMITED,,Small,,213089972,2100256882,Rail,Consolidated Monthly Travel July Rail,BD1 3AZ,"3,101.97",
Communities & Local Government,DCLG,11/08/2015,"Rail, Underground and Eurostar",Neighbourhoods,REDFERN TRAVEL LIMITED,,Small,,213089972,2100256882,Rail,Consolidated Monthly Travel July Rail,BD1 3AZ,"4,776.40",
Communities & Local Government,DCLG,11/08/2015,"Rail, Underground and Eurostar",Neighbourhoods,REDFERN TRAVEL LIMITED,,Small,,213089972,2100256882,Rail,Consolidated Monthly Travel July Rail,BD1 3AZ,"2,615.81",
Communities & Local Government,DCLG,11/08/2015,"Rail, Underground and Eurostar",Neighbourhoods,REDFERN TRAVEL LIMITED,,Small,,213089972,2100256882,Rail,Consolidated Monthly Travel July Rail,BD1 3AZ,"2,090.06",
Communities & Local Government,DCLG,11/08/2015,"Rail, Underground and Eurostar",Neighbourhoods,REDFERN TRAVEL LIMITED,,Small,,213089972,2100256882,Rail,Consolidated Monthly Travel July Rail,BD1 3AZ,"5,198.53",
Communities & Local Government,DCLG,11/08/2015,"Rail, Underground and Eurostar",Neighbourhoods,REDFERN TRAVEL LIMITED,,Small,,213089972,2100256882,Rail,Consolidated Monthly Travel July Rail,BD1 3AZ,"1,831.93",
Communities & Local Government,DCLG,11/08/2015,"Rail, Underground and Eurostar",Neighbourhoods,REDFERN TRAVEL LIMITED,,Small,,213089972,2100256882,Rail,Consolidated Monthly Travel July Rail,BD1 3AZ,"1,670.66",
Communities & Local Government,DCLG,11/08/2015,"Rail, Underground and Eurostar",Neighbourhoods,REDFERN TRAVEL LIMITED,,Small,,213089972,2100256882,Rail,Consolidated Monthly Travel July Rail,BD1 3AZ,"2,625.99",
Communities & Local Government,DCLG,11/08/2015,"Rail, Underground and Eurostar",Neighbourhoods,REDFERN TRAVEL LIMITED,,Small,,213089972,2100256882,Rail,Consolidated Monthly Travel July Rail,BD1 3AZ,"1,822.97",
Communities & Local Government,DCLG,11/08/2015,"Rail, Underground and Eurostar",Neighbourhoods,REDFERN TRAVEL LIMITED,,Small,,213089972,2100256882,Rail,Consolidated Monthly Travel July Rail,BD1 3AZ,"3,151.83",
Communities & Local Government,DCLG,11/08/2015,"Rail, Underground and Eurostar",Neighbourhoods,REDFERN TRAVEL LIMITED,,Small,,213089972,2100256882,Rail,Consolidated Monthly Travel July Rail,BD1 3AZ,"2,964.89",
Communities & Local Government,DCLG,11/08/2015,"Rail, Underground and Eurostar",Neighbourhoods,REDFERN TRAVEL LIMITED,,Small,,213089972,2100256882,Rail,Consolidated Monthly Travel July Rail,BD1 3AZ,"2,112.49",
Communities & Local Government,DCLG,11/08/2015,"Rail, Underground and Eurostar",Neighbourhoods,REDFERN TRAVEL LIMITED,,Small,,213089972,2100256882,Rail,Consolidated Monthly Travel July Rail,BD1 3AZ,"3,965.63",
Communities & Local Government,DCLG,11/08/2015,"Rail, Underground and Eurostar",Neighbourhoods,REDFERN TRAVEL LIMITED,,Small,,213089972,2100256882,Rail,Consolidated Monthly Travel July Rail,BD1 3AZ,"2,402.96",
Communities & Local Government,DCLG,11/08/2015,"Rail, Underground and Eurostar",Neighbourhoods,REDFERN TRAVEL LIMITED,,Small,,213089972,2100256882,Rail,Consolidated Monthly Travel July Rail,BD1 3AZ,"4,546.08",
Communities & Local Government,DCLG,11/08/2015,"Rail, Underground and Eurostar","Strategy, Communications and Private Office",REDFERN TRAVEL LIMITED,,Small,,213089972,2100256882,Rail,Consolidated Monthly Travel July Rail,BD1 3AZ,831.83,
Communities & Local Government,DCLG,11/08/2015,"Rail, Underground and Eurostar","Strategy, Communications and Private Office",REDFERN TRAVEL LIMITED,,Small,,213089972,2100256882,Rail,Consolidated Monthly Travel July Rail,BD1 3AZ,"1,170.75",
Communities & Local Government,DCLG,11/08/2015,"Rail, Underground and Eurostar","Strategy, Communications and Private Office",REDFERN TRAVEL LIMITED,,Small,,213089972,2100256882,Rail,Consolidated Monthly Travel July Rail,BD1 3AZ,296.07,
Communities & Local Government,DCLG,11/08/2015,"Rail, Underground and Eurostar","Strategy, Communications and Private Office",REDFERN TRAVEL LIMITED,,Small,,213089972,2100256882,Rail,Consolidated Monthly Travel July Rail,BD1 3AZ,515.70,
Communities & Local Government,DCLG,11/08/2015,"Rail, Underground and Eurostar","Strategy, Communications and Private Office",REDFERN TRAVEL LIMITED,,Small,,213089972,2100256882,Rail,Consolidated Monthly Travel July Rail,BD1 3AZ,425.15,
Communities & Local Government,DCLG,11/08/2015,"Rail, Underground and Eurostar","Strategy, Communications and Private Office",REDFERN TRAVEL LIMITED,,Small,,213089972,2100256882,Rail,Consolidated Monthly Travel July Rail,BD1 3AZ,376.04,
Communities & Local Government,DCLG,11/08/2015,"Rail, Underground and Eurostar","Strategy, Communications and Private Office",REDFERN TRAVEL LIMITED,,Small,,213089972,2100256882,Rail,Consolidated Monthly Travel July Rail,BD1 3AZ,994.55,
Communities & Local Government,DCLG,11/08/2015,"Rail, Underground and Eurostar",Troubled Families,REDFERN TRAVEL LIMITED,,Small,,213089972,2100256882,Rail,Consolidated Monthly Travel July Rail,BD1 3AZ,"4,508.66",
Communities & Local Government,DCLG,11/08/2015,Research,Neighbourhoods,BUILDING RESEARCH ESTABLISHMENT,,Large,,896495033,5106214744,Research,Milestone 1: Quarterly Progress Report,WD25 9XX,"21,252.00",
Communities & Local Government,DCLG,11/08/2015,Steady State Service Provision,Finance & Corporate Services,ALLPAY LIMITED,,Medium,,738359918,5106214699,Business Process Outsourcing Services,DC/DC Transaction Charges,HR1 3SE,469.30,
Communities & Local Government,DCLG,11/08/2015,Steady State Service Provision,Finance & Corporate Services,ALLPAY LIMITED,,Medium,,738359918,5106214699,Business Process Outsourcing Services,Monthly Management Fee Payments,HR1 3SE,500.00,
Communities & Local Government,DCLG,11/08/2015,Water,Finance & Corporate Services,SEVERN TRENT WATER LTD,,Large,,234404465,5106214761,Operation of Water Supplies and Distribution,2015/16 St Philips B ham Annual Water,CV3 9FJ,723.91,
Communities & Local Government,DCLG,11/08/2015,Work In Progress Pre-Cert 40373 Spend,Neighbourhoods,LEICESTER UNIVERSITY,,Large,,,7600013297,,Revenue Grant To Be Paid,LE1 7RH,"64,700.91",Yes
Communities & Local Government,DCLG,11/08/2015,Work In Progress Pre-Cert 40373 Spend,Neighbourhoods,NORTH TYNESIDE COUNCIL,,,,,7600013298,,Revenue Grant To Be Paid,NE27 0BY,"2,882.75",Yes
Communities & Local Government,DCLG,11/08/2015,Work In Progress Pre-Cert 40373 Spend,Neighbourhoods,NORTHUM'LAND BUSINESS SERVICES LTD,,,,,7600013299,,Revenue Grant To Be Paid,NE63 8QZ,"199,616.06",Yes
Communities & Local Government,DCLG,11/08/2015,Work In Progress Pre-Cert 40373 Spend,Neighbourhoods,NOTTINGHAM UNIVERSITY,,Large,,,7600013300,,Revenue Grant To Be Paid,NG7 2RD,"20,620.13",Yes
Communities & Local Government,DCLG,11/08/2015,Work In Progress Pre-Cert 40373 Spend,Neighbourhoods,PRINCES TRUST,,Medium,,,7600013301,,Revenue Grant To Be Paid,B9 4AA,"30,915.71",Yes
Communities & Local Government,DCLG,11/08/2015,Work In Progress Pre-Cert 40467 Spend,Neighbourhoods,NORTH TYNESIDE COUNCIL,,,,,7600013298,,Capital Grant To Be Paid,NE27 0BY,"731,402.04",Yes
Communities & Local Government,DCLG,12/08/2015,Current (non AEF) Grants to Local Authorities,Localism,CHESHIRE FIRE AUTHORITY,,,,424872737,5000301789,,Overpayment of Grant recovered by Exchequer,CW7 2FQ,"-4,111.00",Yes
Communities & Local Government,DCLG,12/08/2015,Current (non AEF) Grants to Local Authorities,Localism,CLEVELAND FIRE AUTHORITY,,Medium,,424872778,5000301784,,Overpayment of Grant recovered by Exchequer,TS25 5TB,"-187,199.00",Yes
Communities & Local Government,DCLG,12/08/2015,Current (non AEF) Grants to Local Authorities,Localism,STAFFORDSHIRE  FIRE & RESCUE SERV,,Large,,232600577,5000301882,,Overpayment of Grant recovered by Exchequer,ST15 0BS,"-304,630.00",Yes
Communities & Local Government,DCLG,12/08/2015,Electricity,Finance & Corporate Services,EDF ENERGY 1 LIMITED,,Large,,230840469,5106214780,Energy,EoE Waterbeach Electricity 2015-16,PL3 5XQ,"3,037.09",
Communities & Local Government,DCLG,12/08/2015,Finance Consultancy,Finance & Corporate Services,H M TREASURY,,Public Bodies,,233590996,5106214779,Consultancy,GIAA ERDF Audit Asssurance,NR7 0HS,"700,000.00",
Communities & Local Government,DCLG,12/08/2015,IT - Service Contracts,Finance & Corporate Services,DAISY CORPORATE SERVICES LTD,,Large,,221481042,5106214755,IT Managed / Outsourced Services,3mth Extension to 30/6/15,BB9 5SR,"2,836.80",
Communities & Local Government,DCLG,12/08/2015,IT - Service Contracts,Localism,ESRI (UK) LIMITED,,Large,,226271518,5106214673,IT Managed / Outsourced Services,FireNet SaaS migration - Discovery phase,HP21 7QG,"6,565.00",
Communities & Local Government,DCLG,12/08/2015,IT - Software Maintenance,Finance & Corporate Services,BLAZIE LTD,,Small,,,5106214771,IT Managed / Outsourced Services,JAWS Consultancy/Support,HA4 9NA,960.00,
Communities & Local Government,DCLG,12/08/2015,IT - Software Maintenance,Finance & Corporate Services,BLAZIE LTD,,Small,,,5106214782,IT Managed / Outsourced Services,JAWS Consultancy/Support,HA4 9NA,-480.00,
Communities & Local Government,DCLG,12/08/2015,Online Database Information Retrieval,Finance & Corporate Services,DOW JONES REUTERS BUS INTERACT,,Large,,221036630,5106214776,ICT Services,Factiva DJX 2015-16,E1W 1AZ,976.50,
Communities & Local Government,DCLG,12/08/2015,Professional services,Neighbourhoods,VALUATION OFFICE AGENCY,,Public Bodies,,215253886,5106214805,Financial,Valuation Fees,W1B 5BU,792.00,
Communities & Local Government,DCLG,12/08/2015,Publicity,"Strategy, Communications and Private Office",PRESS ASSOCIATION,,Large,,217191704,5106214642,Advertising,PRESS ASSOCIATION (PA) 2014-17,DN14 7YH,"1,325.74",
Communities & Local Government,DCLG,12/08/2015,Research,Troubled Families,MARKET & OPINION RESEARCH INT LTD,,Large,,227257185,5106214806,Research,Conduct Fieldwork,E1W 1YW,"67,419.00",
Communities & Local Government,DCLG,12/08/2015,Services provided by other Govt Orgs,Finance & Corporate Services,GOVERNMENT PROCUREMENT SERVICE,,Public Bodies,,,5106214789,Business Process Outsourcing Services,Q1 2015/16,L3 9PP,"250,000.00",Yes
Communities & Local Government,DCLG,12/08/2015,Software Licences,Finance & Corporate Services,BYTES SOFTWARE SERVICES LTD,,Medium,,225273754,5106214770,Software,Dragon Nat Speaking Prof Licence 13,KT22 7TW,829.15,
Communities & Local Government,DCLG,12/08/2015,Steady State Service Provision,Neighbourhoods,AECOM LIMITED,,Large,,225157072,5106214709,Business Process Outsourcing Services,Ebbsfleet Garden City:Development Report,AL1 3ER,"12,026.40",
Communities & Local Government,DCLG,12/08/2015,Subscriptions,"Strategy, Communications and Private Office",LOCAL GOVERNMENT ASSOCIATION,,Public Bodies,,763817103,5106214785,Subscriptions and Admissions,Attendance at LGA Conference,SW1P 3HZ,495.00,
Communities & Local Government,DCLG,12/08/2015,Vehicle hire,"Strategy, Communications and Private Office",GOVERNMENT CAR & DESPATCH AGENCY,,Public Bodies,,,5106214786,Vehicle Hire and Lease,Ministerial Cars 2015-16,SW8 5AX,420.00,
Communities & Local Government,DCLG,12/08/2015,Web Services,"Strategy, Communications and Private Office",MEMSET,,Small,,641014779,5106214775,ICT Services,Mini server hosting Feb 2015 to Feb 2016,GU2 7YD,437.40,
Communities & Local Government,DCLG,12/08/2015,Work In Progress Pre-Cert 40373 Spend,Neighbourhoods,GLOUCESTERSHIRE UNIVERSITY,,,,,7600013303,,Revenue Grant To Be Paid,GL50 2RH,"26,411.98",Yes
Communities & Local Government,DCLG,12/08/2015,Work In Progress Pre-Cert 40373 Spend,Neighbourhoods,SERCO REGIONAL SERVICES LTD,,,,,7600013305,,Revenue Grant To Be Paid,PL6 8LU,"125,719.95",Yes
Communities & Local Government,DCLG,12/08/2015,Work In Progress Pre-Cert 40467 Spend,Neighbourhoods,COVENTRY CITY COUNCIL,,Large,,,7600013304,,Capital Grant To Be Paid,CV1 5RR,"31,423.77",Yes
Communities & Local Government,DCLG,12/08/2015,Work In Progress Pre-Cert 40467 Spend,Neighbourhoods,KERNOW COATINGS LTD,,Medium,,,7600013302,,Capital Grant To Be Paid,TR10 9DQ,"121,465.36",Yes
Communities & Local Government,DCLG,12/08/2015,Work In Progress Pre-Cert 40467 Spend,Neighbourhoods,SERCO REGIONAL SERVICES LTD,,,,,7600013305,,Capital Grant To Be Paid,PL6 8LU,"9,174.72",Yes
Communities & Local Government,DCLG,13/08/2015,Current (non AEF) Grants to Local Authorities,Localism,DEVON & SOMERSET FIRE & RESCUE SERV,,Large,,424872976,5000301884,,Overpayment of Grant recovered by Exchequer,EX3 0NW,"-390,683.00",Yes
Communities & Local Government,DCLG,13/08/2015,Electricity,Finance & Corporate Services,EDF ENERGY 1 LIMITED,,Large,,230840469,5106214283,Energy,St Philips Place Electricity 2015-16,PL3 5XQ,"-11,712.30",
Communities & Local Government,DCLG,13/08/2015,Electricity,Finance & Corporate Services,EDF ENERGY 1 LIMITED,,Large,,230840469,5106214466,Energy,SW Taunton Electricity 2015-16,PL3 5XQ,"-2,584.49",
Communities & Local Government,DCLG,13/08/2015,Electricity,Finance & Corporate Services,EDF ENERGY 1 LIMITED,,Large,,230840469,5106214811,Energy,Y&H Wakefield Electricity 2015-16,PL3 5XQ,"3,225.85",
Communities & Local Government,DCLG,13/08/2015,IT - Service Contracts,Finance & Corporate Services,TRIAD GROUP PLC,,Medium,,,5106214820,IT Managed / Outsourced Services,Additional Alpha Phase Costs,GU7 1XE,"1,535.00",
Communities & Local Government,DCLG,13/08/2015,IT - Service Contracts,Finance & Corporate Services,TRIAD GROUP PLC,,Medium,,,5106214820,IT Managed / Outsourced Services,Alpha Phase work,GU7 1XE,"21,145.00",
Communities & Local Government,DCLG,13/08/2015,IT - Service Contracts,Finance & Corporate Services,TRIAD GROUP PLC,,Medium,,,5106214821,IT Managed / Outsourced Services,SharePoint Architectural Options Report,GU7 1XE,"2,970.00",
Communities & Local Government,DCLG,13/08/2015,IT - Service Contracts,Finance & Corporate Services,VERIZON UK LTD,,Large,,346786171,5106214827,IT Managed / Outsourced Services,FY15-16 TESA DEDICATED Hosting 10125855,RG2 6DA,"6,517.38",
Communities & Local Government,DCLG,13/08/2015,Legal Fees,Finance & Corporate Services,GOVERNMENT LEGAL DEPARTMENT,,Public Bodies,,215580680,2100256919,Legal,Legal Advice,WC2B 4TS,"35,000.00",
Communities & Local Government,DCLG,13/08/2015,Professional services,Finance & Corporate Services,GVA GRIMLEY LTD,,Large,,210158990,5106214740,Business Support,Com 161 Sen Surveyor Est Rationalisation,B1 2JB,"4,050.00",
Communities & Local Government,DCLG,13/08/2015,Professional services,Finance & Corporate Services,GVA GRIMLEY LTD,,Large,,210158990,5106214741,Business Support,Com 162 Sen Surveyor Est Rationalisation,B1 2JB,"6,210.00",
Communities & Local Government,DCLG,13/08/2015,Recruitment,Finance & Corporate Services,DISCLOSURE SCOTLAND,,Micro,,210312811,5106214799,Business Process Outsourcing Services,Recruitment Security CRB Vetting 14/15,G51 1YU,"1,100.00",
Communities & Local Government,DCLG,13/08/2015,Research,Finance & Corporate Services,ECORYS UK LTD,,Medium,,,5106214823,Research,Research - Troubled Families,B1 2RA,"20,179.20",
Communities & Local Government,DCLG,13/08/2015,Work In Progress Pre-Cert 40373 Spend,Neighbourhoods,ANGLIA RUSKIN UNIVERSITY,,,,,7600013323,,Revenue Grant Clawback Offset,CM1 1SQ,"-14,698.18",Yes
Communities & Local Government,DCLG,13/08/2015,Work In Progress Pre-Cert 40373 Spend,Neighbourhoods,ANGLIA RUSKIN UNIVERSITY,,,,,7600013323,,Revenue Grant To Be Paid,CM1 1SQ,"302,905.08",Yes
Communities & Local Government,DCLG,13/08/2015,Work In Progress Pre-Cert 40373 Spend,Neighbourhoods,BIRMINGHAM SCIENCE PARK ASTON,,Small,,,7600013312,,Revenue Grant To Be Paid,B7 4BB,"31,675.08",Yes
Communities & Local Government,DCLG,13/08/2015,Work In Progress Pre-Cert 40373 Spend,Neighbourhoods,CORNWALL DEVELOPMENT COMPANY LTD,,,,,7600013313,,Revenue Grant To Be Paid,TR1 1EA,"85,455.22",Yes
Communities & Local Government,DCLG,13/08/2015,Work In Progress Pre-Cert 40373 Spend,Neighbourhoods,COVENTRY CITY COUNCIL,,Large,,,7600013317,,Revenue Grant To Be Paid,CV1 5RR,"1,473.38",Yes
Communities & Local Government,DCLG,13/08/2015,Work In Progress Pre-Cert 40373 Spend,Neighbourhoods,COVENTRY CITY COUNCIL,,Large,,,7600013318,,Revenue Grant To Be Paid,CV1 5RR,"2,316.96",Yes
Communities & Local Government,DCLG,13/08/2015,Work In Progress Pre-Cert 40373 Spend,Neighbourhoods,IFM EDUCATION & CONSULTANCY SERVICE,,Small,,,7600013322,,Revenue Grant To Be Paid,CB3 0FS,"91,003.56",Yes
Communities & Local Government,DCLG,13/08/2015,Work In Progress Pre-Cert 40373 Spend,Neighbourhoods,LEICESTER CITY COUNCIL,,Large,,,7600013306,,Revenue Grant To Be Paid,LE1 6ZG,"1,799.45",Yes
Communities & Local Government,DCLG,13/08/2015,Work In Progress Pre-Cert 40373 Spend,Neighbourhoods,LEICESTER CITY COUNCIL,,Large,,,7600013307,,Revenue Grant To Be Paid,LE1 6ZG,"1,003.60",Yes
Communities & Local Government,DCLG,13/08/2015,Work In Progress Pre-Cert 40373 Spend,Neighbourhoods,MERSEY MARTIME LTD,,Micro,,,7600013315,,Revenue Grant To Be Paid,CH41 5LH,"1,772.61",Yes
Communities & Local Government,DCLG,13/08/2015,Work In Progress Pre-Cert 40373 Spend,Neighbourhoods,SOLIHULL METROPOLITAN BC,,Large,,,7600013308,,Revenue Grant To Be Paid,B91 3QS,"6,413.76",Yes
Communities & Local Government,DCLG,13/08/2015,Work In Progress Pre-Cert 40373 Spend,Neighbourhoods,STOKE-ON-TRENT CITY COUNCIL,,Large,,,7600013309,,Revenue Grant To Be Paid,ST4 1HP,"9,117.01",Yes
Communities & Local Government,DCLG,13/08/2015,Work In Progress Pre-Cert 40373 Spend,Neighbourhoods,STOKE-ON-TRENT CITY COUNCIL,,Large,,,7600013310,,Revenue Grant To Be Paid,ST4 1HP,"3,434.81",Yes
Communities & Local Government,DCLG,13/08/2015,Work In Progress Pre-Cert 40373 Spend,Neighbourhoods,STOKE-ON-TRENT CITY COUNCIL,,Large,,,7600013311,,Revenue Grant To Be Paid,ST4 1HP,"38,225.69",Yes
Communities & Local Government,DCLG,13/08/2015,Work In Progress Pre-Cert 40373 Spend,Neighbourhoods,UNIVERSITY OF EXETER,,,,,7600013314,,Revenue Grant To Be Paid,EX4 4QJ,"86,497.73",Yes
Communities & Local Government,DCLG,13/08/2015,Work In Progress Pre-Cert 40373 Spend,Neighbourhoods,WORCESTERSHIRE COUNTY COUNCIL,,Public Bodies,,,7600013316,,Revenue Grant To Be Paid,WR5 2NP,"5,155.10",Yes
Communities & Local Government,DCLG,13/08/2015,Work In Progress Pre-Cert 40467 Spend,Neighbourhoods,CORNWALL DEVELOPMENT COMPANY LTD,,,,,7600013313,,Capital Grant To Be Paid,TR1 1EA,"119,714.82",Yes
Communities & Local Government,DCLG,13/08/2015,Work In Progress Pre-Cert 40467 Spend,Neighbourhoods,COVENTRY CITY COUNCIL,,Large,,,7600013317,,Capital Grant To Be Paid,CV1 5RR,"29,765.34",Yes
Communities & Local Government,DCLG,13/08/2015,Work In Progress Pre-Cert 40467 Spend,Neighbourhoods,COVENTRY CITY COUNCIL,,Large,,,7600013318,,Capital Grant To Be Paid,CV1 5RR,"53,817.92",Yes
Communities & Local Government,DCLG,13/08/2015,Work In Progress Pre-Cert 40467 Spend,Neighbourhoods,COVENTRY CITY COUNCIL,,Large,,,7600013319,,Capital Grant To Be Paid,CV1 5RR,"52,907.69",Yes
Communities & Local Government,DCLG,13/08/2015,Work In Progress Pre-Cert 40467 Spend,Neighbourhoods,COVENTRY CITY COUNCIL,,Large,,,7600013320,,Capital Grant To Be Paid,CV1 5RR,"20,751.81",Yes
Communities & Local Government,DCLG,13/08/2015,Work In Progress Pre-Cert 40467 Spend,Neighbourhoods,COVENTRY CITY COUNCIL,,Large,,,7600013321,,Capital Grant To Be Paid,CV1 5RR,"293,359.56",Yes
Communities & Local Government,DCLG,13/08/2015,Work In Progress Pre-Cert 40467 Spend,Neighbourhoods,UNIVERSITY OF EXETER,,,,,7600013314,,Capital Grant To Be Paid,EX4 4QJ,"27,830.26",Yes
Communities & Local Government,DCLG,13/08/2015,Work In Progress Pre-Cert 40467 Spend,Neighbourhoods,WORCESTERSHIRE COUNTY COUNCIL,,Public Bodies,,,7600013316,,Capital Grant To Be Paid,WR5 2NP,"97,757.09",Yes
Communities & Local Government,DCLG,14/08/2015,Agency Staff,Finance & Corporate Services,CAPITA BUS. SERV. LTD (CON LAB),,Large,,,5106214869,Contingent Labour,Interim Manager,DL1 9HB,"1,780.13",
Communities & Local Government,DCLG,14/08/2015,Agency Staff,Finance & Corporate Services,CAPITA BUS. SERV. LTD (CON LAB),,Large,,,5106214874,Contingent Labour,Interim Manager,DL1 9HB,"-2,353.14",
Communities & Local Government,DCLG,14/08/2015,Agency Staff,Localism,CAPITA BUS. SERV. LTD (CON LAB),,Large,,,5106214853,Contingent Labour,Incident Recording System Senior Enterprise Architect,DL1 9HB,"1,427.98",
Communities & Local Government,DCLG,14/08/2015,Agency Staff,Neighbourhoods,*BROOK STREET BUREAU,,Large,,509700118,5106214871,Contingent Labour,Interim Admin support,AL1 4JB,855.79,
Communities & Local Government,DCLG,14/08/2015,Agency Staff,Neighbourhoods,CAPITA BUS. SERV. LTD (CON LAB),,Large,,,5106214855,Contingent Labour,Interim Manager,DL1 9HB,"1,352.28",
Communities & Local Government,DCLG,14/08/2015,Agency Staff,Neighbourhoods,CAPITA BUS. SERV. LTD (CON LAB),,Large,,,5106214856,Contingent Labour,Interim Manager,DL1 9HB,"3,926.88",
Communities & Local Government,DCLG,14/08/2015,Agency Staff,Neighbourhoods,CAPITA BUS. SERV. LTD (CON LAB),,Large,,,5106214858,Contingent Labour,Interim Manager,DL1 9HB,"2,342.20",
Communities & Local Government,DCLG,14/08/2015,Agency Staff,Neighbourhoods,CAPITA BUS. SERV. LTD (CON LAB),,Large,,,5106214859,Contingent Labour,Expenses,DL1 9HB,31.98,
Communities & Local Government,DCLG,14/08/2015,Agency Staff,Neighbourhoods,CAPITA BUS. SERV. LTD (CON LAB),,Large,,,5106214859,Contingent Labour,Interim Manager,DL1 9HB,"5,912.68",
Communities & Local Government,DCLG,14/08/2015,Agency Staff,Neighbourhoods,CAPITA BUS. SERV. LTD (CON LAB),,Large,,,5106214860,Contingent Labour,Interim Manager,DL1 9HB,"2,158.60",
Communities & Local Government,DCLG,14/08/2015,Agency Staff,Neighbourhoods,CAPITA BUS. SERV. LTD (CON LAB),,Large,,,5106214861,Contingent Labour,Interim Manager,DL1 9HB,"2,060.74",
Communities & Local Government,DCLG,14/08/2015,Agency Staff,Neighbourhoods,CAPITA BUS. SERV. LTD (CON LAB),,Large,,,5106214862,Contingent Labour,Expenses,DL1 9HB,"1,855.88",
Communities & Local Government,DCLG,14/08/2015,Agency Staff,Neighbourhoods,CAPITA BUS. SERV. LTD (CON LAB),,Large,,,5106214862,Contingent Labour,Externally funded Interim Manager,DL1 9HB,"10,699.13",
Communities & Local Government,DCLG,14/08/2015,Agency Staff,Neighbourhoods,CAPITA BUS. SERV. LTD (CON LAB),,Large,,,5106214866,Contingent Labour,Interim Manager,DL1 9HB,"3,285.18",
Communities & Local Government,DCLG,14/08/2015,Agency Staff,Neighbourhoods,CAPITA BUS. SERV. LTD (CON LAB),,Large,,,5106214867,Contingent Labour,Interim Manager,DL1 9HB,"5,695.56",
Communities & Local Government,DCLG,14/08/2015,Agency Staff,Neighbourhoods,CAPITA BUS. SERV. LTD (CON LAB),,Large,,,5106214870,Contingent Labour,Interim Manager,DL1 9HB,"1,561.54",
Communities & Local Government,DCLG,14/08/2015,Current Grants to Non Profit Bodies,Neighbourhoods,CENTRE FOR ENGINEERING & MANUF EXCE,,,,,2100256931,,Capital Grant to be paid,RM13 8EU,"127,863.00",Yes
Communities & Local Government,DCLG,14/08/2015,Current Grants to Non Profit Bodies,Neighbourhoods,TPAS LTD,Yes,Small,,399552603,2100256930,,Tennant Empowerment Programme,M16 0LD,"13,865.00",Yes
Communities & Local Government,DCLG,14/08/2015,Current Grants to Non Profit Bodies,Neighbourhoods,WOMEN'S AID FEDERATION,Yes,,,,5000304485,,Preventing Homelessness Grant (VOL),BS2 2EH,"41,250.00",Yes
Communities & Local Government,DCLG,14/08/2015,Electricity,Finance & Corporate Services,EDF ENERGY 1 LIMITED,,Large,,230840469,5106214852,Energy,SW Taunton Electricity 2015-16,PL3 5XQ,"2,741.30",
Communities & Local Government,DCLG,14/08/2015,IT - Service Contracts,Localism,VERIZON UK LTD,,Large,,346786171,5106214848,IT Managed / Outsourced Services,FY15-16 IRS Common Hosting 10126249,RG2 6DA,"3,411.07",
Communities & Local Government,DCLG,14/08/2015,IT - Software Maintenance,Finance & Corporate Services,LOCKHEED MARTIN BUSINESS TECH SOLUT,,Large,,399909910,5106214849,IT Managed / Outsourced Services,MCIS/TESA support services FY15/16,PA4 9LH,"48,108.00",
Communities & Local Government,DCLG,14/08/2015,Mobile phone costs,Localism,7E COMMUNICATIONS LTD,,Micro,,396850240,5106214851,Telecoms,Sat Phones for New Dimensions,KT8 2FF,672.01,
Communities & Local Government,DCLG,14/08/2015,Physical Storage,Finance & Corporate Services,TNT UK LIMITED,,Large,,,5106214800,Warehousing and Storage,Offsite Records Storage FYR 15/16,BL10 9GR,"3,984.94",
Communities & Local Government,DCLG,14/08/2015,Physical Storage,Finance & Corporate Services,TNT UK LIMITED,,Large,,,5106214841,Warehousing and Storage,Offsite Records Storage FYR 15/16,BL10 9GR,287.64,
Communities & Local Government,DCLG,14/08/2015,Physical Storage,Finance & Corporate Services,TNT UK LIMITED,,Large,,,5106214842,Warehousing and Storage,Offsite Records Storage FYR 15/16,BL10 9GR,876.93,
Communities & Local Government,DCLG,14/08/2015,Physical Storage,Finance & Corporate Services,TNT UK LIMITED,,Large,,,5106214845,Warehousing and Storage,Offsite Records Storage FYR 15/16,BL10 9GR,"27,396.77",
Communities & Local Government,DCLG,14/08/2015,Physical Storage,Finance & Corporate Services,TNT UK LIMITED,,Large,,,5106214846,Warehousing and Storage,Offsite Records Storage FYR 15/16,BL10 9GR,"1,547.24",
Communities & Local Government,DCLG,14/08/2015,Services provided by other Govt Orgs,Localism,MINISTRY OF DEFENCE,,Public Bodies,,,2100256934,Financial,Jan to March 2015 - MOD Charges,L3 3YL,"54,268.49",Yes
Communities & Local Government,DCLG,14/08/2015,Training,Finance & Corporate Services,EURO ACADAMY TAXES ECONOMICS & LAW,,Small,,331464701,5106214829,Development and Training,Seminar Berlin September,10117,826.00,
Communities & Local Government,DCLG,14/08/2015,Training,Finance & Corporate Services,EURO ACADAMY TAXES ECONOMICS & LAW,,Small,,331464701,5106214829,Development and Training,Seminar Berlin September,10117,826.00,
Communities & Local Government,DCLG,14/08/2015,Training,Neighbourhoods,R T P I CONFERENCES,,Medium,,504955154,5106214854,Development and Training,Young planners conference 8/9 Oct,EC1V 1AW,675.00,
Communities & Local Government,DCLG,14/08/2015,Work In Progress Pre-Cert 40373 Spend,Neighbourhoods,LEEDS CITY COUNCIL,,,,,7600013326,,Revenue Grant Clawback Offset,LS1 1UR,-742.35,Yes
Communities & Local Government,DCLG,14/08/2015,Work In Progress Pre-Cert 40373 Spend,Neighbourhoods,LEEDS CITY COUNCIL,,,,,7600013326,,Revenue Grant To Be Paid,LS1 1UR,"4,643.80",Yes
Communities & Local Government,DCLG,14/08/2015,Work In Progress Pre-Cert 40373 Spend,Neighbourhoods,UNIVERSITY OF BATH,,,,,7600013324,,Revenue Grant Clawback Offset,BA2 7AY,-29.49,Yes
Communities & Local Government,DCLG,14/08/2015,Work In Progress Pre-Cert 40373 Spend,Neighbourhoods,UNIVERSITY OF BATH,,,,,7600013324,,Revenue Grant To Be Paid,BA2 7AY,"32,600.64",Yes
Communities & Local Government,DCLG,14/08/2015,Work In Progress Pre-Cert 40467 Spend,Neighbourhoods,SHEFFIELD  CC,,,,,7600013325,,Capital Grant Clawback Offset,S1 2SH,"-48,427.25",Yes
Communities & Local Government,DCLG,14/08/2015,Work In Progress Pre-Cert 40467 Spend,Neighbourhoods,SHEFFIELD  CC,,,,,7600013325,,Capital Grant To Be Paid,S1 2SH,"308,290.75",Yes
Communities & Local Government,DCLG,14/08/2015,Work In Progress Pre-Cert 40467 Spend,Neighbourhoods,SHEFFIELD  CC,,,,,7600013329,,Capital Grant To Be Paid,S1 2SH,"141,670.77",Yes
Communities & Local Government,DCLG,14/08/2015,Work In Progress Pre-Cert 40467 Spend,Neighbourhoods,STOCKSBRIDGE REGENERATION CO LTD,,,,,7600013327,,Capital Grant To Be Paid,S36 6DT,"473,977.94",Yes
Communities & Local Government,DCLG,14/08/2015,Work In Progress Pre-Cert 40467 Spend,Neighbourhoods,STOCKSBRIDGE REGENERATION CO LTD,,,,,7600013328,,Capital Grant To Be Paid,S36 6DT,"146,966.63",Yes
Communities & Local Government,DCLG,17/08/2015,Agency Staff,Finance & Corporate Services,BROOK STREET UK LTD,,Large,,364940028,5106214907,Contingent Labour,Support worker for staff interim measure,PE1 1SY,419.52,
Communities & Local Government,DCLG,17/08/2015,Agency Staff,Finance & Corporate Services,CAPITA BUS. SERV. LTD (CON LAB),,Large,,,5106214912,Contingent Labour,Interim Manager,DL1 9HB,"2,937.72",
Communities & Local Government,DCLG,17/08/2015,Cap Grants to Private Sector Companies,Neighbourhoods,AVANTI HYLAS 2 LIMITED,,,,,2100256924,,RGF - Avanti Goonhilly,EC2A 3AY,"73,209.00",Yes
Communities & Local Government,DCLG,17/08/2015,Cap Grants to Private Sector Companies,Neighbourhoods,DAVID BROWN WIND UK LTD,,,,,2100256923,,RGF - David Brown Wind UK Ltd,HD4 5DD,"6,166.00",Yes
Communities & Local Government,DCLG,17/08/2015,Cap Grants to Private Sector Companies,Neighbourhoods,E2V TECHNOLOGIES (UK) LTD,,Large,,217053131,2100256920,,RGF - Cancer Radiotherapy The Next Wave,CM1 2QU,"150,681.00",Yes
Communities & Local Government,DCLG,17/08/2015,Cap Grants to Private Sector Companies,Neighbourhoods,FAINIUM LTD,,Large,,,2100256921,,RGF - Ultrafast Fibre Lasers,SO31 4RA,"7,459.00",Yes
Communities & Local Government,DCLG,17/08/2015,Cap Grants to Private Sector Companies,Neighbourhoods,WEST OF ENGLAND UNIVERSITY,,Large,,217032499,2100256925,,RGF - West of England University,BS16 1QY,"255,836.00",Yes
Communities & Local Government,DCLG,17/08/2015,Capital Grant to LA Replace Loan Nonbud,Neighbourhoods,DERBY CITY COUNCIL,,Large,,229641378,2100256917,,RGF - Derby Employment Task Force,DE1 2YL,"1,576,653.00",Yes
Communities & Local Government,DCLG,17/08/2015,Capital Grant to LA Replace Loan Nonbud,Neighbourhoods,KENT COUNTY COUNCIL,,Public Bodies,,210298405,2100256918,,RGF - Journey Time Improvement Scheme,ME14 1RF,"432,762.25",Yes
Communities & Local Government,DCLG,17/08/2015,Current (non AEF) Grants to Local Authorities,Localism,ADUR DC,,,,227472891,5000303533,,Business Rates 2% Inflation Cap,BN11 1HB,"2,193.00",Yes
Communities & Local Government,DCLG,17/08/2015,Current (non AEF) Grants to Local Authorities,Localism,ADUR DC,,,,227472891,5000303536,,Doubling of Small Business Rates Relief,BN11 1HB,"21,291.00",Yes
Communities & Local Government,DCLG,17/08/2015,Current (non AEF) Grants to Local Authorities,Localism,ADUR DC,,,,227472891,5000303540,,Retail Relief,BN11 1HB,"9,308.00",Yes
Communities & Local Government,DCLG,17/08/2015,Current (non AEF) Grants to Local Authorities,Localism,ADUR DC,,,,227472891,5000303544,,Council Tax Freeze,BN11 1HB,"6,323.00",Yes
Communities & Local Government,DCLG,17/08/2015,Current (non AEF) Grants to Local Authorities,Localism,ALLERDALE BOROUGH COUNCIL,,,,218146780,5000303548,,Doubling of Small Business Rates Relief,CA14 3YJ,"55,769.00",Yes
Communities & Local Government,DCLG,17/08/2015,Current (non AEF) Grants to Local Authorities,Localism,ALLERDALE BOROUGH COUNCIL,,,,218146780,5000303552,,Reoccupation Relief,CA14 3YJ,887.00,Yes
Communities & Local Government,DCLG,17/08/2015,Current (non AEF) Grants to Local Authorities,Localism,ALLERDALE BOROUGH COUNCIL,,,,218146780,5000303556,,Retail Relief,CA14 3YJ,"23,542.00",Yes
Communities & Local Government,DCLG,17/08/2015,Current (non AEF) Grants to Local Authorities,Localism,ALLERDALE BOROUGH COUNCIL,,,,218146780,5000303560,,Small Business Rates Relief on Second Properties,CA14 3YJ,338.00,Yes
Communities & Local Government,DCLG,17/08/2015,Current (non AEF) Grants to Local Authorities,Localism,ALLERDALE BOROUGH COUNCIL,,,,218146780,5000303564,,Business Rates 2% Inflation Cap,CA14 3YJ,"4,941.00",Yes
Communities & Local Government,DCLG,17/08/2015,Current (non AEF) Grants to Local Authorities,Localism,AMBER VALLEY BC,,,,,5000303568,,Business Rates 2% Inflation Cap,DE5 3BT,"3,422.00",Yes
Communities & Local Government,DCLG,17/08/2015,Current (non AEF) Grants to Local Authorities,Localism,AMBER VALLEY BC,,,,,5000303572,,Doubling of Small Business Rates Relief,DE5 3BT,"44,313.00",Yes
Communities & Local Government,DCLG,17/08/2015,Current (non AEF) Grants to Local Authorities,Localism,AMBER VALLEY BC,,,,,5000303576,,Reoccupation Relief,DE5 3BT,406.00,Yes
Communities & Local Government,DCLG,17/08/2015,Current (non AEF) Grants to Local Authorities,Localism,AMBER VALLEY BC,,,,,5000303579,,Small Business Rates Relief on Second Properties,DE5 3BT,338.00,Yes
Communities & Local Government,DCLG,17/08/2015,Current (non AEF) Grants to Local Authorities,Localism,AMBER VALLEY BC,,,,,5000303583,,Retail Relief,DE5 3BT,"23,504.00",Yes
Communities & Local Government,DCLG,17/08/2015,Current (non AEF) Grants to Local Authorities,Localism,AMBER VALLEY BC,,,,,5000303587,,Council Tax Freeze,DE5 3BT,"6,405.00",Yes
Communities & Local Government,DCLG,17/08/2015,Current (non AEF) Grants to Local Authorities,Localism,ARUN DC,,,,211217668,5000302293,,Council Tax Freeze,BN17 5LF,"10,351.00",Yes
Communities & Local Government,DCLG,17/08/2015,Current (non AEF) Grants to Local Authorities,Localism,ARUN DC,,,,211217668,5000302294,,Small Business Rates Relief on Second Properties,BN17 5LF,340.00,Yes
Communities & Local Government,DCLG,17/08/2015,Current (non AEF) Grants to Local Authorities,Localism,ARUN DC,,,,211217668,5000302295,,Business Rates 2% Inflation Cap,BN17 5LF,"5,863.00",Yes
Communities & Local Government,DCLG,17/08/2015,Current (non AEF) Grants to Local Authorities,Localism,ARUN DC,,,,211217668,5000302296,,Doubling of Small Business Rates Relief,BN17 5LF,"54,203.00",Yes
Communities & Local Government,DCLG,17/08/2015,Current (non AEF) Grants to Local Authorities,Localism,ARUN DC,,,,211217668,5000302298,,Reoccupation Relief,BN17 5LF,271.00,Yes
Communities & Local Government,DCLG,17/08/2015,Current (non AEF) Grants to Local Authorities,Localism,ARUN DC,,,,211217668,5000302299,,Retail Relief,BN17 5LF,"35,878.00",Yes
Communities & Local Government,DCLG,17/08/2015,Current (non AEF) Grants to Local Authorities,Localism,ASHFIELD DC,,,,235415296,5000303591,,Empty New Build Relief,NG17 8DA,"1,183.00",Yes
Communities & Local Government,DCLG,17/08/2015,Current (non AEF) Grants to Local Authorities,Localism,ASHFIELD DC,,,,235415296,5000303594,,Business Rates 2% Inflation Cap,NG17 8DA,"5,442.00",Yes
Communities & Local Government,DCLG,17/08/2015,Current (non AEF) Grants to Local Authorities,Localism,ASHFIELD DC,,,,235415296,5000303597,,Doubling of Small Business Rates Relief,NG17 8DA,"30,981.00",Yes
Communities & Local Government,DCLG,17/08/2015,Current (non AEF) Grants to Local Authorities,Localism,ASHFIELD DC,,,,235415296,5000303601,,Reoccupation Relief,NG17 8DA,508.00,Yes
Communities & Local Government,DCLG,17/08/2015,Current (non AEF) Grants to Local Authorities,Localism,ASHFIELD DC,,,,235415296,5000303605,,Retail Relief,NG17 8DA,"6,764.00",Yes
Communities & Local Government,DCLG,17/08/2015,Current (non AEF) Grants to Local Authorities,Localism,ASHFIELD DC,,,,235415296,5000303613,,Council Tax Freeze,NG17 8DA,"6,387.00",Yes
Communities & Local Government,DCLG,17/08/2015,Current (non AEF) Grants to Local Authorities,Localism,ASHFORD BC,,,,229467071,5000302300,,Council Tax Freeze,TN23 1PL,"6,882.00",Yes
Communities & Local Government,DCLG,17/08/2015,Current (non AEF) Grants to Local Authorities,Localism,ASHFORD BC,,,,229467071,5000302301,,Reoccupation Relief,TN23 1PL,845.00,Yes
Communities & Local Government,DCLG,17/08/2015,Current (non AEF) Grants to Local Authorities,Localism,ASHFORD BC,,,,229467071,5000302302,,Small Business Rates Relief on Second Properties,TN23 1PL,299.00,Yes
Communities & Local Government,DCLG,17/08/2015,Current (non AEF) Grants to Local Authorities,Localism,ASHFORD BC,,,,229467071,5000302303,,Business Rates 2% Inflation Cap,TN23 1PL,"3,788.00",Yes
Communities & Local Government,DCLG,17/08/2015,Current (non AEF) Grants to Local Authorities,Localism,ASHFORD BC,,,,229467071,5000302304,,Doubling of Small Business Rates Relief,TN23 1PL,"42,519.00",Yes
Communities & Local Government,DCLG,17/08/2015,Current (non AEF) Grants to Local Authorities,Localism,ASHFORD BC,,,,229467071,5000302307,,Retail Relief,TN23 1PL,"26,378.00",Yes
Communities & Local Government,DCLG,17/08/2015,Current (non AEF) Grants to Local Authorities,Localism,AVON FIRE AUTHORITY,,Large,,424872570,5000304311,,Business Rates 2% Inflation Cap,BS1 6EU,"12,052.00",Yes
Communities & Local Government,DCLG,17/08/2015,Current (non AEF) Grants to Local Authorities,Localism,AVON FIRE AUTHORITY,,Large,,424872570,5000304312,,Doubling of Small Business Rates Relief,BS1 6EU,"7,157.00",Yes
Communities & Local Government,DCLG,17/08/2015,Current (non AEF) Grants to Local Authorities,Localism,AVON FIRE AUTHORITY,,Large,,424872570,5000304314,,Reoccupation Relief,BS1 6EU,"1,116.00",Yes
Communities & Local Government,DCLG,17/08/2015,Current (non AEF) Grants to Local Authorities,Localism,AVON FIRE AUTHORITY,,Large,,424872570,5000304315,,Retail Relief,BS1 6EU,"2,793.00",Yes
Communities & Local Government,DCLG,17/08/2015,Current (non AEF) Grants to Local Authorities,Localism,AYLESBURY VALE DC(HSG),,,,396710709,5000302309,,Doubling of Small Business Rates Relief,HP19 8FF,"56,215.00",Yes
Communities & Local Government,DCLG,17/08/2015,Current (non AEF) Grants to Local Authorities,Localism,AYLESBURY VALE DC(HSG),,,,396710709,5000302312,,Business Rates 2% Inflation Cap,HP19 8FF,"4,650.00",Yes
Communities & Local Government,DCLG,17/08/2015,Current (non AEF) Grants to Local Authorities,Localism,AYLESBURY VALE DC(HSG),,,,396710709,5000302313,,Empty New Build Relief,HP19 8FF,"2,815.00",Yes
Communities & Local Government,DCLG,17/08/2015,Current (non AEF) Grants to Local Authorities,Localism,AYLESBURY VALE DC(HSG),,,,396710709,5000302315,,Retail Relief,HP19 8FF,"27,766.00",Yes
Communities & Local Government,DCLG,17/08/2015,Current (non AEF) Grants to Local Authorities,Localism,AYLESBURY VALE DC(HSG),,,,396710709,5000302320,,Council Tax Freeze,HP19 8FF,"10,627.00",Yes
Communities & Local Government,DCLG,17/08/2015,Current (non AEF) Grants to Local Authorities,Localism,BABERGH DC,,,,232618405,5000302323,,Retail Relief,IP7 6SJ,"13,505.00",Yes
Communities & Local Government,DCLG,17/08/2015,Current (non AEF) Grants to Local Authorities,Localism,BABERGH DC,,,,232618405,5000302326,,Business Rates 2% Inflation Cap,IP7 6SJ,"2,476.00",Yes
Communities & Local Government,DCLG,17/08/2015,Current (non AEF) Grants to Local Authorities,Localism,BABERGH DC,,,,232618405,5000302329,,Doubling of Small Business Rates Relief,IP7 6SJ,"36,708.00",Yes
Communities & Local Government,DCLG,17/08/2015,Current (non AEF) Grants to Local Authorities,Localism,BABERGH DC,,,,232618405,5000302332,,Reoccupation Relief,IP7 6SJ,264.00,Yes
Communities & Local Government,DCLG,17/08/2015,Current (non AEF) Grants to Local Authorities,Localism,BABERGH DC,,,,232618405,5000302337,,Council Tax Freeze,IP7 6SJ,"4,989.00",Yes
Communities & Local Government,DCLG,17/08/2015,Current (non AEF) Grants to Local Authorities,Localism,BARKING & DAGENHAM LB (HSG),,,,217142293,5000302340,,Reoccupation Relief,RM10 7BY,"2,474.00",Yes
Communities & Local Government,DCLG,17/08/2015,Current (non AEF) Grants to Local Authorities,Localism,BARKING & DAGENHAM LB (HSG),,,,217142293,5000302343,,Business Rates 2% Inflation Cap,RM10 7BY,"61,476.00",Yes
Communities & Local Government,DCLG,17/08/2015,Current (non AEF) Grants to Local Authorities,Localism,BARKING & DAGENHAM LB (HSG),,,,217142293,5000302346,,Doubling of Small Business Rates Relief,RM10 7BY,"31,664.00",Yes
Communities & Local Government,DCLG,17/08/2015,Current (non AEF) Grants to Local Authorities,Localism,BARKING & DAGENHAM LB (HSG),,,,217142293,5000302350,,Empty New Build Relief,RM10 7BY,"1,501.00",Yes
Communities & Local Government,DCLG,17/08/2015,Current (non AEF) Grants to Local Authorities,Localism,BARKING & DAGENHAM LB (HSG),,,,217142293,5000302353,,Retail Relief,RM10 7BY,"23,698.00",Yes
Communities & Local Government,DCLG,17/08/2015,Current (non AEF) Grants to Local Authorities,Localism,BARNSLEY MBC,,,,211178595,5000303640,,Retail Relief,S70 2AQ,"43,645.00",Yes
Communities & Local Government,DCLG,17/08/2015,Current (non AEF) Grants to Local Authorities,Localism,BARNSLEY MBC,,,,211178595,5000303644,,Business Rates 2% Inflation Cap,S70 2AQ,"62,632.00",Yes
Communities & Local Government,DCLG,17/08/2015,Current (non AEF) Grants to Local Authorities,Localism,BARNSLEY MBC,,,,211178595,5000303648,,Doubling of Small Business Rates Relief,S70 2AQ,"100,211.00",Yes
Communities & Local Government,DCLG,17/08/2015,Current (non AEF) Grants to Local Authorities,Localism,BARROW BC,,,,295632913,5000303657,,Reoccupation Relief,LA14 2LD,277.00,Yes
Communities & Local Government,DCLG,17/08/2015,Current (non AEF) Grants to Local Authorities,Localism,BARROW BC,,,,295632913,5000303660,,Retail Relief,LA14 2LD,"10,365.00",Yes
Communities & Local Government,DCLG,17/08/2015,Current (non AEF) Grants to Local Authorities,Localism,BARROW BC,,,,295632913,5000303668,,Business Rates 2% Inflation Cap,LA14 2LD,"4,153.00",Yes
Communities & Local Government,DCLG,17/08/2015,Current (non AEF) Grants to Local Authorities,Localism,BARROW BC,,,,295632913,5000303672,,Doubling of Small Business Rates Relief,LA14 2LD,"22,616.00",Yes
Communities & Local Government,DCLG,17/08/2015,Current (non AEF) Grants to Local Authorities,Localism,BARROW BC,,,,295632913,5000303676,,Council Tax Freeze,LA14 2LD,"4,714.00",Yes
Communities & Local Government,DCLG,17/08/2015,Current (non AEF) Grants to Local Authorities,Localism,BASILDON BOROUGH COUNCIL,,,,,5000303680,,Council Tax Freeze,SS14 0DF,"16,547.00",Yes
Communities & Local Government,DCLG,17/08/2015,Current (non AEF) Grants to Local Authorities,Localism,BASILDON BOROUGH COUNCIL,,,,,5000303684,,Retail Relief,SS14 0DF,"24,485.00",Yes
Communities & Local Government,DCLG,17/08/2015,Current (non AEF) Grants to Local Authorities,Localism,BASILDON BOROUGH COUNCIL,,,,,5000303688,,Business Rates 2% Inflation Cap,SS14 0DF,"7,963.00",Yes
Communities & Local Government,DCLG,17/08/2015,Current (non AEF) Grants to Local Authorities,Localism,BASILDON BOROUGH COUNCIL,,,,,5000303692,,Doubling of Small Business Rates Relief,SS14 0DF,"41,323.00",Yes
Communities & Local Government,DCLG,17/08/2015,Current (non AEF) Grants to Local Authorities,Localism,BASINGSTOKE & DEANE BC,,,,228328506,5000303696,,Council Tax Freeze,RG21 2AJ,"6,992.00",Yes
Communities & Local Government,DCLG,17/08/2015,Current (non AEF) Grants to Local Authorities,Localism,BASINGSTOKE & DEANE BC,,,,228328506,5000303699,,Doubling of Small Business Rates Relief,RG21 2AJ,"28,218.00",Yes
Communities & Local Government,DCLG,17/08/2015,Current (non AEF) Grants to Local Authorities,Localism,BASINGSTOKE & DEANE BC,,,,228328506,5000303703,,Retail Relief,RG21 2AJ,"12,812.00",Yes
Communities & Local Government,DCLG,17/08/2015,Current (non AEF) Grants to Local Authorities,Localism,BASINGSTOKE & DEANE BC,,,,228328506,5000303707,,Reoccupation Relief,RG21 2AJ,839.00,Yes
Communities & Local Government,DCLG,17/08/2015,Current (non AEF) Grants to Local Authorities,Localism,BASINGSTOKE & DEANE BC,,,,228328506,5000303711,,Business Rates 2% Inflation Cap,RG21 2AJ,"3,653.00",Yes
Communities & Local Government,DCLG,17/08/2015,Current (non AEF) Grants to Local Authorities,Localism,BASSETLAW DC (HSG),,,,,5000302356,,Doubling of Small Business Rates Relief,S80 2AH,"41,739.00",Yes
Communities & Local Government,DCLG,17/08/2015,Current (non AEF) Grants to Local Authorities,Localism,BASSETLAW DC (HSG),,,,,5000302359,,Empty New Build Relief,S80 2AH,"1,368.00",Yes
Communities & Local Government,DCLG,17/08/2015,Current (non AEF) Grants to Local Authorities,Localism,BASSETLAW DC (HSG),,,,,5000302362,,Reoccupation Relief,S80 2AH,812.00,Yes
Communities & Local Government,DCLG,17/08/2015,Current (non AEF) Grants to Local Authorities,Localism,BASSETLAW DC (HSG),,,,,5000302365,,Retail Relief,S80 2AH,"15,209.00",Yes
Communities & Local Government,DCLG,17/08/2015,Current (non AEF) Grants to Local Authorities,Localism,BASSETLAW DC (HSG),,,,,5000302369,,Small Business Rates Relief on Second Properties,S80 2AH,526.00,Yes
Communities & Local Government,DCLG,17/08/2015,Current (non AEF) Grants to Local Authorities,Localism,BASSETLAW DC (HSG),,,,,5000302373,,Business Rates 2% Inflation Cap,S80 2AH,"4,868.00",Yes
Communities & Local Government,DCLG,17/08/2015,Current (non AEF) Grants to Local Authorities,Localism,BATH & NE SOMERSET DC (HSG),,,,214502499,5000302377,,Doubling of Small Business Rates Relief,BA1 5AW,"77,249.00",Yes
Communities & Local Government,DCLG,17/08/2015,Current (non AEF) Grants to Local Authorities,Localism,BATH & NE SOMERSET DC (HSG),,,,214502499,5000302381,,Reoccupation Relief,BA1 5AW,427.00,Yes
Communities & Local Government,DCLG,17/08/2015,Current (non AEF) Grants to Local Authorities,Localism,BATH & NE SOMERSET DC (HSG),,,,214502499,5000302385,,Retail Relief,BA1 5AW,"54,006.00",Yes
Communities & Local Government,DCLG,17/08/2015,Current (non AEF) Grants to Local Authorities,Localism,BATH & NE SOMERSET DC (HSG),,,,214502499,5000302389,,Small Business Rates Relief on Second Properties,BA1 5AW,363.00,Yes
Communities & Local Government,DCLG,17/08/2015,Current (non AEF) Grants to Local Authorities,Localism,BATH & NE SOMERSET DC (HSG),,,,214502499,5000302393,,Business Rates 2% Inflation Cap,BA1 5AW,"27,356.00",Yes
Communities & Local Government,DCLG,17/08/2015,Current (non AEF) Grants to Local Authorities,Localism,BATH & NE SOMERSET DC (HSG),,,,214502499,5000302397,,Council Tax Freeze,BA1 5AW,"81,338.00",Yes
Communities & Local Government,DCLG,17/08/2015,Current (non AEF) Grants to Local Authorities,Localism,BEDFORD UNITARY AUTHORITY,,,,225682160,5000304349,,Doubling of Small Business Rates Relief,MK40 1SJ,"64,431.00",Yes
Communities & Local Government,DCLG,17/08/2015,Current (non AEF) Grants to Local Authorities,Localism,BEDFORD UNITARY AUTHORITY,,,,225682160,5000304350,,Business Rates 2% Inflation Cap,MK40 1SJ,"36,005.00",Yes
Communities & Local Government,DCLG,17/08/2015,Current (non AEF) Grants to Local Authorities,Localism,BEDFORD UNITARY AUTHORITY,,,,225682160,5000304351,,Empty New Build Relief,MK40 1SJ,414.00,Yes
Communities & Local Government,DCLG,17/08/2015,Current (non AEF) Grants to Local Authorities,Localism,BEDFORD UNITARY AUTHORITY,,,,225682160,5000304352,,Reoccupation Relief,MK40 1SJ,621.00,Yes
Communities & Local Government,DCLG,17/08/2015,Current (non AEF) Grants to Local Authorities,Localism,BEDFORD UNITARY AUTHORITY,,,,225682160,5000304353,,Retail Relief,MK40 1SJ,"29,164.00",Yes
Communities & Local Government,DCLG,17/08/2015,Current (non AEF) Grants to Local Authorities,Localism,BEDFORD UNITARY AUTHORITY,,,,225682160,5000304355,,Council Tax Freeze,MK40 1SJ,"78,775.00",Yes
Communities & Local Government,DCLG,17/08/2015,Current (non AEF) Grants to Local Authorities,Localism,BEDS & LUTON FIRE & RESCUE SERVICE,,Medium,,387821283,5000304237,,Doubling of Small Business Rates Relief,MK42 7NR,"4,213.00",Yes
Communities & Local Government,DCLG,17/08/2015,Current (non AEF) Grants to Local Authorities,Localism,BEDS & LUTON FIRE & RESCUE SERVICE,,Medium,,387821283,5000304240,,Retail Relief,MK42 7NR,"2,667.00",Yes
Communities & Local Government,DCLG,17/08/2015,Current (non AEF) Grants to Local Authorities,Localism,BEDS & LUTON FIRE & RESCUE SERVICE,,Medium,,387821283,5000304241,,Business Rates 2% Inflation Cap,MK42 7NR,"6,566.00",Yes
Communities & Local Government,DCLG,17/08/2015,Current (non AEF) Grants to Local Authorities,Localism,BEDS & LUTON FIRE & RESCUE SERVICE,,Medium,,387821283,5000304242,,Small Business Rates Relief on Second Properties,MK42 7NR,"1,421.00",Yes
Communities & Local Government,DCLG,17/08/2015,Current (non AEF) Grants to Local Authorities,Localism,BEXLEY LB (RSG),,,,,5000304115,,Business Rates 2% Inflation Cap,DA8 1TL,"42,225.00",Yes
Communities & Local Government,DCLG,17/08/2015,Current (non AEF) Grants to Local Authorities,Localism,BEXLEY LB (RSG),,,,,5000304116,,Retail Relief,DA8 1TL,"29,132.00",Yes
Communities & Local Government,DCLG,17/08/2015,Current (non AEF) Grants to Local Authorities,Localism,BEXLEY LB (RSG),,,,,5000304118,,Doubling of Small Business Rates Relief,DA8 1TL,"50,181.00",Yes
Communities & Local Government,DCLG,17/08/2015,Current (non AEF) Grants to Local Authorities,Localism,BIRMINGHAM CITY CNCL,,,,213780559,5000303715,,Business Rates 2% Inflation Cap,B2 2AJ,"400,912.00",Yes
Communities & Local Government,DCLG,17/08/2015,Current (non AEF) Grants to Local Authorities,Localism,BIRMINGHAM CITY CNCL,,,,213780559,5000303719,,Doubling of Small Business Rates Relief,B2 2AJ,"472,659.00",Yes
Communities & Local Government,DCLG,17/08/2015,Current (non AEF) Grants to Local Authorities,Localism,BIRMINGHAM CITY CNCL,,,,213780559,5000303727,,Retail Relief,B2 2AJ,"319,596.00",Yes
Communities & Local Government,DCLG,17/08/2015,Current (non AEF) Grants to Local Authorities,Localism,BLABY DC (HSG),,,,,5000302401,,Retail Relief,LE9 5EP,"3,445.00",Yes
Communities & Local Government,DCLG,17/08/2015,Current (non AEF) Grants to Local Authorities,Localism,BLABY DC (HSG),,,,,5000302405,,Doubling of Small Business Rates Relief,LE9 5EP,"20,364.00",Yes
Communities & Local Government,DCLG,17/08/2015,Current (non AEF) Grants to Local Authorities,Localism,BLABY DC (HSG),,,,,5000302409,,Business Rates 2% Inflation Cap,LE9 5EP,"3,989.00",Yes
Communities & Local Government,DCLG,17/08/2015,Current (non AEF) Grants to Local Authorities,Localism,BLACKBURN WITH DARWEN BC,,,,,5000303731,,Doubling of Small Business Rates Relief,BB1 7DY,"105,018.00",Yes
Communities & Local Government,DCLG,17/08/2015,Current (non AEF) Grants to Local Authorities,Localism,BLACKBURN WITH DARWEN BC,,,,,5000303735,,Reoccupation Relief,BB1 7DY,"4,142.00",Yes
Communities & Local Government,DCLG,17/08/2015,Current (non AEF) Grants to Local Authorities,Localism,BLACKBURN WITH DARWEN BC,,,,,5000303739,,Retail Relief,BB1 7DY,"30,449.00",Yes
Communities & Local Government,DCLG,17/08/2015,Current (non AEF) Grants to Local Authorities,Localism,BLACKBURN WITH DARWEN BC,,,,,5000303743,,Business Rates 2% Inflation Cap,BB1 7DY,"49,343.00",Yes
Communities & Local Government,DCLG,17/08/2015,Current (non AEF) Grants to Local Authorities,Localism,BLACKBURN WITH DARWEN BC,,,,,5000303747,,Small Business Rates Relief on Second Properties,BB1 7DY,"1,243.00",Yes
Communities & Local Government,DCLG,17/08/2015,Current (non AEF) Grants to Local Authorities,Localism,BLACKBURN WITH DARWEN BC,,,,,5000303751,,Council Tax Freeze,BB1 7DY,"51,649.00",Yes
Communities & Local Government,DCLG,17/08/2015,Current (non AEF) Grants to Local Authorities,Localism,BLACKPOOL BC,,,,,5000303755,,Council Tax Freeze,FY1 1NA,"61,481.00",Yes
Communities & Local Government,DCLG,17/08/2015,Current (non AEF) Grants to Local Authorities,Localism,BLACKPOOL BC,,,,,5000303759,,Reoccupation Relief,FY1 1NA,"4,758.00",Yes
Communities & Local Government,DCLG,17/08/2015,Current (non AEF) Grants to Local Authorities,Localism,BLACKPOOL BC,,,,,5000303767,,Business Rates 2% Inflation Cap,FY1 1NA,"52,449.00",Yes
Communities & Local Government,DCLG,17/08/2015,Current (non AEF) Grants to Local Authorities,Localism,BLACKPOOL BC,,,,,5000303771,,Doubling of Small Business Rates Relief,FY1 1NA,"127,900.00",Yes
Communities & Local Government,DCLG,17/08/2015,Current (non AEF) Grants to Local Authorities,Localism,BLACKPOOL BC,,,,,5000303775,,Empty New Build Relief,FY1 1NA,286.00,Yes
Communities & Local Government,DCLG,17/08/2015,Current (non AEF) Grants to Local Authorities,Localism,BLACKPOOL BC,,,,,5000303779,,Retail Relief,FY1 1NA,"35,058.00",Yes
Communities & Local Government,DCLG,17/08/2015,Current (non AEF) Grants to Local Authorities,Localism,BOLSOVER DC,,,,235516523,5000303783,,Doubling of Small Business Rates Relief,S43 4JY,"21,516.00",Yes
Communities & Local Government,DCLG,17/08/2015,Current (non AEF) Grants to Local Authorities,Localism,BOLSOVER DC,,,,235516523,5000303787,,Retail Relief,S43 4JY,"6,906.00",Yes
Communities & Local Government,DCLG,17/08/2015,Current (non AEF) Grants to Local Authorities,Localism,BOLSOVER DC,,,,235516523,5000303791,,Business Rates 2% Inflation Cap,S43 4JY,"4,894.00",Yes
Communities & Local Government,DCLG,17/08/2015,Current (non AEF) Grants to Local Authorities,Localism,BOLSOVER DC,,,,235516523,5000303795,,Council Tax Freeze,S43 4JY,"3,700.00",Yes
Communities & Local Government,DCLG,17/08/2015,Current (non AEF) Grants to Local Authorities,Localism,BOLTON MBC,,,,,5000303798,,Council Tax Freeze,BL1 1RU,"109,792.00",Yes
Communities & Local Government,DCLG,17/08/2015,Current (non AEF) Grants to Local Authorities,Localism,BOLTON MBC,,,,,5000303802,,Reoccupation Relief,BL1 1RU,"4,557.00",Yes
Communities & Local Government,DCLG,17/08/2015,Current (non AEF) Grants to Local Authorities,Localism,BOLTON MBC,,,,,5000303805,,Business Rates 2% Inflation Cap,BL1 1RU,"75,308.00",Yes
Communities & Local Government,DCLG,17/08/2015,Current (non AEF) Grants to Local Authorities,Localism,BOLTON MBC,,,,,5000303809,,Doubling of Small Business Rates Relief,BL1 1RU,"155,352.00",Yes
Communities & Local Government,DCLG,17/08/2015,Current (non AEF) Grants to Local Authorities,Localism,BOLTON MBC,,,,,5000303813,,Empty New Build Relief,BL1 1RU,414.00,Yes
Communities & Local Government,DCLG,17/08/2015,Current (non AEF) Grants to Local Authorities,Localism,BOLTON MBC,,,,,5000303817,,Retail Relief,BL1 1RU,"50,541.00",Yes
Communities & Local Government,DCLG,17/08/2015,Current (non AEF) Grants to Local Authorities,Localism,BOSTON BC,,,,236417713,5000302413,,Business Rates 2% Inflation Cap,PE21 8QR,"3,067.00",Yes
Communities & Local Government,DCLG,17/08/2015,Current (non AEF) Grants to Local Authorities,Localism,BOSTON BC,,,,236417713,5000302417,,Empty New Build Relief,PE21 8QR,265.00,Yes
Communities & Local Government,DCLG,17/08/2015,Current (non AEF) Grants to Local Authorities,Localism,BOSTON BC,,,,236417713,5000302421,,Retail Relief,PE21 8QR,"9,300.00",Yes
Communities & Local Government,DCLG,17/08/2015,Current (non AEF) Grants to Local Authorities,Localism,BOSTON BC,,,,236417713,5000302424,,Doubling of Small Business Rates Relief,PE21 8QR,"23,954.00",Yes
Communities & Local Government,DCLG,17/08/2015,Current (non AEF) Grants to Local Authorities,Localism,BOSTON BC,,,,236417713,5000302428,,Council Tax Freeze,PE21 8QR,"3,420.00",Yes
Communities & Local Government,DCLG,17/08/2015,Current (non AEF) Grants to Local Authorities,Localism,BOURNEMOUTH DC,,,,,5000303821,,Doubling of Small Business Rates Relief,BH2 6EB,"93,474.00",Yes
Communities & Local Government,DCLG,17/08/2015,Current (non AEF) Grants to Local Authorities,Localism,BOURNEMOUTH DC,,,,,5000303825,,Reoccupation Relief,BH2 6EB,"3,107.00",Yes
Communities & Local Government,DCLG,17/08/2015,Current (non AEF) Grants to Local Authorities,Localism,BOURNEMOUTH DC,,,,,5000303829,,Business Rates 2% Inflation Cap,BH2 6EB,"34,076.00",Yes
Communities & Local Government,DCLG,17/08/2015,Current (non AEF) Grants to Local Authorities,Localism,BOURNEMOUTH DC,,,,,5000303837,,Retail Relief,BH2 6EB,"56,887.00",Yes
Communities & Local Government,DCLG,17/08/2015,Current (non AEF) Grants to Local Authorities,Localism,BOURNEMOUTH DC,,,,,5000303841,,Council Tax Freeze,BH2 6EB,"85,630.00",Yes
Communities & Local Government,DCLG,17/08/2015,Current (non AEF) Grants to Local Authorities,Localism,BRACKNELL FOREST DC,,,,236184867,5000303845,,Small Business Rates Relief on Second Properties,RG12 1AQ,829.00,Yes
Communities & Local Government,DCLG,17/08/2015,Current (non AEF) Grants to Local Authorities,Localism,BRACKNELL FOREST DC,,,,236184867,5000303849,,Business Rates 2% Inflation Cap,RG12 1AQ,"29,284.00",Yes
Communities & Local Government,DCLG,17/08/2015,Current (non AEF) Grants to Local Authorities,Localism,BRACKNELL FOREST DC,,,,236184867,5000303853,,Council Tax Freeze,RG12 1AQ,"50,546.00",Yes
Communities & Local Government,DCLG,17/08/2015,Current (non AEF) Grants to Local Authorities,Localism,BRACKNELL FOREST DC,,,,236184867,5000303857,,Doubling of Small Business Rates Relief,RG12 1AQ,"20,074.00",Yes
Communities & Local Government,DCLG,17/08/2015,Current (non AEF) Grants to Local Authorities,Localism,BRACKNELL FOREST DC,,,,236184867,5000303861,,Reoccupation Relief,RG12 1AQ,"2,071.00",Yes
Communities & Local Government,DCLG,17/08/2015,Current (non AEF) Grants to Local Authorities,Localism,BRACKNELL FOREST DC,,,,236184867,5000303865,,Retail Relief,RG12 1AQ,"14,499.00",Yes
Communities & Local Government,DCLG,17/08/2015,Current (non AEF) Grants to Local Authorities,Localism,BRADFORD MBC,,,,,5000303867,,Empty New Build Relief,BD1 1HX,"1,865.00",Yes
Communities & Local Government,DCLG,17/08/2015,Current (non AEF) Grants to Local Authorities,Localism,BRADFORD MBC,,,,,5000303871,,Retail Relief,BD1 1HX,"134,431.00",Yes
Communities & Local Government,DCLG,17/08/2015,Current (non AEF) Grants to Local Authorities,Localism,BRADFORD MBC,,,,,5000303875,,Doubling of Small Business Rates Relief,BD1 1HX,"327,274.00",Yes
Communities & Local Government,DCLG,17/08/2015,Current (non AEF) Grants to Local Authorities,Localism,BRADFORD MBC,,,,,5000303879,,Reoccupation Relief,BD1 1HX,829.00,Yes
Communities & Local Government,DCLG,17/08/2015,Current (non AEF) Grants to Local Authorities,Localism,BRADFORD MBC,,,,,5000303883,,Business Rates 2% Inflation Cap,BD1 1HX,"152,009.00",Yes
Communities & Local Government,DCLG,17/08/2015,Current (non AEF) Grants to Local Authorities,Localism,BRAINTREE DC,,,,226941730,5000302432,,Business Rates 2% Inflation Cap,CM7 6HB,"4,051.00",Yes
Communities & Local Government,DCLG,17/08/2015,Current (non AEF) Grants to Local Authorities,Localism,BRAINTREE DC,,,,226941730,5000302440,,Retail Relief,CM7 6HB,"18,640.00",Yes
Communities & Local Government,DCLG,17/08/2015,Current (non AEF) Grants to Local Authorities,Localism,BRAINTREE DC,,,,226941730,5000302444,,Doubling of Small Business Rates Relief,CM7 6HB,"53,721.00",Yes
Communities & Local Government,DCLG,17/08/2015,Current (non AEF) Grants to Local Authorities,Localism,BRAINTREE DC,,,,226941730,5000302447,,Council Tax Freeze,CM7 6HB,"8,746.00",Yes
Communities & Local Government,DCLG,17/08/2015,Current (non AEF) Grants to Local Authorities,Localism,BRECKLAND DC,,,,232611384,5000302451,,Business Rates 2% Inflation Cap,NR19 1EE,"5,293.00",Yes
Communities & Local Government,DCLG,17/08/2015,Current (non AEF) Grants to Local Authorities,Localism,BRECKLAND DC,,,,232611384,5000302455,,Doubling of Small Business Rates Relief,NR19 1EE,"49,126.00",Yes
Communities & Local Government,DCLG,17/08/2015,Current (non AEF) Grants to Local Authorities,Localism,BRECKLAND DC,,,,232611384,5000302464,,Retail Relief,NR19 1EE,"21,425.00",Yes
Communities & Local Government,DCLG,17/08/2015,Current (non AEF) Grants to Local Authorities,Localism,BRECKLAND DC,,,,232611384,5000302468,,Small Business Rates Relief on Second Properties,NR19 1EE,423.00,Yes
Communities & Local Government,DCLG,17/08/2015,Current (non AEF) Grants to Local Authorities,Localism,BRECKLAND DC,,,,232611384,5000302472,,Council Tax Freeze,NR19 1EE,"3,167.00",Yes
Communities & Local Government,DCLG,17/08/2015,Current (non AEF) Grants to Local Authorities,Localism,BRENT LB (HSG),,,,,5000302476,,Council Tax Freeze,HA9 9HD,"107,813.00",Yes
Communities & Local Government,DCLG,17/08/2015,Current (non AEF) Grants to Local Authorities,Localism,BRENT LB (HSG),,,,,5000302480,,Business Rates 2% Inflation Cap,HA9 9HD,"100,490.00",Yes
Communities & Local Government,DCLG,17/08/2015,Current (non AEF) Grants to Local Authorities,Localism,BRENT LB (HSG),,,,,5000302484,,Doubling of Small Business Rates Relief,HA9 9HD,"55,865.00",Yes
Communities & Local Government,DCLG,17/08/2015,Current (non AEF) Grants to Local Authorities,Localism,BRENT LB (HSG),,,,,5000302488,,Empty New Build Relief,HA9 9HD,"2,536.00",Yes
Communities & Local Government,DCLG,17/08/2015,Current (non AEF) Grants to Local Authorities,Localism,BRENT LB (HSG),,,,,5000302492,,Reoccupation Relief,HA9 9HD,"1,903.00",Yes
Communities & Local Government,DCLG,17/08/2015,Current (non AEF) Grants to Local Authorities,Localism,BRENT LB (HSG),,,,,5000302496,,Retail Relief,HA9 9HD,"55,369.00",Yes
Communities & Local Government,DCLG,17/08/2015,Current (non AEF) Grants to Local Authorities,Localism,BRENTWOOD BC,,,,227473188,5000303887,,Council Tax Freeze,CM15 8AY,"5,633.00",Yes
Communities & Local Government,DCLG,17/08/2015,Current (non AEF) Grants to Local Authorities,Localism,BRENTWOOD BC,,,,227473188,5000303891,,Doubling of Small Business Rates Relief,CM15 8AY,"19,262.00",Yes
Communities & Local Government,DCLG,17/08/2015,Current (non AEF) Grants to Local Authorities,Localism,BRENTWOOD BC,,,,227473188,5000303899,,Retail Relief,CM15 8AY,"18,048.00",Yes
Communities & Local Government,DCLG,17/08/2015,Current (non AEF) Grants to Local Authorities,Localism,BRENTWOOD BC,,,,227473188,5000303903,,Business Rates 2% Inflation Cap,CM15 8AY,"1,826.00",Yes
Communities & Local Government,DCLG,17/08/2015,Current (non AEF) Grants to Local Authorities,Localism,BRIGHTON & HOVE CITY COUNCIL,,Large,,228455218,5000303907,,Reoccupation Relief,BN3 2LS,"2,279.00",Yes
Communities & Local Government,DCLG,17/08/2015,Current (non AEF) Grants to Local Authorities,Localism,BRIGHTON & HOVE CITY COUNCIL,,Large,,228455218,5000303911,,Small Business Rates Relief on Second Properties,BN3 2LS,414.00,Yes
Communities & Local Government,DCLG,17/08/2015,Current (non AEF) Grants to Local Authorities,Localism,BRIGHTON & HOVE CITY COUNCIL,,Large,,228455218,5000303915,,Business Rates 2% Inflation Cap,BN3 2LS,"65,649.00",Yes
Communities & Local Government,DCLG,17/08/2015,Current (non AEF) Grants to Local Authorities,Localism,BRIGHTON & HOVE CITY COUNCIL,,Large,,228455218,5000303919,,Doubling of Small Business Rates Relief,BN3 2LS,"130,625.00",Yes
Communities & Local Government,DCLG,17/08/2015,Current (non AEF) Grants to Local Authorities,Localism,BRIGHTON & HOVE CITY COUNCIL,,Large,,228455218,5000303923,,Empty New Build Relief,BN3 2LS,"3,314.00",Yes
Communities & Local Government,DCLG,17/08/2015,Current (non AEF) Grants to Local Authorities,Localism,BRIGHTON & HOVE CITY COUNCIL,,Large,,228455218,5000303927,,Retail Relief,BN3 2LS,"146,689.00",Yes
Communities & Local Government,DCLG,17/08/2015,Current (non AEF) Grants to Local Authorities,Localism,BRISTOL CITY CNCL (HSG),,,,211103882,5000302500,,Retail Relief,BS99 7BL,"25,773.00",Yes
Communities & Local Government,DCLG,17/08/2015,Current (non AEF) Grants to Local Authorities,Localism,BRISTOL CITY CNCL (HSG),,,,211103882,5000302504,,Business Rates 2% Inflation Cap,BS99 7BL,"119,301.00",Yes
Communities & Local Government,DCLG,17/08/2015,Current (non AEF) Grants to Local Authorities,Localism,BRISTOL CITY CNCL (HSG),,,,211103882,5000302508,,Doubling of Small Business Rates Relief,BS99 7BL,"117,859.00",Yes
Communities & Local Government,DCLG,17/08/2015,Current (non AEF) Grants to Local Authorities,Localism,BRISTOL CITY CNCL (HSG),,,,211103882,5000302512,,Reoccupation Relief,BS99 7BL,"52,965.00",Yes
Communities & Local Government,DCLG,17/08/2015,Current (non AEF) Grants to Local Authorities,Localism,BROADLAND DC,,Large,,219737785,5000302519,,Council Tax Freeze,NR7 0DU,"5,288.00",Yes
Communities & Local Government,DCLG,17/08/2015,Current (non AEF) Grants to Local Authorities,Localism,BROADLAND DC,,Large,,219737785,5000302523,,Business Rates 2% Inflation Cap,NR7 0DU,"4,015.00",Yes
Communities & Local Government,DCLG,17/08/2015,Current (non AEF) Grants to Local Authorities,Localism,BROADLAND DC,,Large,,219737785,5000302531,,Retail Relief,NR7 0DU,"11,156.00",Yes
Communities & Local Government,DCLG,17/08/2015,Current (non AEF) Grants to Local Authorities,Localism,BROADLAND DC,,Large,,219737785,5000302540,,Doubling of Small Business Rates Relief,NR7 0DU,"43,473.00",Yes
Communities & Local Government,DCLG,17/08/2015,Current (non AEF) Grants to Local Authorities,Localism,BROADLAND DC,,Large,,219737785,5000302544,,Reoccupation Relief,NR7 0DU,508.00,Yes
Communities & Local Government,DCLG,17/08/2015,Current (non AEF) Grants to Local Authorities,Localism,BROMLEY LB,,,,211331954,5000303931,,Retail Relief,BR1 3UH,"53,701.00",Yes
Communities & Local Government,DCLG,17/08/2015,Current (non AEF) Grants to Local Authorities,Localism,BROMLEY LB,,,,211331954,5000303935,,Business Rates 2% Inflation Cap,BR1 3UH,"42,393.00",Yes
Communities & Local Government,DCLG,17/08/2015,Current (non AEF) Grants to Local Authorities,Localism,BROMLEY LB,,,,211331954,5000303939,,Doubling of Small Business Rates Relief,BR1 3UH,"55,275.00",Yes
Communities & Local Government,DCLG,17/08/2015,Current (non AEF) Grants to Local Authorities,Localism,BROMLEY LB,,,,211331954,5000303943,,Reoccupation Relief,BR1 3UH,457.00,Yes
Communities & Local Government,DCLG,17/08/2015,Current (non AEF) Grants to Local Authorities,Localism,BROMSGROVE DC,,,,236654745,5000302548,,Doubling of Small Business Rates Relief,B60 1AA,"35,144.00",Yes
Communities & Local Government,DCLG,17/08/2015,Current (non AEF) Grants to Local Authorities,Localism,BROMSGROVE DC,,,,236654745,5000302552,,Retail Relief,B60 1AA,"19,073.00",Yes
Communities & Local Government,DCLG,17/08/2015,Current (non AEF) Grants to Local Authorities,Localism,BROMSGROVE DC,,,,236654745,5000302556,,Business Rates 2% Inflation Cap,B60 1AA,"2,318.00",Yes
Communities & Local Government,DCLG,17/08/2015,Current (non AEF) Grants to Local Authorities,Localism,BROMSGROVE DC,,,,236654745,5000302560,,Council Tax Freeze,B60 1AA,"7,439.00",Yes
Communities & Local Government,DCLG,17/08/2015,Current (non AEF) Grants to Local Authorities,Localism,BROXBOURNE BC,,Public Bodies,,239931918,5000303946,,Council Tax Freeze,EN8 9XG,"4,292.00",Yes
Communities & Local Government,DCLG,17/08/2015,Current (non AEF) Grants to Local Authorities,Localism,BROXBOURNE BC,,Public Bodies,,239931918,5000303950,,Business Rates 2% Inflation Cap,EN8 9XG,"3,568.00",Yes
Communities & Local Government,DCLG,17/08/2015,Current (non AEF) Grants to Local Authorities,Localism,BROXBOURNE BC,,Public Bodies,,239931918,5000303954,,Reoccupation Relief,EN8 9XG,"8,454.00",Yes
Communities & Local Government,DCLG,17/08/2015,Current (non AEF) Grants to Local Authorities,Localism,BROXBOURNE BC,,Public Bodies,,239931918,5000303958,,Retail Relief,EN8 9XG,"18,953.00",Yes
Communities & Local Government,DCLG,17/08/2015,Current (non AEF) Grants to Local Authorities,Localism,BROXBOURNE BC,,Public Bodies,,239931918,5000303962,,Doubling of Small Business Rates Relief,EN8 9XG,"23,760.00",Yes
Communities & Local Government,DCLG,17/08/2015,Current (non AEF) Grants to Local Authorities,Localism,BROXTOWE BC,,,,239877640,5000303966,,Doubling of Small Business Rates Relief,NG9 1AB,"27,485.00",Yes
Communities & Local Government,DCLG,17/08/2015,Current (non AEF) Grants to Local Authorities,Localism,BROXTOWE BC,,,,239877640,5000303970,,Empty New Build Relief,NG9 1AB,"1,426.00",Yes
Communities & Local Government,DCLG,17/08/2015,Current (non AEF) Grants to Local Authorities,Localism,BROXTOWE BC,,,,239877640,5000303973,,Retail Relief,NG9 1AB,"5,377.00",Yes
Communities & Local Government,DCLG,17/08/2015,Current (non AEF) Grants to Local Authorities,Localism,BROXTOWE BC,,,,239877640,5000303977,,Business Rates 2% Inflation Cap,NG9 1AB,"3,301.00",Yes
Communities & Local Government,DCLG,17/08/2015,Current (non AEF) Grants to Local Authorities,Localism,BROXTOWE BC,,,,239877640,5000303981,,Council Tax Freeze,NG9 1AB,"5,979.00",Yes
Communities & Local Government,DCLG,17/08/2015,Current (non AEF) Grants to Local Authorities,Localism,BUCKINGHAMSHIRE CC,,,,293750923,5000303985,,Business Rates 2% Inflation Cap,HP20 1UD,"49,665.00",Yes
Communities & Local Government,DCLG,17/08/2015,Current (non AEF) Grants to Local Authorities,Localism,BUCKINGHAMSHIRE CC,,,,293750923,5000303989,,Doubling of Small Business Rates Relief,HP20 1UD,"30,450.00",Yes
Communities & Local Government,DCLG,17/08/2015,Current (non AEF) Grants to Local Authorities,Localism,BUCKINGHAMSHIRE CC,,,,293750923,5000303996,,Empty New Build Relief,HP20 1UD,633.00,Yes
Communities & Local Government,DCLG,17/08/2015,Current (non AEF) Grants to Local Authorities,Localism,BUCKINGHAMSHIRE CC,,,,293750923,5000304001,,Retail Relief,HP20 1UD,"13,551.00",Yes
Communities & Local Government,DCLG,17/08/2015,Current (non AEF) Grants to Local Authorities,Localism,BUCKS & MILTON KEYNES FIRE AUTH,,Public Bodies,,423679463,5000304168,,Retail Relief,HP20 1BD,"2,429.00",Yes
Communities & Local Government,DCLG,17/08/2015,Current (non AEF) Grants to Local Authorities,Localism,BUCKS & MILTON KEYNES FIRE AUTH,,Public Bodies,,423679463,5000304170,,Council Tax Freeze,HP20 1BD,"18,285.00",Yes
Communities & Local Government,DCLG,17/08/2015,Current (non AEF) Grants to Local Authorities,Localism,BUCKS & MILTON KEYNES FIRE AUTH,,Public Bodies,,423679463,5000304171,,Doubling of Small Business Rates Relief,HP20 1BD,"4,927.00",Yes
Communities & Local Government,DCLG,17/08/2015,Current (non AEF) Grants to Local Authorities,Localism,BUCKS & MILTON KEYNES FIRE AUTH,,Public Bodies,,423679463,5000304172,,Business Rates 2% Inflation Cap,HP20 1BD,"5,893.00",Yes
Communities & Local Government,DCLG,17/08/2015,Current (non AEF) Grants to Local Authorities,Localism,BURNLEY BC,,,,229413281,5000304004,,Business Rates 2% Inflation Cap,BB11 1JA,"5,254.00",Yes
Communities & Local Government,DCLG,17/08/2015,Current (non AEF) Grants to Local Authorities,Localism,BURNLEY BC,,,,229413281,5000304008,,Reoccupation Relief,BB11 1JA,650.00,Yes
Communities & Local Government,DCLG,17/08/2015,Current (non AEF) Grants to Local Authorities,Localism,BURNLEY BC,,,,229413281,5000304011,,Retail Relief,BB11 1JA,"16,108.00",Yes
Communities & Local Government,DCLG,17/08/2015,Current (non AEF) Grants to Local Authorities,Localism,BURNLEY BC,,,,229413281,5000304017,,Doubling of Small Business Rates Relief,BB11 1JA,"44,051.00",Yes
Communities & Local Government,DCLG,17/08/2015,Current (non AEF) Grants to Local Authorities,Localism,BURY MBC,,,,,5000304020,,Council Tax Freeze,BL9 0SW,"78,495.00",Yes
Communities & Local Government,DCLG,17/08/2015,Current (non AEF) Grants to Local Authorities,Localism,BURY MBC,,,,,5000304026,,Business Rates 2% Inflation Cap,BL9 0SW,"38,601.00",Yes
Communities & Local Government,DCLG,17/08/2015,Current (non AEF) Grants to Local Authorities,Localism,BURY MBC,,,,,5000304029,,Doubling of Small Business Rates Relief,BL9 0SW,"96,604.00",Yes
Communities & Local Government,DCLG,17/08/2015,Current (non AEF) Grants to Local Authorities,Localism,BURY MBC,,,,,5000304032,,Retail Relief,BL9 0SW,"46,914.00",Yes
Communities & Local Government,DCLG,17/08/2015,Current (non AEF) Grants to Local Authorities,Localism,CALDERDALE MBC,,,,,5000304034,,Council Tax Freeze,HX1 1YP,"84,048.00",Yes
Communities & Local Government,DCLG,17/08/2015,Current (non AEF) Grants to Local Authorities,Localism,CALDERDALE MBC,,,,,5000304037,,Small Business Rates Relief on Second Properties,HX1 1YP,"2,071.00",Yes
Communities & Local Government,DCLG,17/08/2015,Current (non AEF) Grants to Local Authorities,Localism,CALDERDALE MBC,,,,,5000304040,,Business Rates 2% Inflation Cap,HX1 1YP,"46,581.00",Yes
Communities & Local Government,DCLG,17/08/2015,Current (non AEF) Grants to Local Authorities,Localism,CALDERDALE MBC,,,,,5000304043,,Doubling of Small Business Rates Relief,HX1 1YP,"128,264.00",Yes
Communities & Local Government,DCLG,17/08/2015,Current (non AEF) Grants to Local Authorities,Localism,CALDERDALE MBC,,,,,5000304046,,Retail Relief,HX1 1YP,"34,390.00",Yes
Communities & Local Government,DCLG,17/08/2015,Current (non AEF) Grants to Local Authorities,Localism,CAMBRIDGE CITY COUNCIL,,,,210357534,5000302318,,Doubling of Small Business Rates Relief,CB2 3NA,"23,606.00",Yes
Communities & Local Government,DCLG,17/08/2015,Current (non AEF) Grants to Local Authorities,Localism,CAMBRIDGE CITY COUNCIL,,,,210357534,5000302322,,Empty New Build Relief,CB2 3NA,"1,691.00",Yes
Communities & Local Government,DCLG,17/08/2015,Current (non AEF) Grants to Local Authorities,Localism,CAMBRIDGE CITY COUNCIL,,,,210357534,5000302328,,Business Rates 2% Inflation Cap,CB2 3NA,"6,222.00",Yes
Communities & Local Government,DCLG,17/08/2015,Current (non AEF) Grants to Local Authorities,Localism,CAMBRIDGE CITY COUNCIL,,,,210357534,5000302331,,Retail Relief,CB2 3NA,"37,422.00",Yes
Communities & Local Government,DCLG,17/08/2015,Current (non AEF) Grants to Local Authorities,Localism,CAMBRIDGESHIRE COUNTY CNCL,,,,219047347,5000302335,,Doubling of Small Business Rates Relief,CB3 0AP,"40,108.00",Yes
Communities & Local Government,DCLG,17/08/2015,Current (non AEF) Grants to Local Authorities,Localism,CAMBRIDGESHIRE COUNTY CNCL,,,,219047347,5000302338,,Business Rates 2% Inflation Cap,CB3 0AP,"73,163.00",Yes
Communities & Local Government,DCLG,17/08/2015,Current (non AEF) Grants to Local Authorities,Localism,CAMBRIDGESHIRE COUNTY CNCL,,,,219047347,5000302341,,Empty New Build Relief,CB3 0AP,457.00,Yes
Communities & Local Government,DCLG,17/08/2015,Current (non AEF) Grants to Local Authorities,Localism,CAMBRIDGESHIRE COUNTY CNCL,,,,219047347,5000302347,,Retail Relief,CB3 0AP,"22,833.00",Yes
Communities & Local Government,DCLG,17/08/2015,Current (non AEF) Grants to Local Authorities,Localism,CAMBRIDGESHIRE COUNTY CNCL,,,,219047347,5000302349,,Small Business Rates Relief on Second Properties,CB3 0AP,907.00,Yes
Communities & Local Government,DCLG,17/08/2015,Current (non AEF) Grants to Local Authorities,Localism,CAMBRIDGESHIRE POLICE AUTHORITY,,,,,5000304375,,Council Tax Freeze,P18 8NP,"52,977.00",Yes
Communities & Local Government,DCLG,17/08/2015,Current (non AEF) Grants to Local Authorities,Localism,CAMBS & PETERBOROUGH FIRE AUTHORITY,,,,235999737,5000304212,,Retail Relief,PE29 2NA,"3,362.00",Yes
Communities & Local Government,DCLG,17/08/2015,Current (non AEF) Grants to Local Authorities,Localism,CAMBS & PETERBOROUGH FIRE AUTHORITY,,,,235999737,5000304214,,Doubling of Small Business Rates Relief,PE29 2NA,"5,749.00",Yes
Communities & Local Government,DCLG,17/08/2015,Current (non AEF) Grants to Local Authorities,Localism,CAMBS & PETERBOROUGH FIRE AUTHORITY,,,,235999737,5000304216,,Business Rates 2% Inflation Cap,PE29 2NA,"6,918.00",Yes
Communities & Local Government,DCLG,17/08/2015,Current (non AEF) Grants to Local Authorities,Localism,CAMBS & PETERBOROUGH FIRE AUTHORITY,,,,235999737,5000304218,,Council Tax Freeze,PE29 2NA,"18,772.00",Yes
Communities & Local Government,DCLG,17/08/2015,Current (non AEF) Grants to Local Authorities,Localism,CAMDEN LB,,,,211651836,5000302352,,Doubling of Small Business Rates Relief,WC1H 8NG,"36,068.00",Yes
Communities & Local Government,DCLG,17/08/2015,Current (non AEF) Grants to Local Authorities,Localism,CAMDEN LB,,,,211651836,5000302355,,Business Rates 2% Inflation Cap,WC1H 8NG,"114,111.00",Yes
Communities & Local Government,DCLG,17/08/2015,Current (non AEF) Grants to Local Authorities,Localism,CAMDEN LB,,,,211651836,5000302358,,Retail Relief,WC1H 8NG,"92,879.00",Yes
Communities & Local Government,DCLG,17/08/2015,Current (non AEF) Grants to Local Authorities,Localism,CANNOCK CHASE DC,,,,215064770,5000302361,,Council Tax Freeze,WS11 1BG,"6,211.00",Yes
Communities & Local Government,DCLG,17/08/2015,Current (non AEF) Grants to Local Authorities,Localism,CANNOCK CHASE DC,,,,215064770,5000302364,,Retail Relief,WS11 1BG,"13,649.00",Yes
Communities & Local Government,DCLG,17/08/2015,Current (non AEF) Grants to Local Authorities,Localism,CANNOCK CHASE DC,,,,215064770,5000302368,,Business Rates 2% Inflation Cap,WS11 1BG,"4,879.00",Yes
Communities & Local Government,DCLG,17/08/2015,Current (non AEF) Grants to Local Authorities,Localism,CANNOCK CHASE DC,,,,215064770,5000302372,,Doubling of Small Business Rates Relief,WS11 1BG,"41,323.00",Yes
Communities & Local Government,DCLG,17/08/2015,Current (non AEF) Grants to Local Authorities,Localism,CANTERBURY CITY CNCL,,,,,5000302564,,Retail Relief,CT1 1YW,"28,407.00",Yes
Communities & Local Government,DCLG,17/08/2015,Current (non AEF) Grants to Local Authorities,Localism,CANTERBURY CITY CNCL,,,,,5000302568,,Business Rates 2% Inflation Cap,CT1 1YW,"5,602.00",Yes
Communities & Local Government,DCLG,17/08/2015,Current (non AEF) Grants to Local Authorities,Localism,CANTERBURY CITY CNCL,,,,,5000302572,,Doubling of Small Business Rates Relief,CT1 1YW,"56,596.00",Yes
Communities & Local Government,DCLG,17/08/2015,Current (non AEF) Grants to Local Authorities,Localism,CARLISLE CITY CNCL,,,,227471059,5000302578,,Council Tax Freeze,CA3 8QG,"6,960.00",Yes
Communities & Local Government,DCLG,17/08/2015,Current (non AEF) Grants to Local Authorities,Localism,CARLISLE CITY CNCL,,,,227471059,5000302582,,Reoccupation Relief,CA3 8QG,"1,691.00",Yes
Communities & Local Government,DCLG,17/08/2015,Current (non AEF) Grants to Local Authorities,Localism,CARLISLE CITY CNCL,,,,227471059,5000302585,,Retail Relief,CA3 8QG,"24,119.00",Yes
Communities & Local Government,DCLG,17/08/2015,Current (non AEF) Grants to Local Authorities,Localism,CARLISLE CITY CNCL,,,,227471059,5000302592,,Small Business Rates Relief on Second Properties,CA3 8QG,338.00,Yes
Communities & Local Government,DCLG,17/08/2015,Current (non AEF) Grants to Local Authorities,Localism,CARLISLE CITY CNCL,,,,227471059,5000302596,,Doubling of Small Business Rates Relief,CA3 8QG,"42,402.00",Yes
Communities & Local Government,DCLG,17/08/2015,Current (non AEF) Grants to Local Authorities,Localism,CARLISLE CITY CNCL,,,,227471059,5000302600,,Business Rates 2% Inflation Cap,CA3 8QG,"4,302.00",Yes
Communities & Local Government,DCLG,17/08/2015,Current (non AEF) Grants to Local Authorities,Localism,CASTLE POINT BC,,Public Bodies,,228217931,5000302376,,Council Tax Freeze,SS7 1TF,"7,629.00",Yes
Communities & Local Government,DCLG,17/08/2015,Current (non AEF) Grants to Local Authorities,Localism,CASTLE POINT BC,,Public Bodies,,228217931,5000302380,,Doubling of Small Business Rates Relief,SS7 1TF,"29,841.00",Yes
Communities & Local Government,DCLG,17/08/2015,Current (non AEF) Grants to Local Authorities,Localism,CASTLE POINT BC,,Public Bodies,,228217931,5000302392,,Retail Relief,SS7 1TF,"16,508.00",Yes
Communities & Local Government,DCLG,17/08/2015,Current (non AEF) Grants to Local Authorities,Localism,CASTLE POINT BC,,Public Bodies,,228217931,5000302396,,Business Rates 2% Inflation Cap,SS7 1TF,"2,501.00",Yes
Communities & Local Government,DCLG,17/08/2015,Current (non AEF) Grants to Local Authorities,Localism,CENTRAL BEDFORDSHIRE COUNCIL,,,,232624882,5000304329,,Business Rates 2% Inflation Cap,SG17 5TQ,"36,984.00",Yes
Communities & Local Government,DCLG,17/08/2015,Current (non AEF) Grants to Local Authorities,Localism,CENTRAL BEDFORDSHIRE COUNCIL,,,,232624882,5000304330,,Retail Relief,SG17 5TQ,"42,678.00",Yes
Communities & Local Government,DCLG,17/08/2015,Current (non AEF) Grants to Local Authorities,Localism,CENTRAL BEDFORDSHIRE COUNCIL,,,,232624882,5000304331,,Small Business Rates Relief on Second Properties,SG17 5TQ,"2,982.00",Yes
Communities & Local Government,DCLG,17/08/2015,Current (non AEF) Grants to Local Authorities,Localism,CENTRAL BEDFORDSHIRE COUNCIL,,,,232624882,5000304332,,Doubling of Small Business Rates Relief,SG17 5TQ,"93,142.00",Yes
Communities & Local Government,DCLG,17/08/2015,Current (non AEF) Grants to Local Authorities,Localism,CENTRAL BEDFORDSHIRE COUNCIL,,,,232624882,5000304333,,Reoccupation Relief,SG17 5TQ,929.00,Yes
Communities & Local Government,DCLG,17/08/2015,Current (non AEF) Grants to Local Authorities,Localism,CENTRAL BEDFORDSHIRE COUNCIL,,,,232624882,5000304334,,Empty New Build Relief,SG17 5TQ,428.00,Yes
Communities & Local Government,DCLG,17/08/2015,Current (non AEF) Grants to Local Authorities,Localism,CENTRAL BEDFORDSHIRE COUNCIL,,,,232624882,5000304335,,Council Tax Freeze,SG17 5TQ,"134,145.00",Yes
Communities & Local Government,DCLG,17/08/2015,Current (non AEF) Grants to Local Authorities,Localism,CHARNWOOD BC,,,,,5000302404,,Business Rates 2% Inflation Cap,LE11 2TU,"4,208.00",Yes
Communities & Local Government,DCLG,17/08/2015,Current (non AEF) Grants to Local Authorities,Localism,CHARNWOOD BC,,,,,5000302408,,Empty New Build Relief,LE11 2TU,"1,638.00",Yes
Communities & Local Government,DCLG,17/08/2015,Current (non AEF) Grants to Local Authorities,Localism,CHARNWOOD BC,,,,,5000302412,,Doubling of Small Business Rates Relief,LE11 2TU,"54,041.00",Yes
Communities & Local Government,DCLG,17/08/2015,Current (non AEF) Grants to Local Authorities,Localism,CHARNWOOD BC,,,,,5000302416,,Reoccupation Relief,LE11 2TU,580.00,Yes
Communities & Local Government,DCLG,17/08/2015,Current (non AEF) Grants to Local Authorities,Localism,CHARNWOOD BC,,,,,5000302420,,Retail Relief,LE11 2TU,"23,227.00",Yes
Communities & Local Government,DCLG,17/08/2015,Current (non AEF) Grants to Local Authorities,Localism,CHARNWOOD BC,,,,,5000302429,,Council Tax Freeze,LE11 2TU,"7,115.00",Yes
Communities & Local Government,DCLG,17/08/2015,Current (non AEF) Grants to Local Authorities,Localism,CHELMSFORD BC,,,,,5000302433,,Business Rates 2% Inflation Cap,CM1 1JE,"4,080.00",Yes
Communities & Local Government,DCLG,17/08/2015,Current (non AEF) Grants to Local Authorities,Localism,CHELMSFORD BC,,,,,5000302437,,Doubling of Small Business Rates Relief,CM1 1JE,"43,962.00",Yes
Communities & Local Government,DCLG,17/08/2015,Current (non AEF) Grants to Local Authorities,Localism,CHELMSFORD BC,,,,,5000302441,,Retail Relief,CM1 1JE,"32,756.00",Yes
Communities & Local Government,DCLG,17/08/2015,Current (non AEF) Grants to Local Authorities,Localism,CHELMSFORD BC,,,,,5000302445,,Council Tax Freeze,CM1 1JE,"11,650.00",Yes
Communities & Local Government,DCLG,17/08/2015,Current (non AEF) Grants to Local Authorities,Localism,CHELTENHAM BC,,,,,5000302448,,Business Rates 2% Inflation Cap,GL50 1PW,"3,830.00",Yes
Communities & Local Government,DCLG,17/08/2015,Current (non AEF) Grants to Local Authorities,Localism,CHELTENHAM BC,,,,,5000302456,,Doubling of Small Business Rates Relief,GL50 1PW,"37,907.00",Yes
Communities & Local Government,DCLG,17/08/2015,Current (non AEF) Grants to Local Authorities,Localism,CHELTENHAM BC,,,,,5000302460,,Empty New Build Relief,GL50 1PW,338.00,Yes
Communities & Local Government,DCLG,17/08/2015,Current (non AEF) Grants to Local Authorities,Localism,CHELTENHAM BC,,,,,5000302463,,Reoccupation Relief,GL50 1PW,338.00,Yes
Communities & Local Government,DCLG,17/08/2015,Current (non AEF) Grants to Local Authorities,Localism,CHELTENHAM BC,,,,,5000302467,,Retail Relief,GL50 1PW,"20,187.00",Yes
Communities & Local Government,DCLG,17/08/2015,Current (non AEF) Grants to Local Authorities,Localism,CHELTENHAM BC,,,,,5000302471,,Council Tax Freeze,GL50 1PW,"8,208.00",Yes
Communities & Local Government,DCLG,17/08/2015,Current (non AEF) Grants to Local Authorities,Localism,CHERWELL DC,,,,,5000302608,,Doubling of Small Business Rates Relief,OX15 4AA,"35,826.00",Yes
Communities & Local Government,DCLG,17/08/2015,Current (non AEF) Grants to Local Authorities,Localism,CHERWELL DC,,,,,5000302616,,Business Rates 2% Inflation Cap,OX15 4AA,"6,899.00",Yes
Communities & Local Government,DCLG,17/08/2015,Current (non AEF) Grants to Local Authorities,Localism,CHERWELL DC,,,,,5000302620,,Retail Relief,OX15 4AA,"29,103.00",Yes
Communities & Local Government,DCLG,17/08/2015,Current (non AEF) Grants to Local Authorities,Localism,CHERWELL DC,,,,,5000302624,,Council Tax Freeze,OX15 4AA,"6,485.00",Yes
Communities & Local Government,DCLG,17/08/2015,Current (non AEF) Grants to Local Authorities,Localism,CHESHIRE EAST COUNCIL,,Large,,,5000304336,,Council Tax Freeze,CW11 1HZ,"183,976.00",Yes
Communities & Local Government,DCLG,17/08/2015,Current (non AEF) Grants to Local Authorities,Localism,CHESHIRE EAST COUNCIL,,Large,,,5000304337,,Doubling of Small Business Rates Relief,CW11 1HZ,"182,197.00",Yes
Communities & Local Government,DCLG,17/08/2015,Current (non AEF) Grants to Local Authorities,Localism,CHESHIRE EAST COUNCIL,,Large,,,5000304338,,Business Rates 2% Inflation Cap,CW11 1HZ,"48,020.00",Yes
Communities & Local Government,DCLG,17/08/2015,Current (non AEF) Grants to Local Authorities,Localism,CHESHIRE EAST COUNCIL,,Large,,,5000304339,,Reoccupation Relief,CW11 1HZ,"1,005.00",Yes
Communities & Local Government,DCLG,17/08/2015,Current (non AEF) Grants to Local Authorities,Localism,CHESHIRE EAST COUNCIL,,Large,,,5000304340,,Retail Relief,CW11 1HZ,"95,075.00",Yes
Communities & Local Government,DCLG,17/08/2015,Current (non AEF) Grants to Local Authorities,Localism,CHESHIRE EAST COUNCIL,,Large,,,5000304341,,Small Business Rates Relief on Second Properties,CW11 1HZ,800.00,Yes
Communities & Local Government,DCLG,17/08/2015,Current (non AEF) Grants to Local Authorities,Localism,CHESHIRE FIRE AUTHORITY,,,,424872737,5000304206,,Reoccupation Relief,CW7 2FQ,274.00,Yes
Communities & Local Government,DCLG,17/08/2015,Current (non AEF) Grants to Local Authorities,Localism,CHESHIRE FIRE AUTHORITY,,,,424872737,5000304207,,Retail Relief,CW7 2FQ,"4,692.00",Yes
Communities & Local Government,DCLG,17/08/2015,Current (non AEF) Grants to Local Authorities,Localism,CHESHIRE FIRE AUTHORITY,,,,424872737,5000304209,,Doubling of Small Business Rates Relief,CW7 2FQ,"8,398.00",Yes
Communities & Local Government,DCLG,17/08/2015,Current (non AEF) Grants to Local Authorities,Localism,CHESHIRE FIRE AUTHORITY,,,,424872737,5000304210,,Business Rates 2% Inflation Cap,CW7 2FQ,"10,573.00",Yes
Communities & Local Government,DCLG,17/08/2015,Current (non AEF) Grants to Local Authorities,Localism,CHESHIRE WEST & CHESTER UA,,Large,,215584383,5000304342,,Business Rates 2% Inflation Cap,CH1 2NP,"59,211.00",Yes
Communities & Local Government,DCLG,17/08/2015,Current (non AEF) Grants to Local Authorities,Localism,CHESHIRE WEST & CHESTER UA,,Large,,215584383,5000304343,,Doubling of Small Business Rates Relief,CH1 2NP,"129,356.00",Yes
Communities & Local Government,DCLG,17/08/2015,Current (non AEF) Grants to Local Authorities,Localism,CHESHIRE WEST & CHESTER UA,,Large,,215584383,5000304344,,Empty New Build Relief,CH1 2NP,"1,657.00",Yes
Communities & Local Government,DCLG,17/08/2015,Current (non AEF) Grants to Local Authorities,Localism,CHESHIRE WEST & CHESTER UA,,Large,,215584383,5000304345,,Reoccupation Relief,CH1 2NP,"12,428.00",Yes
Communities & Local Government,DCLG,17/08/2015,Current (non AEF) Grants to Local Authorities,Localism,CHESHIRE WEST & CHESTER UA,,Large,,215584383,5000304347,,Retail Relief,CH1 2NP,"82,855.00",Yes
Communities & Local Government,DCLG,17/08/2015,Current (non AEF) Grants to Local Authorities,Localism,CHESHIRE WEST & CHESTER UA,,Large,,215584383,5000304348,,Council Tax Freeze,CH1 2NP,"159,833.00",Yes
Communities & Local Government,DCLG,17/08/2015,Current (non AEF) Grants to Local Authorities,Localism,CHESTERFIELD BC,,,,232102301,5000302475,,Doubling of Small Business Rates Relief,S40 1LP,"45,706.00",Yes
Communities & Local Government,DCLG,17/08/2015,Current (non AEF) Grants to Local Authorities,Localism,CHESTERFIELD BC,,,,232102301,5000302479,,Retail Relief,S40 1LP,"25,103.00",Yes
Communities & Local Government,DCLG,17/08/2015,Current (non AEF) Grants to Local Authorities,Localism,CHESTERFIELD BC,,,,232102301,5000302483,,Business Rates 2% Inflation Cap,S40 1LP,"4,665.00",Yes
Communities & Local Government,DCLG,17/08/2015,Current (non AEF) Grants to Local Authorities,Localism,CHESTERFIELD BC,,,,232102301,5000302491,,Council Tax Freeze,S40 1LP,"4,804.00",Yes
Communities & Local Government,DCLG,17/08/2015,Current (non AEF) Grants to Local Authorities,Localism,CHICHESTER DC,,,,739800998,5000302628,,Council Tax Freeze,PO19 1TY,"7,768.00",Yes
Communities & Local Government,DCLG,17/08/2015,Current (non AEF) Grants to Local Authorities,Localism,CHICHESTER DC,,,,739800998,5000302632,,Doubling of Small Business Rates Relief,PO19 1TY,"52,790.00",Yes
Communities & Local Government,DCLG,17/08/2015,Current (non AEF) Grants to Local Authorities,Localism,CHICHESTER DC,,,,739800998,5000302636,,Business Rates 2% Inflation Cap,PO19 1TY,"2,693.00",Yes
Communities & Local Government,DCLG,17/08/2015,Current (non AEF) Grants to Local Authorities,Localism,CHICHESTER DC,,,,739800998,5000302640,,Empty New Build Relief,PO19 1TY,338.00,Yes
Communities & Local Government,DCLG,17/08/2015,Current (non AEF) Grants to Local Authorities,Localism,CHICHESTER DC,,,,739800998,5000302644,,Reoccupation Relief,PO19 1TY,"1,691.00",Yes
Communities & Local Government,DCLG,17/08/2015,Current (non AEF) Grants to Local Authorities,Localism,CHICHESTER DC,,,,739800998,5000302648,,Retail Relief,PO19 1TY,"24,349.00",Yes
Communities & Local Government,DCLG,17/08/2015,Current (non AEF) Grants to Local Authorities,Localism,CHICHESTER DC,,,,739800998,5000302651,,Small Business Rates Relief on Second Properties,PO19 1TY,577.00,Yes
Communities & Local Government,DCLG,17/08/2015,Current (non AEF) Grants to Local Authorities,Localism,CHILTERN DC (HSG),,,,,5000302654,,Retail Relief,HP6 5AW,"17,662.00",Yes
Communities & Local Government,DCLG,17/08/2015,Current (non AEF) Grants to Local Authorities,Localism,CHILTERN DC (HSG),,,,,5000302658,,Business Rates 2% Inflation Cap,HP6 5AW,"1,939.00",Yes
Communities & Local Government,DCLG,17/08/2015,Current (non AEF) Grants to Local Authorities,Localism,CHILTERN DC (HSG),,,,,5000302662,,Doubling of Small Business Rates Relief,HP6 5AW,"24,721.00",Yes
Communities & Local Government,DCLG,17/08/2015,Current (non AEF) Grants to Local Authorities,Localism,CHORLEY BOROUGH COUNCIL,,,,236415576,5000302495,,Business Rates 2% Inflation Cap,PR7 1DP,"4,327.00",Yes
Communities & Local Government,DCLG,17/08/2015,Current (non AEF) Grants to Local Authorities,Localism,CHORLEY BOROUGH COUNCIL,,,,236415576,5000302499,,Reoccupation Relief,PR7 1DP,752.00,Yes
Communities & Local Government,DCLG,17/08/2015,Current (non AEF) Grants to Local Authorities,Localism,CHORLEY BOROUGH COUNCIL,,,,236415576,5000302507,,Empty New Build Relief,PR7 1DP,275.00,Yes
Communities & Local Government,DCLG,17/08/2015,Current (non AEF) Grants to Local Authorities,Localism,CHORLEY BOROUGH COUNCIL,,,,236415576,5000302511,,Retail Relief,PR7 1DP,"17,489.00",Yes
Communities & Local Government,DCLG,17/08/2015,Current (non AEF) Grants to Local Authorities,Localism,CHORLEY BOROUGH COUNCIL,,,,236415576,5000302515,,Doubling of Small Business Rates Relief,PR7 1DP,"41,249.00",Yes
Communities & Local Government,DCLG,17/08/2015,Current (non AEF) Grants to Local Authorities,Localism,CHORLEY BOROUGH COUNCIL,,,,236415576,5000302517,,Council Tax Freeze,PR7 1DP,"6,806.00",Yes
Communities & Local Government,DCLG,17/08/2015,Current (non AEF) Grants to Local Authorities,Localism,CHRISTCHURCH BC (HSG),,,,227415213,5000302670,,Retail Relief,BH23 1AZ,"12,726.00",Yes
Communities & Local Government,DCLG,17/08/2015,Current (non AEF) Grants to Local Authorities,Localism,CHRISTCHURCH BC (HSG),,,,227415213,5000302674,,Business Rates 2% Inflation Cap,BH23 1AZ,"1,286.00",Yes
Communities & Local Government,DCLG,17/08/2015,Current (non AEF) Grants to Local Authorities,Localism,CHRISTCHURCH BC (HSG),,,,227415213,5000302678,,Doubling of Small Business Rates Relief,BH23 1AZ,"20,132.00",Yes
Communities & Local Government,DCLG,17/08/2015,Current (non AEF) Grants to Local Authorities,Localism,CITY OF LINCOLN COUNCIL,,,,,5000303856,,Empty New Build Relief,LN1 1DB,"1,122.00",Yes
Communities & Local Government,DCLG,17/08/2015,Current (non AEF) Grants to Local Authorities,Localism,CITY OF LINCOLN COUNCIL,,,,,5000303860,,Retail Relief,LN1 1DB,"20,326.00",Yes
Communities & Local Government,DCLG,17/08/2015,Current (non AEF) Grants to Local Authorities,Localism,CITY OF LINCOLN COUNCIL,,,,,5000303864,,Reoccupation Relief,LN1 1DB,"9,034.00",Yes
Communities & Local Government,DCLG,17/08/2015,Current (non AEF) Grants to Local Authorities,Localism,CITY OF LINCOLN COUNCIL,,,,,5000303873,,Business Rates 2% Inflation Cap,LN1 1DB,"4,987.00",Yes
Communities & Local Government,DCLG,17/08/2015,Current (non AEF) Grants to Local Authorities,Localism,CITY OF LINCOLN COUNCIL,,,,,5000303877,,Doubling of Small Business Rates Relief,LN1 1DB,"31,145.00",Yes
Communities & Local Government,DCLG,17/08/2015,Current (non AEF) Grants to Local Authorities,Localism,CITY OF LONDON (HSG),,,,217471460,5000302682,,Reoccupation Relief,EC2P 2EJ,"2,283.00",Yes
Communities & Local Government,DCLG,17/08/2015,Current (non AEF) Grants to Local Authorities,Localism,CITY OF LONDON (HSG),,,,217471460,5000302685,,Retail Relief,EC2P 2EJ,"15,219.00",Yes
Communities & Local Government,DCLG,17/08/2015,Current (non AEF) Grants to Local Authorities,Localism,CITY OF LONDON (HSG),,,,217471460,5000302688,,Business Rates 2% Inflation Cap,EC2P 2EJ,"18,705.00",Yes
Communities & Local Government,DCLG,17/08/2015,Current (non AEF) Grants to Local Authorities,Localism,CITY OF LONDON (HSG),,,,217471460,5000302692,,Doubling of Small Business Rates Relief,EC2P 2EJ,"5,495.00",Yes
Communities & Local Government,DCLG,17/08/2015,Current (non AEF) Grants to Local Authorities,Localism,CITY OF LONDON (HSG),,,,217471460,5000302696,,Empty New Build Relief,EC2P 2EJ,"3,171.00",Yes
Communities & Local Government,DCLG,17/08/2015,Current (non AEF) Grants to Local Authorities,Localism,CITY OF LONDON (HSG),,,,217471460,5000302700,,Council Tax Freeze,EC2P 2EJ,"5,193.00",Yes
Communities & Local Government,DCLG,17/08/2015,Current (non AEF) Grants to Local Authorities,Localism,CITY OF SUNDERLAND (HSG),,,,215599312,5000302704,,Council Tax Freeze,SR2 7DN,"98,926.00",Yes
Communities & Local Government,DCLG,17/08/2015,Current (non AEF) Grants to Local Authorities,Localism,CITY OF SUNDERLAND (HSG),,,,215599312,5000302708,,Doubling of Small Business Rates Relief,SR2 7DN,"92,744.00",Yes
Communities & Local Government,DCLG,17/08/2015,Current (non AEF) Grants to Local Authorities,Localism,CITY OF SUNDERLAND (HSG),,,,215599312,5000302710,,Reoccupation Relief,SR2 7DN,491.00,Yes
